{"text_format":"1","workbook":"xlsx","n_sheets":32,"sheets":["Home Page","Tool Management","Info Button Text","Starting The Process","Hospital Information","Summary","Emer Mgmt and Surge Cap","Summary Raw","Critical Care","ED","Medical Services","Mental Health","OBGYN and Nursery","Pediatrics","Renal","Surgical Services","Blood Bank","Facilities_Utilities","Infection Prev and Cont","IT_Communications","Lab","Nutrition Services","Pharmacy","Radiology","Resp Care_Bioelectronics","Safety and Security","Sterile Supply","Storeroom","Transportation","Pharmacy Supplies","Storeroom Supplies","Codes"],"not_rendered":{"charts":0,"images":0,"macros":1,"external_links":0,"defined_names":34,"comments":0,"pivot_tables":0},"unopened":[],"bounds":{"document_bytes":16777216,"sheet_cells":100000,"rows_first":2000,"rows_last":500,"rows_between":2000,"halvings":0,"cell_chars":16384,"cell_head_chars":4096},"cells_cut":0,"cells_raw":0,"read":"whole","date_system":"1900"}

{"sheet":"Home Page","index":0,"n_rows":31,"n_cols":4,"rows_kept":31,"cut":false,"hidden":false,"merged":[[30,3,30,12],[2,2,2,13],[5,3,5,12],[12,3,12,12],[14,3,14,12],[20,3,20,12]]}
[]
[]
[null,null,"Hospital Resource Vulnerability Assessment (RVA)"]
[]
[]
[null,null,null,"Background and Instructions for Emergency Manager"]
[]
[]
[]
[]
[]
[]
[null,null,null,"Surveys for Department/Division Supervisors"]
[]
[null,null,null,"Clinical Services"]
[]
[]
[]
[]
[]
[null,null,null,"Support Services"]
[]
[]
[]
[]
[]
[]
[]
[]
[]
[null,null,null,"Disaster Supply Lists"]

{"sheet":"Tool Management","index":1,"n_rows":3,"n_cols":3,"rows_kept":3,"cut":false,"hidden":false,"merged":[[2,2,2,8]]}
[]
[]
[null,null,"Tool Management"]

{"sheet":"Info Button Text","index":2,"n_rows":405,"n_cols":5,"rows_kept":405,"cut":false,"hidden":true,"merged":[]}
["Sheet","Category","Button","Info Button Text"]
["Emer Mgmt and Surge Cap","Staff",1,"Total for facility not FTE"]
["Emer Mgmt and Surge Cap","Staff",2,"Total for facility not FTE"]
["Emer Mgmt and Surge Cap","Plan",1,"HVA - see TJC requirements, review and update yearly. Is the HVA shared regionally / within the coalition?","TJC"]
["Emer Mgmt and Surge Cap","Plan",2,"See TJC and other requirements, review/update yearly. Consider accessibility, formatting, base plan and annex utility.","TJC"]
["Emer Mgmt and Surge Cap","Plan",3,"See HICS website for materials. Are command, general, and other supervisory staff adequately trained? Appropriate Job Action Sheets / Job Aids?","HICS weblink"]
["Emer Mgmt and Surge Cap","Plan",4,"Note that this is overall COOP plan, see IT for specific systems failure plans"]
["Emer Mgmt and Surge Cap","Plan",5,"Is the leadership line of succession/authority and delegation to the incident commander detailed in the EOP?"]
["Emer Mgmt and Surge Cap","Plan",6,"Do the key response (ED, medicine, surgery, nursing) and support (lab, blood bank, radiology) have adequate plans, training, and job aids available?"]
["Emer Mgmt and Surge Cap","Plan",7,"Is a fatality disposition/holding process and location described? Is there a community plan for mass fatalities? Is the facility plan consistent with the medical examiner's plan?"]
["Emer Mgmt and Surge Cap","Plan",8,"Are there pre-designated areas for surge and a plan to staff them including off-hours (e.g. PACU)? Is the surge plan known and practiced?"]
["Emer Mgmt and Surge Cap","Plan",9,"Do clinics (may include on or off-site) understand their role in surge capacity for no-notice as well as longer duration (e.g. epidemic) events? Is there a triage/referral process in place?"]
["Emer Mgmt and Surge Cap","Plan",10,"Does the facility understand its role and expectations in regional burn response? Are staff, space, and supplies designated for burn care? Are there educational or exercise needs in this area?"]
["Emer Mgmt and Surge Cap","Plan",11,"Does the facility understand its role and expectations in regional pediatric response? Are staff, space, and supplies designated for pediatric care? Are there educational or exercise needs in this area?"]
["Emer Mgmt and Surge Cap","Plan",12,"Is there adequate dedicated space and equipment for decontamination based on the HVA? Are trained staff available to supervise and provide decontamination (including ongoing training/competancies?) Is adequate PPE available? Does the plan incorporate demobilization/clean-up decisions?"]
["Emer Mgmt and Surge Cap","Plan",13]
["Emer Mgmt and Surge Cap","Plan",14,"Is there a structured process for resource triage described that can be used to proactively manage scarce resources? Is the plan understood by the key stakeholders? Has it been vetted by administration, medical, legal, and ethics staff?"]
["Emer Mgmt and Surge Cap","Plan",15,"Are policies / procedures in place to enable step-by-step opening of the command center? Is there a defined back-up plan including off-site command? ","TJC"]
["Emer Mgmt and Surge Cap","Plan",16,"Is the command center secured and access controlled? Are there policies on who may access the command center?"]
["Emer Mgmt and Surge Cap","Plan",17,"Is there a system for rapid patient tracking (tags, RFID, bracelets, etc.) and registration? Is patient information able to be shared with other facilities and with public safety to facilitate reunification?","TJC"]
["Emer Mgmt and Surge Cap","Plan",18,"Are policies in place to facilitate rapid disaster privileging and credentialling in compliance with TJC or other regulatory body expectations? Is there a rapid credentialling process in place? Is there a process for managing spontaneous volunteers? ","TJC"]
["Emer Mgmt and Surge Cap","Plan",19,"Is a plan in place to manage (and solict, if needed) donations during a disaster? Is space designated? Is there a plan to transfer un-needed donated materials to charitable and other organizations or accomplish safe disposal? Is there an accounting process for donation management?"]
["Emer Mgmt and Surge Cap","Plan",20,"Is a plan (including training and job aids) in place for rapid identification of patients that may be discharged from the hospital (or moved to lower levels of care) to open space for incoming patients? Is this process practiced with the charge nurses, administrators, and care teams?"]
["Emer Mgmt and Surge Cap","Plan",21,"Does the evacuation plan account for decision-making and authorities? Does it include shelter-in-place, relocation (within the facility) and partial and complete evacuation scenarios? Is the evacuation process understood on the units? Are tracking and support materials available and have transport needs been defined? Do coalition hospitals and EMS have agreements about evacuations?"]
["Emer Mgmt and Surge Cap","Plan",22]
["Emer Mgmt and Surge Cap","Plan",23,"Does the hospital have a plan for a Family Support Center? Is this integrated with the community Family Assistance Center plan? Is there a regional re-unification plan and/or system to manage the process?"]
["Emer Mgmt and Surge Cap","Plan",24,"Is there a plan to provide staff housing on-site if required by weather or other situations?"]
["Emer Mgmt and Surge Cap","Plan",25,"Is there a plan to support the pets of staff on-site if they are expected to evacuate their homes during a weather event? Is there a means to provide daycare, petcare, and other support to staff during a long-term disaster to allow their presence at the facility?"]
["Emer Mgmt and Surge Cap","Plan",26,"Is the interface and authorities between the facility and the coalition described? (what are the expectations of support, who can authorize, what resources are available, is there a coordinating coalition construct during a disaster?"]
["Emer Mgmt and Surge Cap","Plan",27,"Does the facility participate in the NDMS system? If so, has the commitment to the system been tested/evaluated? If the facility does not participate are there expectations of them from NDMS-affiliated facilities during a disaster? (accept transfers, etc.)"]
["Emer Mgmt and Surge Cap","Plan",28,"Is there a facility exercise plan? Is it tied to a community plan and/or the HVA? Is there a structured process for after-action reports, corrective action plans, and issue resolution? Is the exercise and evaluation cycle consistent with HSEEP when using grant funds and with regulatory (CMS, TJC, other) expectations?","add NIMS for HCF link"]
["Emer Mgmt and Surge Cap","Plan",29,"Are expectations for NIMS training outlined in writing? Are staff that require NIMS training tracked? Is the facility compliant with NIMS expectations for healthcare facilities?"]
["Emer Mgmt and Surge Cap","Plan",30]
["Emer Mgmt and Surge Cap","Plan",31]
["Emer Mgmt and Surge Cap","Supplies",1,"Is there dedicated adequate space for the command center? Is it in an area that balances access with privacy and security? Is the center on back-up power?"]
["Emer Mgmt and Surge Cap","Supplies",2,"Does the command center have adequate IT and other communication support (e.g. telephones, computers, access to security monitor feeds, radios, wifi, etc.)"]
["Emer Mgmt and Surge Cap","Supplies",3,"Does the command center have mobilization kits with job action sheets and initial supplies? Are basic office supplies available?"]
["Emer Mgmt and Surge Cap","Supplies",4]
["Emer Mgmt and Surge Cap","Supplies",5,"Can staff and others on-site be rapidly notiified of an event? (e.g. overhead paging, messaging systems)"]
["Emer Mgmt and Surge Cap","Supplies",6,"Can off-site staff be rapidly called back or provided information on an event? Is there a process for staged or event-based notifications?"]
["Emer Mgmt and Surge Cap","Supplies",7,"Number of body bags available"]
["Emer Mgmt and Surge Cap","Supplies",8,"Number of evacuation sleds or dedicated evacuation stretchers / evacuation devices (detail in comments) (may be fabric type, but cannot count sheets or other materials normally available)"]
["Emer Mgmt and Surge Cap","Supplies",9,"Is equipment avaialble to allow radio communication to outside agencies? (e.g. EMS, other hospitals, emergency management)"]
["Emer Mgmt and Surge Cap","Supplies",10,"Is equipment available to facilitate communication within the facility in the event of a systems failure and/or for the incident command staff?"]
["Emer Mgmt and Surge Cap","Supplies",11,"For example, trauma bag for Security or ED use to respond to a 'sidewalk' situation - does not include usual code carts"]
["Emer Mgmt and Surge Cap","Supplies",12,"Number on-site suitable for short-term staff or patient use"]
["Emer Mgmt and Surge Cap","Supplies",13,"Number of beds in storage (is there a planned number that is expected to be kept available to facilitate doubling rooms if needed for surge capacity?)"]
["Critical Care","Staff",1,"Number of staff at your facility (or expected to respond to your facility if they cover multiple hospitals)"]
["Critical Care","Staff",2,"Number of staff at your facility (or expected to respond to your facility if they cover multiple hospitals)"]
["Critical Care","Plan",1,"Is there a plan to notify the critical care nursing and physician staff during an incident (e.g. group page, notification protocol, etc.)?"]
["Critical Care","Plan",2,"Is there a specific plan for criticalc care surge space? Is the plan understood by the critical care staff?"]
["Critical Care","Plan",3,"Is there a template and/or understood plan to create a transfer or 'bump' list from the ICU during a disaster?"]
["Critical Care","Plan",4,"Is there a plan for ICU resource triage decisions in a crisis situation? Is the plan understood by the critical care staff?"]
["Critical Care","Space",1,"Number of conventional ICU beds available"]
["Critical Care","Space",2,"Number of beds that could be additionally accommodated in ICU rooms (e.g. double-rooms) or in other areas (step-down unit converted to ICU) - may add detail in comments section"]
["Critical Care","Supplies",1,"Is specfic evacuation equipment available in the ICU?"]
["ED","Staff",1,"Total staff number (may wish to add comment of % available for no-notice disaster response based on home, other factors)"]
["ED","Staff",2,"Total staff number (may wish to add comment of % available for no-notice disaster response based on home, other factors)"]
["ED","Staff",3,"Total staff number (may wish to add comment of % available for no-notice disaster response based on home, other factors)"]
["ED","Plan",1,"Is there a notification process for ED staff when an incident occurs? Does it include all relevant job categories? Allow for follow-up event information?"]
["ED","Plan",2,"Are there incident-specific job action sheets and appropriate education for ED providers?"]
["ED","Plan",3,"Is there a documented plan for expansion of emergency services space/operations in a disaster?"]
["ED","Plan",4,"Is there a disaster patient registration or tracking process? Are the staff familiar with it?"]
["ED","Plan",5,"Is there a written response plan in the ED for HAZMAT/decontamination events? Do the staff understand their roles and have appropriate training?"]
["ED","Plan",6,"Is there a written response plan in the ED for radiation events? Do the staff understand their roles and have appropriate training? Does the plan designate a radiation safety officer and/or involvement of radiology/nuclear medicine staff?"]
["ED","Plan",7,"Does staff know the actions to take to shelter, re-locate, or evacuate, as well as the location of relevant supplies?"]
["ED","Plan",8,"Do staff have education on active violence events (e.g. active shooter, bomb threat) and understand the actions they should take?"]
["ED","Space",1,"Includes appropriate monitors, airway, and other equipment for resuscitation"]
["ED","Space",2,"Rooms / bays with dedicated cardiac and other monitors NOT including those beds listed under resuscitation category"]
["ED","Space",3,"Other rooms in the ED that lack dedicated cardiac and other monitors"]
["ED","Space",4,"Isolation rooms in the ED that meet AIIR standards"]
["ED","Supplies",1,"Is the ED a controlled entry area? Do all employees have access, or only a subset (if a subset, can all staff that would need to access the ED in a disaster have access?)"]
["ED","Supplies",2,"Are ED entries and critical areas actively monitored by security cameras?"]
["ED","Supplies",3,"Does the ED have dedicated radios or other communication devices to use in disasters? (These may be used within the ED or between the ED and Hospital Command Center, etc.)"]
["ED","Supplies",4,"Is HAZMAT PPE immediately available in a variety of sizes? (e.g. PAPR with multi-agent filters, Level C protective clothing ensemble)"]
["ED","Supplies",5,"Is radiologic detection equipment available either in the ED or rapidly from another area for radiologic events?"]
["ED","Supplies",6,"Does the ED have 'dry decon' kits (i.e. organized sets of redress kits for multiple victims of contamination event to doff and separate clothing/valuables while donning a coverup)"]
["ED","Supplies",7,"Does the ED have equipment for both ambulatory and non-ambulatory decontamination? Is this rapidly deployable and avaialble and consistent with the HVA?"]
["ED","Supplies",8,"Does the ED have any 'bedside boxes' or other dedicated supplies for initial management of critical patients when the resuscitation area is overwhelmed?"]
["ED","Supplies",9,"Does the ED have any 'triage boxes' or dedicated supplies for the initial evaluation and management of walking wounded in an ancillary area?"]
["ED","Supplies",10,"Do ED personnel have immediate access to their command vests and any needed signage and equipment (e.g. clipboards, job aids, etc.)?"]
["ED","Supplies",11,"Are extra carts and wheelchairs available in the ED or is there a process for rapidly obtaining them from other areas?"]
["ED","Supplies",12,"Is there a 'pull list' or dedicated disaster supplies from central supply or other source that can be available within the first 30 minutes of an incident?"]
["ED","Supplies",13,"# of BVM in the ED"]
["ED","Supplies",14,"Is PPE available for special pathogens (e.g. SARS, VHF, etc.) in defined kits or are there defined lists with isolation supplies for staff?"]
["ED","Supplies",15,"Are there 'disaster bands' or pre-made kits for patient registration and perhaps orders/documentation?"]
["ED","Supplies",16,"Radio should communicate with at least EMS service(s) and optimally this radio or another can contact other hospitals in the area"]
["ED","Supplies",17,"# of commercial arterial tourniquets (e.g. CAT or other) available in the ED"]
["Medical Services","Staff",1,"Total staff number (may wish to add comment of % available for no-notice disaster response based on home, other factors)"]
["Medical Services","Staff",2,"Total staff number (may wish to add comment of % available for no-notice disaster response based on home, other factors)"]
["Medical Services","Plan",1,"Is there a written surge capacity plan for inpatient medicine including spaces to be used and in what order?"]
["Medical Services","Plan",2,"Is there a practiced plan and job aids for care teams to identify patients for early discharge or movement to lower levels of care / holding areas?"]
["Medical Services","Plan",3,"Is there a notification process for medical staff when an incident occurs? Does it include all relevant job categories? Allow for follow-up event information?"]
["Medical Services","Space",1,"Stepdown = intermediate level care (medication drips, management of conditions like active cardiac ischemia, frequent neuro checks, etc.) - not all facilities will have intermediate level care"]
["Medical Services","Space",2,"Beds that could be added to double room capacity while still maintaining adequate standard of care/privacy"]
["Medical Services","Space",3,"Dedicated telemetry equipment for the specific room"]
["Medical Services","Space",4,"Mobile or remote monitored telemetry that is portable / not room specific"]
["Medical Services","Space",5,"Medicine floor care (do not include surgical floor or if med/surg swing beds include ONLY in one category and not the other)"]
["Medical Services","Space",6,"# of beds on unit that could be added to single rooms to increase capacity (while still maintaining adequate standard of care/privacy)"]
["Medical Services","Space",7,"If facility provides inpatient rehabilitation services"]
["Medical Services","Space",8,"How many cots could be accomodated in flat-space areas on the medicine units if required for temporary holding?"]
["Medical Services","Space",9,"# of beds that could be created in the GI, cardiology cath lab/recovery, other areas that could be used as inpatient beds (add in comments location)"]
["Medical Services","Supplies",1,"Dedicated medicine area evacuation stretchers (sleds, dedicated carry devices, etc.)"]
["Mental Health","Staff",1,"Total staff number (may wish to add comment of % available for no-notice disaster response based on home, other factors)"]
["Mental Health","Staff",2,"Total staff number (may wish to add comment of % available for no-notice disaster response based on home, other factors)"]
["Mental Health","Staff",3,"Total staff number (may wish to add comment of % available for no-notice disaster response based on home, other factors)"]
["Mental Health","Staff",4,"Total staff number (may wish to add comment of % available for no-notice disaster response based on home, other factors)"]
["Mental Health","Plan",1,"Is there a notification process for mental health branch staff when an incident occurs? Does it include all relevant job categories? Allow for follow-up event information?"]
["Mental Health","Plan",2,"Is there a process for providing admitted patients initial support (e.g. Psychological First Aid) and screening for psychological needs?"]
["Mental Health","Plan",3,"Psychological support (e.g. PFA) and assessment process (e.g. PsySTART) for ED/outpatient disaster victims?"]
["Mental Health","Plan",4,"Is there a plan to expand crisis support services following a disaster?"]
["Mental Health","Plan",5,"Is there a plan for expansion of inpatient psychiatric services following a disaster?"]
["Mental Health","Plan",6,"If the facility provides inpatient psychiatric care is the evacuation of the unit planned, including likely destinations, accountability, and security/staffing issues?"]
["Mental Health","Plan",7,"Is there a specific plan to foster resiliency and support staff after a disaster including who coordinates, services offered, etc.?"]
["Mental Health","Plan",8,"Is Mental Health/Spiritual Care/Social work support for the Family Support Center defined in the hospital plan?"]
["Mental Health","Space",1,"Total number of holding rooms or other secured rooms appropriate for mental health emergency patients - may include crisis center space"]
["Mental Health","Space",2,"Total number of psychiatric inpatient unit beds"]
["Mental Health","Supplies",1,"Is there a special identifying band or tracking for psychiatric inpatients during evacuation?"]
["Mental Health","Supplies",2,"Note any specific caches or increased par levels - may note specifics in comments and on pharmacy list"]
["Mental Health","Supplies",3,"Note any specific caches or increased par levels - may note specifics in comments and on pharmacy list"]
["OBGYN and Nursery","Staff",1,"Total staff number (may wish to add comment of % available for no-notice disaster response based on home, other factors) may include nurse midwives"]
["OBGYN and Nursery","Staff",2,"Total staff number (may wish to add comment of % available for no-notice disaster response based on home, other factors), , may include resident numbers if they have a role"]
["OBGYN and Nursery","Plan",1,"Is there a notification process for OB staff when an incident occurs that requires callback (e.g. evacuation of L&D or receiving L&D transfers from an evacuating hospital)?"]
["OBGYN and Nursery","Plan",2,"How does OB/Gyn space contribute to the surge capacity plan? Is the area staffed by other nursing and physician staff if used for non-Gyn patients?"]
["OBGYN and Nursery","Plan",3,"Is there a plan for evacuating the OB/Gyn area including destinations within the facility and to other facilities and decision-making authority about who is safe to evacuate?"]
["OBGYN and Nursery","Plan",4,"Is there a plan to evacuate the nursery/NICU including destinations within the facility and outside, and providing clinical authority to decide whether evacuation risk exceeds shelter-in-place risk?"]
["OBGYN and Nursery","Plan",5,"Does the OB department have a special pathogen plan? (e.g. VHF/pandemic)"]
["OBGYN and Nursery","Space",1,"Rooms usually used for deliveries"]
["OBGYN and Nursery","Space",2,"Rooms / bays used for assessment of possible labor, etc."]
["OBGYN and Nursery","Space",3,"OR dedicated for OB/Gyn use?"]
["OBGYN and Nursery","Space",4,"PACU beds/bays dedicated to OB/Gyn use?"]
["OBGYN and Nursery","Space",5,"Dedicated midwife rooms? (if separate from usual L&D rooms)"]
["OBGYN and Nursery","Space",6,"Floor beds dedicated to OB/Gyn"]
["OBGYN and Nursery","Space",7,"Nursery capacity (bassinets and space)"]
["OBGYN and Nursery","Supplies",1,"Is a standard identification system used to pair parents and babies?"]
["OBGYN and Nursery","Supplies",2,"Carts that could be used for patient transport / evacuation"]
["OBGYN and Nursery","Supplies",3,"Are there dedicated evacuation supplies for L&D?"]
["OBGYN and Nursery","Supplies",4,"Are there dedicated evacuation supplies for nursery/NICU?"]
["OBGYN and Nursery","Supplies",5,"How many baby carriers does nursery/NICU have for evacuation?"]
["Pediatrics","Staff",1,"Total staff number (may wish to add comment of % available for no-notice disaster response based on home, other factors), may include number of residents usually rotating if included in plan/notifications"]
["Pediatrics","Staff",2,"Total staff number (may wish to add comment of % available for no-notice disaster response based on home, other factors)"]
["Pediatrics","Staff",3,"Total staff number (may wish to add comment of % available for no-notice disaster response based on home, other factors)"]
["Pediatrics","Staff",4,"Total staff number (may wish to add comment of % available for no-notice disaster response based on home, other factors)"]
["Pediatrics","Plan",1,"Is there a notification process for pediatric staff when an incident occurs? Does it include all relevant job categories? Allow for follow-up event information?"]
["Pediatrics","Plan",2,"Does the pediatric disaster plan define expansion of PICU services? (e.g. overflow into other ICUs, recommendations for what patients are best served in PICU?)"]
["Pediatrics","Plan",3,"Does the pediatric disaster plan define expansion of pediatric inpatient care? (e.g. overflow into other ICUs, recommendations for what patients are best served on peds unit?)"]
["Pediatrics","Plan",4,"Is there a practiced plan and job aids for care teams to identify patients for early discharge or movement to lower levels of care / holding areas?"]
["Pediatrics","Plan",5,"Is there a plan for a pediatric safe area for unaccompanied children in a disaster?"]
["Pediatrics","Plan",6,"Is there a plan to provide child care services for staff members reporting in a disaster? "]
["Pediatrics","Plan",7,"Are policies for release of children from the safe area to parents/guardians/others defined and understood by providers? (e.g. threshold for release, documentation)"]
["Pediatrics","Plan",8]
["Pediatrics","Space",1,"Total PICU beds"]
["Pediatrics","Space",2,"Total NICU beds"]
["Pediatrics","Space",3,"Total dedicated pediatric floor beds (if peds hospitalized on usual medical floors do NOT list these beds)"]
["Pediatrics","Space",4,"Potential increase in number PICU beds without expanding out of usual pediatric space"]
["Pediatrics","Space",5,"# of beds on unit that could be added to single rooms to increase capacity (while still maintaining adequate standard of care/privacy)"]
["Pediatrics","Supplies",1,"This may include patient care cribs and 'pack-n-play' units for temporary safety of small children"]
["Pediatrics","Supplies",2,"Par / stock level including on unit plus central supply"]
["Pediatrics","Supplies",3,"Par / stock level including on unit plus central supply"]
["Pediatrics","Supplies",4,"Should have pediatric masks with them"]
["Pediatrics","Supplies",5,"Par / stock level in central supply plus any cached disaster supplies"]
["Pediatrics","Supplies",6,"Par / stock level in central supply plus any cached disaster supplies"]
["Pediatrics","Supplies",7,"Par / stock level including on unit plus central supply"]
["Pediatrics","Supplies",8,"ONLY if pediatrics uses dedicated pumps (e.g. syringe drivers) - if usual IV pumps used mark '0'"]
["Pediatrics","Supplies",9,"Par / stock level in central supply plus any cached disaster supplies"]
["Pediatrics","Supplies",10,"Are adequate stocks available for disaster use?"]
["Pediatrics","Supplies",11,"Are adequate stocks available for disaster use?"]
["Pediatrics","Supplies",12,"Are wristbands stocked for the pediatric safe area to identify the child and their status?"]
["Pediatrics","Supplies",13,"# of dedicated evacuation sleds or other pediatric-specific evacuation equipment"]
["Renal","Staff",1,"Total staff number (may wish to add comment of % available for no-notice disaster response based on home, other factors)"]
["Renal","Staff",2,"Total staff number (may wish to add comment of % available for no-notice disaster response based on home, other factors) - if these services are contracted number should reflect what can be made available to the facility on 8h notice"]
["Renal","Plan",1,"This may include understanding dialysis provider contingency plans for outpatient dialysis as well as disaster diet recommendations, etc."]
["Renal","Supplies",1,"# present on-site - may indicate in comments whether multiple contractors provide, etc."]
["Renal","Supplies",2,"# of machines "]
["Renal","Supplies",3,"if variable, average number present on site"]
["Renal","Supplies",4,"If facility has on-site purification for dialysis rooms"]
["Renal","Supplies",5,"If leased, average number on-site"]
["Renal","Supplies",6,"Number not necessary - assure adequate to support multiple patients sequentially"]
["Renal","Supplies",7,"# including on unit as well as par/stock level in central supply"]
["Surgical Services","Staff",1,"Total staff number (may wish to add comment of % available for no-notice disaster response based on home, other factors) - include residents if notified and have a role in response"]
["Surgical Services","Staff",2,"Total staff number (may wish to add comment of % available for no-notice disaster response based on home, other factors) - include residents if notified and have a role in response"]
["Surgical Services","Staff",3,"Total staff number (may wish to add comment of % available for no-notice disaster response based on home, other factors) - include residents if notified and have a role in response"]
["Surgical Services","Staff",4,"Total staff number (may wish to add comment of % available for no-notice disaster response based on home, other factors)"]
["Surgical Services","Staff",5,"Total staff number (may wish to add comment of % available for no-notice disaster response based on home, other factors)"]
["Surgical Services","Staff",6,"Total staff number (may wish to add comment of % available for no-notice disaster response based on home, other factors)"]
["Surgical Services","Staff",7,"Total staff number (may wish to add comment of % available for no-notice disaster response based on home, other factors)"]
["Surgical Services","Staff",8,"Total staff number (may wish to add comment of % available for no-notice disaster response based on home, other factors)"]
["Surgical Services","Plan",1,"Is there a notification process for medical staff when an incident occurs? Does it include all relevant job categories? Allow for follow-up event information?"]
["Surgical Services","Plan",2,"Is there a department plan that defines roles and responsibilities in a disaster?"]
["Surgical Services","Plan",3,"Is there a written surge capacity plan for surgery including spaces to be used and in what order?"]
["Surgical Services","Plan",4,"Is there a practiced plan and job aids for care teams to identify patients for early discharge or movement to lower levels of care / holding areas?"]
["Surgical Services","Plan",5,"If the facility provides burn care is there a written surge capacity plan for burn cases including spaces/staffing to be used?"]
["Surgical Services","Plan",6,"Is there a written plan for PACU during a disaster? Do the personnel have relevant training and job aids for these roles?"]
["Surgical Services","Plan",7,"Does sterile supply / processing have a plan to support the OR during disasters including off-hours assistance?"]
["Surgical Services","Space",1,"# beds / bays in PACU and pre-induction for OR area that would be used for emergency procedures"]
["Surgical Services","Space",2,"If separate from above (e.g. same day surgery, etc.)"]
["Surgical Services","Space",3,"Do not need to have all supplies, but could be used on short notice for emergency cases"]
["Surgical Services","Space",4,"# of other OR - do NOT include dedicated OB OR if present"]
["Surgical Services","Space",5,"If combined with medicine floor please only list # under medicine"]
["Surgical Services","Space",6,"# of beds on unit that could be added to single rooms to increase capacity (while still maintaining adequate standard of care/privacy)"]
["Surgical Services","Supplies",1,"# of machines"]
["Surgical Services","Supplies",2,"Must have appropriate alarms and ventilator settings to allow to be used without constant supervision"]
["Surgical Services","Supplies",3,"# of external fixators available on-site (may note in comments time to obtain additional)"]
["Surgical Services","Supplies",4,"Number not necessary - note yes if have considered and increased stock levels as appropriate for disaster response"]
["Surgical Services","Supplies",5,"Number not needed - 'yes' if have disaster supplies in addition to usual stocks - may note specifics in comments or on supply sheet"]
["Surgical Services","Supplies",6,"Number not needed - 'yes' if have disaster supplies in addition to usual stocks - may note specifics in comments or on supply sheet"]
["Surgical Services","Supplies",7,"Number not needed - 'yes' if have disaster supplies in addition to usual stocks - may note specifics in comments or on supply sheet"]
["Surgical Services","Supplies",8,"Available in surgical areas"]
["Surgical Services","Supplies",9,"Available in surgical areas"]
["Surgical Services","Supplies",10,"Available in surgical areas"]
["Surgical Services","Supplies",11,"Does not utilize usual phone system / provides redundant means of reaching OR from ED"]
["Surgical Services","Supplies",12,"Evacuation sleds and other materials dedicated to surgery areas (may note in comments if have adquate carts, etc.)"]
["Blood Bank","Staff",1,"Total staff number (may wish to add comment of % available for no-notice disaster response based on home, other factors)"]
["Blood Bank","Plan",1,"Is there a notification process for blood bank personnel when an incident occurs? "]
["Blood Bank","Plan",2,"Is there a department plan that defines roles and responsibilities in a disaster and how requests for blood products are managed if different from daily practices?"]
["Blood Bank","Plan",3,"Is there a process in place to limit access to blood components when select components are in shortage? (may note in comments regional supplier and timeframe to obtain additional if available)"]
["Blood Bank","Plan",4,"Planning with regional blood bank for disasters? (e.g. 'push' of select blood products to facility on activation)"]
["Blood Bank","Plan",5,"Is there a defined mechanism to contact the regional blood bank if the phone systems are not working?"]
["Blood Bank","Plan",6,"Are blood courier access issues (to facility if law enforcment restricts access to area and into facility if access controlled) addressed?"]
["Blood Bank","Plan",7,"Does the blood bank have special pathogen management plans (e.g. VHF, other laboratory risks)"]
["Blood Bank","Plan",8,"Does the blood bank have a surge staffing plan in place for disasters?"]
["Blood Bank","Supplies",1,"Are any special supplies planned for? (need for additional or larger coolers for disaster supply to ED, etc.)"]
["Facilities_Utilities","Plan",1,"Is there a specific template for assessing the facility for damage after an incident?"]
["Facilities_Utilities","Plan",2,"Is there a notification process for facilities supervisory personnel when an incident occurs? "]
["Facilities_Utilities","Plan",3,"Is there a mechanism to provide the facility with oxygen if the current system fails or is impacted? Are there any issues with suppliers/delivery that could be anticipated?"]
["Facilities_Utilities","Plan",4,"Are there any issues that could arise with waste disposal? (e.g. work stoppage for municipal waste, refusal to take waste from facility hospitalizing special pathogen case)"]
["Facilities_Utilities","Plan",5,"Has the facility worked with it's medical waste disposal contractor to determine necessary contingencies for special pathogen (e.g. VHF) or large-volume disposal issues?"]
["Facilities_Utilities","Plan",6,"Is there an identified plan of action / job aid for elevator failure?"]
["Facilities_Utilities","Plan",7,"Is there an identified plan of action / job aid for HVAC system failure?"]
["Facilities_Utilities","Plan",8,"Is there an identified plan of action / job aid for water pressure loss or contamination?"]
["Facilities_Utilities","Plan",9,"If the facility uses steam is there an identified plan of action / job aid for steam supply/pressure failure?"]
["Facilities_Utilities","Supplies",1,"Are the generators available sufficient for sustained emergency power in conjunction with the HVA (e.g. if infrastructure damage is likely, augmented capability)"]
["Facilities_Utilities","Supplies",2,"Are emergency outlets clearly identified and critical elements on emergency power (e.g. fuel pumps, lab and blood bank refrigerators)?"]
["Facilities_Utilities","Supplies",3,"Is there a mechanism to hook external generators into the hospital system (e.g. electrical harness)?"]
["Facilities_Utilities","Supplies",4,"Is adequate potable water available on-site for contingencies (congruent in duration with HVA/potential for community infrastructure damage)?"]
["Facilities_Utilities","Supplies",5,"Is basic equipment readily available on-site for a structural damage event (e.g. 'hotstick' for live electrical lines, pry bars, bolt cutters, and PPE such as work gloves, helmets, etc.)"]
["Facilities_Utilities","Supplies",6,"Fuel available should be able to sustain facility for period of time consistent with HVA potential for power and supply disruption"]
["Facilities_Utilities","Other Issues",1,"If applicable, is sewer backflow protection in place? If not, are contingency plans?"]
["Facilities_Utilities","Other Issues",2,"Is there a well on-site? If so and if it is a contingency, is plumbing appropriate and testing available to rapidly utilize?"]
["Facilities_Utilities","Other Issues",3,"Has an analysis of the electrical system been conducted to determine vulnerability to flooding, electrical current surge, and other issues?"]
["Facilities_Utilities","Other Issues",4,"Are boilers and other HVAC elements on back-up power? If not, are there contingency plans to maintain comfort/safety?"]
["Facilities_Utilities","Other Issues",5,"Are fuel pumps (including any vehicular pumps) on back-up generator or have alternate power supply?"]
["Facilities_Utilities","Other Issues",6,"Is adequate bottled oxygen available for disaster needs? (potentially including loss of oxygen pressure to part/all of facility)"]
["Facilities_Utilities","Other Issues",7,"Is there piping in place to support contingency external liquid oxygen supply if the hospital system is damaged?"]
["Infection Prev and Cont","Staff",1,"Total staff number (not based on FTE for infection prevention)"]
["Infection Prev and Cont","Plan",1,"Does the facility have special pathogen plans to address VHF and SARS/MERS individual case events?"]
["Infection Prev and Cont","Plan",2,"Does the facility have a pandemic/epidemic plan to address large-scale events?"]
["Infection Prev and Cont","Plan",3,"Does the facility have a surge plan for patients requiring isolation if the number of AIIR rooms is insufficient?"]
["Infection Prev and Cont","Plan",4,"Is there a plan in place to screen/triage large numbers of individuals seeking evaluation?"]
["Infection Prev and Cont","Plan",5,"Is there a plan to provide large-scale staff prophylaxis or vaccination should the need arise?"]
["Infection Prev and Cont","Plan",6,"Are plans in place for staff screening / monitoring after exposure to special pathogens?"]
["Infection Prev and Cont","Space",1,"Number of AIIR rooms"]
["Infection Prev and Cont","Space",2,"# of beds on unit that could be added to AIIR rooms to increase capacity (while still maintaining adequate standard of care/privacy)"]
["Infection Prev and Cont","Supplies",1,"# N95 masks on hand"]
["Infection Prev and Cont","Supplies",2]
["Infection Prev and Cont","Supplies",3]
["Infection Prev and Cont","Supplies",4,"# of special pathogen kits (e.g. for VHF use if developed by facility)"]
["Infection Prev and Cont","Supplies",5,"# of impermeable suits / barrier gowns for special pathogen use"]
["Infection Prev and Cont","Supplies",6,"# of PAPRs for infection prevention use"]
["IT_Communications","Plan",1,"including critical servers and systems on-site"]
["IT_Communications","Plan",2,"including backup or 'failover' to external system and access during outage"]
["IT_Communications","Plan",3,"including any off-site or other contingencies"]
["IT_Communications","Plan",4,"including any off-site or other contingencies"]
["IT_Communications","Plan",5,"including backup or 'failover' to external system and access during outage"]
["IT_Communications","Plan",6,"Including any contingency plans for access (and prioritization for use) should T1 lines or other usual connectivity fail"]
["IT_Communications","Plan",7,"Is there a system/plan to provide staff up-to-date information about emergency events? Are the authorities/access to this system detailed?"]
["IT_Communications","Plan",8,"Is there a plan in case the staff information/notification systems fail?"]
["IT_Communications","Plan",9,"Does the facility have a plan for internal phone system failure?"]
["IT_Communications","Plan",10,"Does the facility have a plan for external phone system failure? (also, is the hospital a priority for service restoration if it is an external, and not a switchboard issue?)"]
["IT_Communications","Plan",11,"Is there a plan to deal with denial of service, robo-calling, secure information breaches?"]
["IT_Communications","Plan",12,"Does capability exist to print patient summaries if the facility is evacuating? Can this be done from off-site, in batches by unit, etc?"]
["IT_Communications","Plan",13,"Is the on-call or other designated IT supervisor notified when a disaster is declared at the facility?"]
["IT_Communications","Supplies",1,"Is critical information backed up off-site and is there fail-over access?"]
["IT_Communications","Supplies",2,"Is there a system that can notify all staff on-site as well as a process to notify key individuals off-site?"]
["IT_Communications","Supplies",3,"Is there an overhead paging system that can be heard througout the facility?"]
["IT_Communications","Supplies",4,"Are there visual alert systems on campus?"]
["IT_Communications","Supplies",5,"Are there contingencies in place for internal and external web-hosting problems?"]
["Lab","Staff",1,"Total staff number (may wish to add comment of % available for no-notice disaster response based on home, other factors)"]
["Lab","Staff",2,"Total staff number (may wish to add comment of % available for no-notice disaster response based on home, other factors)"]
["Lab","Plan",1,"Is there a notification process for laboratory supervisory personnel when an incident occurs? "]
["Lab","Plan",2,"Does the lab have a surge capacity plan to expedite/simplify processes, provide point-of-care testing augmentation, and/or prioritize certain types of labs / labs from certain areas during a disaster?"]
["Lab","Plan",3,"Are there any plans or a process to restrict availability of certain lab services during a disaster? (e.g. only specific labs will be run during a disaster to prioritize critical labs for the ED, critical care, and surgical services)"]
["Lab","Plan",4,"Are there plans in place for emergency couriers? (e.g. sending samples to public health for special pathogen testing)"]
["Lab","Plan",5,"Does the lab have a plan for management of potential  special pathogen samples including VHF, CJD, and others that may pose a potential handling threat?"]
["Lab","Plan",6,"Does the lab have a staffing surge capacity plan? (e.g. call-in of staff, re-assignment of supervisors to clinical services, etc.)"]
["Lab","Supplies",1,"Especially for point-of-care testing in special pathogen and disaster situations (e.g. iSTAT)"]
["Lab","Supplies",2,"Is there a contingency plan / cache to address increased demand on specific labs during a disaster? (e.g. blood gas, chem panel, hemoglobin/CBC, etc.)"]
["Lab","Supplies",3]
["Nutrition Services","Staff",1,"Total staff number (may wish to add comment of % available for no-notice disaster response based on home, other factors)"]
["Nutrition Services","Staff",2,"Total staff number of staff (may wish to add comment of % available for no-notice disaster response based on home, other factors)"]
["Nutrition Services","Plan",1,"Is there a notification process for nutrition services supervisory personnel when an incident occurs? "]
["Nutrition Services","Plan",2,"Are there menus for staff disaster meals if food supply is interrupted for up to 96h or consistent with HVA risks for infrastructure disruption?"]
["Nutrition Services","Plan",3,"Are there menus for patient disaster meals if food supply is interrupted for up to 96h or consistent with HVA risks for infrastructure disruption? (including renal, pediatric, and other special diets)"]
["Nutrition Services","Plan",4,"Does the facility have a plan if usual vendors cannot supply food? (e.g. contracts with other vendors, alternate supply sources)"]
["Nutrition Services","Supplies",1,"Is adequate food available to support the disaster menus congruent with the HVA and/or 96h without outside support?"]
["Nutrition Services","Supplies",2,"Is there an increased par / stock level for usual enteral nutritional feeds (e.g. tube feedings)"]
["Nutrition Services","Supplies",3,"Is there an increased par / stock level for usual parenteral nutritional feeds for disaster use if the facility cannot take or doesn't receive usual deliveries?"]
["Nutrition Services","Supplies",4,"Is plastic or paperware available in case dishes cannot be easily done?"]
["Nutrition Services","Supplies",5,"Are water coolers or bottled water available for areas that might need it during a heat emergency?"]
["Nutrition Services","Supplies",6,"Are ice chests and crushed ice available to place in the ED during a heat emergency?"]
["Nutrition Services","Supplies",7,"May be listed under pediatrics - does not need to be inventoried by both - inventory of 'usual' not specialty formulas"]
["Nutrition Services","Supplies",8,"And/or ability to make pureed food for babies (or may use as alternative enteral feeding as well)"]
["Nutrition Services","Supplies",9]
["Pharmacy","Staff",1,"Total staff number (may wish to add comment of % available for no-notice disaster response based on home, other factors)"]
["Pharmacy","Staff",2,"Total staff number (may wish to add comment of % available for no-notice disaster response based on home, other factors)"]
["Pharmacy","Staff",3,"Total staff number (may wish to add comment of % available for no-notice disaster response based on home, other factors)"]
["Pharmacy","Plan",1,"Is there a notification process for pharmacy supervisory personnel and/or general personnel when an incident occurs? "]
["Pharmacy","Plan",2,"Does the pharmacy have a disaster or surge plan that addresses expansion of operations (inpatient and outpatient), staffing, and prioritization of services?"]
["Pharmacy","Plan",3,"Is there a pull list that is immediately delivered to the ED during a disaster?"]
["Pharmacy","Plan",4,"What is the role of the facility in the local/state Chempack plan? (e.g. host, receiver, activation, delivery, etc. processes)"]
["Pharmacy","Plan",5,"Is there a mass dispensing plan for employees / exposed persons during a disaster requiring prophylaxis?"]
["Pharmacy","Plan",6,"Does the distributor have a 'pull list' to automatically send to the facility when they are notified the facility has declared a disaster?"]
["Pharmacy","Plan",7,"If so, is there a means of activating this process if the phone systems are down?"]
["Pharmacy","Supplies",1,"Answer yes/no if increased stock/par levels are maintained for disaster use and details may be entered onto pharmacy spreadsheet in the RVA"]
["Pharmacy","Supplies",2,"Answer yes/no if increased stock/par levels are maintained for disaster use and details may be entered onto pharmacy spreadsheet in the RVA"]
["Pharmacy","Supplies",3,"Answer yes/no if increased stock/par levels are maintained for disaster use and details may be entered onto pharmacy spreadsheet in the RVA"]
["Pharmacy","Supplies",4,"Answer yes/no if increased stock/par levels are maintained for disaster use and details may be entered onto pharmacy spreadsheet in the RVA"]
["Pharmacy","Supplies",5,"Answer yes/no if increased stock/par levels are maintained for disaster use and details may be entered onto pharmacy spreadsheet in the RVA"]
["Pharmacy","Supplies",6,"Answer yes/no if increased stock/par levels are maintained for disaster use and details may be entered onto pharmacy spreadsheet in the RVA"]
["Pharmacy","Supplies",7,"Answer yes/no if increased stock/par levels are maintained for disaster use and details may be entered onto pharmacy spreadsheet in the RVA"]
["Pharmacy","Supplies",8,"Answer yes/no if increased stock/par levels are maintained for disaster use and details may be entered onto pharmacy spreadsheet in the RVA"]
["Pharmacy","Supplies",9,"Answer yes/no if increased stock/par levels are maintained for disaster use and details may be entered onto pharmacy spreadsheet in the RVA"]
["Radiology","Staff",1,"Total staff number (may wish to add comment of % available for no-notice disaster response based on home, other factors)"]
["Radiology","Staff",2,"Total staff number (may wish to add comment of % available for no-notice disaster response based on home, other factors)"]
["Radiology","Staff",3,"Total staff number (may wish to add comment of % available for no-notice disaster response based on home, other factors)"]
["Radiology","Staff",4,"Total staff number (may wish to add comment of % available for no-notice disaster response based on home, other factors)"]
["Radiology","Plan",1,"Is there a notification process for radiology supervisory personnel and/or general personnel when an incident occurs? "]
["Radiology","Plan",2,"Is there a surge plan for radiology services? (e.g. plan to bring in or redeploy techs, target services supporting ED, OR, critical care)"]
["Radiology","Plan",3,"Are there procedure rooms (IR, special procedure, recovery areas) that are incorporated into the disaster surge plan?"]
["Radiology","Plan",4,"Is there a plan for communications between ED / CT areas and with techs if the phone system fails?"]
["Radiology","Plan",5,"Is there a plan to restrict available services during a no-notice disaster? (e.g. restrict availability of certain studies)"]
["Radiology","Space",1,"# of patient care spaces that could be used for surge if needed"]
["Radiology","Supplies",1,"Communication assets that are designated to radiology (portable radios, etc.)"]
["Radiology","Supplies",2,"# portable c-arms"]
["Radiology","Supplies",3,"# portable xray machines"]
["Radiology","Supplies",4,"# US machines"]
["Radiology","Supplies",5,"# CT scanners"]
["Radiology","Supplies",6,"# MR scanners"]
["Radiology","Supplies",7,"# G-M counters on-site"]
["Radiology","Supplies",8,"Are lead pigs available for disposal of radioactive fragments if needed?"]
["Radiology","Supplies",9,"Are CT scanners on back-up power?"]
["Radiology","Supplies",10,"Are generator outlets available for portable xray machines to plug into?"]
["Resp Care_Bioelectronics","Staff",1,"Total staff number (may wish to add comment of % available for no-notice disaster response based on home, other factors)"]
["Resp Care_Bioelectronics","Plan",1,"Are respiratory therapists included in disaster call-backs?"]
["Resp Care_Bioelectronics","Supplies",1,"# of full-featured ventilators available (if some leased may report average)"]
["Resp Care_Bioelectronics","Supplies",2,"Should include ONLY infant/neonate - not full featured capable of infant ventilation"]
["Resp Care_Bioelectronics","Supplies",3,"# transport ventilators in facility"]
["Resp Care_Bioelectronics","Supplies",4]
["Resp Care_Bioelectronics","Supplies",5,"Number of ventilator circuits available in-stock"]
["Resp Care_Bioelectronics","Supplies",6,"# BiPAP machines available (may include average leased)"]
["Resp Care_Bioelectronics","Supplies",7,"# oximeters available for use - portable, NOT integrated into other monitors"]
["Resp Care_Bioelectronics","Supplies",8,"Include only room/wall mounted units kept in reserve"]
["Resp Care_Bioelectronics","Supplies",9,"May include transport cardiac monitors as well as any in disaster supplies - do not include code cart monitors"]
["Resp Care_Bioelectronics","Supplies",10,"# available IV pumps (standard pumps)"]
["Resp Care_Bioelectronics","Supplies",11,"# available syringe pumps/other specialty pumps"]
["Resp Care_Bioelectronics","Supplies",12,"# portable oxygen cylinders on-site"]
["Resp Care_Bioelectronics","Supplies",13,"Any multi-port oxygen manifolds for disaster use?"]
["Safety and Security","Staff",1,"Total staff number (may wish to add comment of % available for no-notice disaster response based on home, other factors)"]
["Safety and Security","Plan",1,"Does the facility have an active shooter response plan (both security and other employee actions)?"]
["Safety and Security","Plan",2,"Does the security staff have a plan to address hostage / barricade situations?"]
["Safety and Security","Plan",3,"Does security/safety staff have a plan if the facility is damaged (bomb, tornado, etc.)?"]
["Safety and Security","Plan",4,"Is an access control plan in place (including triggers, degree of restrictions, authorities)?"]
["Safety and Security","Plan",5,"Is a patient abduction plan in place including security and general employee actions?"]
["Safety and Security","Plan",6,"Is a bomb threat / suspicious package  plan in place?"]
["Safety and Security","Plan",7,"Do staff have access to safety/security education?"]
["Safety and Security","Plan",8,"Is there a surge / augmentation plan for security (including facility as well as law enforcement supplementation)"]
["Safety and Security","Plan",9,"Does the facility maintain a threat/event log and conduct analysis of the log to identify issues to address?"]
["Safety and Security","Supplies",1,"# of sets of PPE for chemical protection that the facility has for security staff"]
["Safety and Security","Supplies",2,"Crowd control supplies such as barrier tape, cones, signage, tensa-barriers, etc."]
["Safety and Security","Supplies",3,"Can entrance doors be electronically locked if needed?"]
["Safety and Security","Supplies",4]
["Safety and Security","Supplies",5,"# of radios avaialble for security officers (are additional available for surge use?)"]
["Safety and Security","Supplies",6,"Are helmets, gloves, and other basic PPE available to on-site staff if needed?"]
["Safety and Security","Supplies",7,"# first aid kits security maintains for response to perimeter injuries/issues"]
["Safety and Security","Supplies",8,"Is emergency lighting sufficient in critical areas - stairwells, OR, etc."]
["Safety and Security","Supplies",9]
["Safety and Security","Supplies",10,"# flashlights / headlamps designated for disaster use"]
["Safety and Security","Supplies",11,"Are panic alarms available to staff in key areas (greeting desks, psychiatry, etc.)"]
["Safety and Security","Supplies",12,"Is the campus video surveillance system adequate? (coverage, monitoring, recording)"]
["Sterile Supply","Staff",1,"Total staff number (may wish to add comment of % available for no-notice disaster response based on home, other factors)"]
["Sterile Supply","Staff",2,"Total staff number usually assigned to day shift"]
["Sterile Supply","Staff",3,"Total staff number usually assigned to evening shift"]
["Sterile Supply","Staff",4,"Total staff number usually assigned to night shift"]
["Sterile Supply","Supplies",1,"# trays"]
["Sterile Supply","Supplies",2,"# trays"]
["Sterile Supply","Supplies",3,"# trays"]
["Sterile Supply","Supplies",4,"# trays"]
["Sterile Supply","Supplies",5,"# trays"]
["Sterile Supply","Supplies",6,"# trays"]
["Sterile Supply","Supplies",7]
["Storeroom","Staff",1,"Total staff number (may wish to add comment of % available for no-notice disaster response based on home, other factors)"]
["Storeroom","Staff",2,"Total staff number usually assigned to day shift"]
["Storeroom","Staff",3,"Total staff number usually assigned to evening shift"]
["Storeroom","Staff",4,"Total staff number usually assigned to night shift"]
["Storeroom","Plan",1,"Is there a written pull list or disaster supply that is immediately brought to the ED or other specified area during a disaster"]
["Storeroom","Plan",2,"Does your supply distributor have a 'push' list of supplies in a disaster?"]
["Storeroom","Plan",3,"Is there a plan for off-hours staffing to allow specified disaster or other needed supplies to be obtained?"]
["Storeroom","Supplies",1,"Y/N if present - number is not needed - supplies may be listed on attached worksheets"]
["Storeroom","Supplies",2,"Y/N if present - number is not needed - supplies may be listed on attached worksheets"]
["Storeroom","Supplies",3,"Y/N if present - number is not needed - supplies may be listed on attached worksheets"]
["Storeroom","Supplies",4,"Y/N if present - number is not needed - supplies may be listed on attached worksheets"]
["Transportation","Staff",1,"Total staff number (may wish to add comment of % available for no-notice disaster response based on home, other factors)"]
["Transportation","Plan",1,"Is there an off-hours plan to obtain the transport carts and WC and provide staff?"]
["Transportation","Supplies",1,"# of carts under transportation control"]
["Transportation","Supplies",2,"# of WC under transportation control"]

{"sheet":"Starting The Process","index":3,"n_rows":78,"n_cols":6,"rows_kept":78,"cut":false,"hidden":true,"merged":[[57,2,57,6],[6,2,6,6],[3,3,3,5],[25,2,25,6]]}
[]
[]
[]
[null,null,null,"Starting The Process"]
[]
[]
[null,null,"Instructions For Use"]
[]
[null,null,null,"Purpose",null,"The Resource Vulnerability Analysis (RVA) provides the healthcare facility information about the adequacy of their resources for incident response as well as gaps and priorities to improve preparedness."]
[]
[]
[null,null,null,"Planning Cycle",null,"The RVA is intended to be used in iterative fashion to provide an annual assessment. Thus, the initial investment in time to complete the tool is not repeated in future years, but provides an opportunity across the facility to evaluate changes over the course of the year. This process should improve accuracy of data, facilitate gap tracking, evaluate gap closure, and identify new gaps as well as the priority to address them."]
[]
[]
[null,null,null,"Process",null,"a. The emergency manager should save a copy of the tool (e.g., ‘yourhospital.RVA.xls’) and familiarize him/herself with the contents of the tool. "]
[null,null,null,null,null,"b. The tool should be introduced to the facility emergency management committee and the appropriate supervisors identified to complete the individual sections. An approach to setting the goal/target levels should be developed – this may involve the supervisors themselves as well as key members of the committee and the emergency manager and is facility-dependent."]
[null,null,null,null,null,"c. The emergency manager should send the tool to the designated supervisors and ask them to complete their section within a defined timeframe. If the supervisors have questions about interpretation of a row they should first click on the information icon adjacent the row label (small ‘i’ in blue). Face-to-face meetings may be needed with some of the supervisors to determine their target / goal values."]
[null,null,null,null,null,"d. The supervisors populate their datasheets and should change the filename to reflect either their name or functional area (e.g. ‘yourhospital.lab.xls’ or ‘yourhospital.smith.xls’)."]
[null,null,null,null,null,"e. As other questions arise, the emergency manager can work with the supervisor to interpret and address them. If the facility has unique resource issues not reflected in the document, new rows can be added BY THE EMERGENCY MANAGER to track relevant data by clicking the ‘add row’ button on the appropriate data sheet in the Master document ONLY."]
[null,null,null,null,null,"f. As the supervisors return their data sheets, the emergency manager should import the data by clicking on the 'import data' gray button and then identifying the file to import.  The manager should assure that the import was successful. Multiple sheets cannot be selected at one time. "]
[null,null,null,null,null,"g. The emergency manager should review the received data and share with the facility emergency management committee. Some answers (including rankings) may need clarification and/or vetting."]
[null,null,null,null,null,"h. The results of the RVA should be shared with the committee as well as with administration. The emergency management committee can then develop an action plan to address prioritized gaps."]
[null,null,null,null,null,"i. The following year, the process is repeated, though since the supervisors receive the prior year’s completed sheets, most categories require simple verification or updating. Administration and the emergency management committee can thus see, on a yearly basis, their progress in closing gaps as well as recognize new deficiencies."]
[]
[]
[null,null,"Points to Consider"]
[]
[null,null,null,"Initial RVA - investment of time",null,"Based on initial experience, the first implementation of the tool requires an investment of time to orient supervisors to the tool and validate the initial data. The emergency manager should plan to spend about 2 hours initially reviewing the tool, 1 hour to introduce the tool to the EM committee and email to the area supervisors (along with an introductory email), 2 hours responding to questions from the supervisors, and about 6-8h vetting information that is provided. This is followed by presentation of the material to the emergency management committee and administration – which varies depending on whether this is a joint meeting and how much discussion about the facility priorities follows."]
[]
[]
[null,null,null,"Subsequent year RVA",null,"As supervisors and the committee are familiar with the process and tool, the emergency manager sends out the prior year’s file for updating. Supervisors may spend as little as a few minutes or may require additional time to vet supply levels, re-calculate bed numbers after construction, or otherwise validate and update their data. Review and prioritization time is relatively consistent year-to-year. "]
[]
[]
[null,null,null,"Health system / coalition sharing",null,"Facilities are encouraged to share the Summary page with their coalition and health system as applicable. The summary sheets can be collated and examined as a way to address global priorities. For example, if a majority of facilities identify a gap in mental health preparedness, a workgroup at the health system or coalition level could address some of these issues in a uniform fashion. This data may also be helpful to justify investment of time and funding from both grants and private sources. The coalition / system tool can be used to import summary sheets from multiple facilities and display them in aggregate."]
[]
[]
[null,null,null,"Vetting of inputs",null,"In some cases, supervisors may either over or under-estimate ranking within the worksheets based on mis-understanding or mis-perception of risk, impact, etc. This may skew priority calculation. The emergency manager should be alert to this in reviewing the sheets. Discussion and justification of the numbers with the supervisor should lead to a consensus answer. In areas of uncertainty or conflict of opinion, the emergency manager should have ultimate authority over the final answers but should reflect the discussion and issues to the emergency management committee."]
[]
[]
[null,null,null,"Corrective / gap closure actions",null,"Actions should be as specific as possible and detailed in the ‘notes’ section after each entry, with additional discussion/elaboration as needed in at the bottom of each page or outside the tool with the emergency manager. "]
[]
[]
[null,null,null,"Setting target levels / goals",null,"In some cases the supervisor will have little control over altering the actual number / resources available and that should be identified in the ‘notes’ section of the document"]
[]
[]
[null,null,null,"Facilities cannot delete or modify existing lines",null,"If there is a specific variable or resource that is not listed, the Emergency Manager may add rows to the sheets by clicking on the ' add new critiera' button. These changes may ONLY be made in the Master document at the facility (and then shared with supervisors) or the data will not be imported. These new critiera will be reflected in the facility summary. If the line does not apply to the facility they may omit that line but cannot actually delete it."]
[]
[]
[null,null,null,"Pharmacy and supply specific lists",null,"These lists at the bottom of the page are provided for convenience only and are not intended to reflect expected supplies or categories of supplies. Facilities can modify these or import other existing Excel or .csv files as needed to configure these to their needs and add additional supply lists as needed to keep relevant preparedness resource data within the tool. "]
[]
[]
[null,null,null,"Development and Suggestions",null,"This tool has recently been developed with the assistance of the Healthcare Preparedness Program grant under the Health and Human Services Office of the Assistant Secretary for Preparedness and Response (HHS/ASPR) and will need modification and enhancements over time. Please provide suggestions for improvement as well as your contact information tohpp@hhs.gov orcontact your Field Project Officer (FPO) so that we may continue to improve the tool. "]
[]
[]
[null,null,null,"Use of Tool",null,"This tool is offered by the HPP program solely for voluntary use by healthcare facilities to improve their preparedness programs. The program exists in the public domain and may not be sold or used for commercial activities."]
[]
[]
[null,null,"Frequently Asked Questions"]
[]
[null,null,null,"What is this tool? ",null,"The Resource Vulnerability Analysis (RVA) is a tool that healthcare facilities can use to look at the broad range of resources (plans, equipment, staff) that they have in a number of different areas (clinical and support categories are represented) to determine where gaps exist between what they believe they should have and what they currently have."]
[]
[]
[null,null,null,"Why was it developed? ",null,"Emergency managers complete an annual Hazard Vulnerability Analysis (HVA) that helps globally to prioritize exercise scenarios and preparedness activities, but did not fulfill a need to communicate specific gaps to administration nor prioritize activities to address deficiencies. Gaps often were prioritized based on subjective factors or interest level, and did not correlate with actual resources available to meet that hazard. Further, there was no way to track and prioritize gaps and progress closing them over time."]
[]
[]
[null,null,null,"Is this different than an HVA? ",null,"Yes, though the format and calculations may look familiar the RVA looks at the resources available at the facility rather than looking at the hazard that may cause an incident. In future versions of the tool, we may be able to link specific hazards to the resources likely to be needed during a response to generate an integrated report. However, at present the RVA is designed as an ‘all-hazard’ tool assessing the gaps at the facility level."]
[]
[]
[null,null,null,"Why should I use it? ",null,"The RVA helps identify gaps in current planning and resources at the facility and uses variables such as likelihood of use of the resource, impact, risk, current preparedness, and cost to close the gap to determine values for overall and cost-adjusted priority. This gives the emergency manager, administration, and the emergency management committee a ranked list of priority areas to address. When used in a yearly cycle, the tool should be able to demonstrate gap closure as well as drive yearly priorities for the committee. Optimally, the tool can be used to help justify time and funding investment from administration to accomplish gap closure."]
[]
[]
[null,null,null,"Won’t it take a lot of time? ",null,"The initial application of the RVA does take time. The emergency manager in particular will need to spend time with the committee and the supervisors assuring that the goals are appropriately set and the data being inputted is valid. Fortunately, the data entry and specific needs are distributed across a range of individuals. Once this initial investment of time is completed the data carries over to the following year, making the time to complete or update the data far less. The benefit is a standardized, yearly process for assessing resource gaps and priorities that can drive work plans at the facility and can also identify common coalition/health system level gaps for attention."]
[]
[]
[null,null,null,"Who was this designed for? ",null,"The RVA was designed for hospitals, and in particular, larger facilities. The information contained is relevant to smaller facilities, but the tool may need modification in the future to better meet their specific needs."]
[]
[]
[null,null,null,"Who sets the goals? ",null,"The hospital determines their threshold for the resource need. This may vary depending on the hospital role in the community (single hospital, trauma center, children’s/specialty facility, etc.) Thus, there is the potential that the hospital could set low goals and make it easier to achieve them, but the supervisors are ultimately accountable to assure that realistic targets are set."]

{"sheet":"Hospital Information","index":4,"n_rows":29,"n_cols":8,"rows_kept":29,"cut":false,"hidden":true,"merged":[[20,2,20,10],[13,2,13,10],[6,2,6,10],[3,3,3,9]]}
[]
[]
[]
[null,null,null,"Hospital Basic Information"]
[]
[]
[null,null,"Hospital Information"]
[]
[null,null,null,"Hospital Name",null,null,null,"Date (mm/dd/yyyy)"]
[]
[null,null,null,"Hospital Address",null,null,null,"Hospital State"]
[]
[]
[null,null,"Point of Contact Information"]
[]
[null,null,null,"Name",null,null,null,"POC Email"]
[]
[null,null,null,"POC Phone Number"]
[]
[]
[null,null,"Details on Hospital"]
[]
[null,null,null,"Operating Beds (number of beds)",null,null,null,"Hospital Trauma Level (1-4)"]
[]
[null,null,null,"Average Occupancy (number of beds)"]
[]
[null,null,null,"Average Beds Available",null,{"$f":"F23-F25","v":0}]
[]
[null,null,null,"Average % Beds Occupied",null,{"$f":"IFERROR(F25/F23,\"N/A\")","v":"N/A"}]

{"sheet":"Summary","index":5,"n_rows":35,"n_cols":8,"rows_kept":35,"cut":false,"hidden":true,"merged":[[3,3,3,7],[6,2,6,8],[19,2,19,8],[26,2,26,8],[31,2,31,8]]}
[]
[]
[]
[null,null,null,"Summary Report"]
[]
[]
[null,null,"Conventional"]
[]
[null,null,null,"Delta of Operational vs Occupied Average Beds",null,null,{"$f":"'Hospital Information'!F27","v":0}]
[]
[null,null,null,"ICU beds that could be doubled",null,null,{"$f":"'Critical Care'!G33+'Critical Care'!G35","v":0}]
[]
[null,null,null,"Stepdown beds that could be doubled",null,null,{"$f":"'Medical Services'!G31+'Medical Services'!G33","v":0}]
[]
[null,null,null,"Telemetry beds that could be doubled",null,null,{"$f":"'Medical Services'!G35+'Medical Services'!G37","v":0}]
[]
[null,null,null,"Floor beds that could be doubled",null,null,{"$f":"'Medical Services'!G39+'Medical Services'!G41","v":0}]
[]
[]
[null,null,"Contingency"]
[]
[null,null,null,"Pre and post-anesthesia care area beds",null,null,{"$f":"'Surgical Services'!G59+'Surgical Services'!G61","v":0}]
[]
[null,null,null,"Procedure area beds",null,null,{"$f":"'Medical Services'!G47+Radiology!G39","v":0}]
[]
[]
[null,null,"Crisis"]
[]
[null,null,null,"Cots",null,null,{"$f":"'Medical Services'!G45","v":0}]
[]
[]
[null,null,"Gaps"]
[]
[null,null,null,"Gap","Overall Priority","Priority related to Cost","Department","Category"]
[null,null,null,"None"]

{"sheet":"Emer Mgmt and Surge Cap","index":6,"n_rows":113,"n_cols":30,"rows_kept":113,"cut":false,"hidden":false,"merged":[[113,2,113,30],[3,3,3,29],[109,2,109,3],[110,2,110,30],[112,2,112,3],[5,10,5,11],[5,13,5,21],[7,3,7,4],[7,19,7,21],[7,26,7,28],[7,6,7,11]]}
[]
[]
[]
[null,null,null,"Hospital Resource Vulnerability Assessment (RVA) - Emergency Management and Surge Capacity"]
[]
[null,null,null,null,null,null,null,null,null,null,"Hospital:",null,null,{"$f":"IF('Hospital Information'!F9=\"\",\"\",'Hospital Information'!F9)","v":""}]
[]
[null,null,null,"Name of person completing:",null,null,null,null,null,null,null,null,null,"Phone :",null,null,null,"Email:",null,null,null,null,null,null,"Date:",null,null,null,null,"(mm/dd/yyyy)"]
[]
[]
[null,null,null,"Category",null,null,"Current",null,"Goal",null,"Goal Met",null,null,"(L) Likelihood of activation /use in incident",null,"(I) Impact",null,"(R) Risk to life / operations if deficient",null,"(CP) Current preparedness",null,"(Cost) Cost to close gap including supplies and training",null,null,"Overall Priority = L + I + R + CP",null,"Priority related to Cost = \nOverall Priority * Cost",null,null,"Gap Closure Solution and Notes"]
[]
[null,null,"Staff (#)"]
[]
[null,null,null,"Housekeeping Staff"]
[]
[null,null,null,"HCAs, other clinical support"]
[]
[]
[null,null,"Plans (Y / N / In development)"]
[]
[null,null,null,"HVA",null,null,null,null,null,null,"[Select]",null,null,"[Select]",null,"[Select]",null,"[Select]",null,"[Select]",null,"[Select]",null,null,{"$f":"IFERROR((LEFT(N22,1)+LEFT(P22,1)+LEFT(R22,1)+LEFT(T22,1)),\"\")","v":""},null,{"$f":"IFERROR(IF(LEFT(V22,1)=\"1\",Y22*1,IF(LEFT(V22,1)=\"2\",Y22*0.75,IF(LEFT(V22,1)=\"3\",Y22*0.5,\"\"))),\"\")","v":""}]
[]
[null,null,null,"EOP",null,null,null,null,null,null,"[Select]",null,null,"[Select]",null,"[Select]",null,"[Select]",null,"[Select]",null,"[Select]",null,null,{"$f":"IFERROR((LEFT(N24,1)+LEFT(P24,1)+LEFT(R24,1)+LEFT(T24,1)),\"\")","v":""},null,{"$f":"IFERROR(IF(LEFT(V24,1)=\"1\",Y24*1,IF(LEFT(V24,1)=\"2\",Y24*0.75,IF(LEFT(V24,1)=\"3\",Y24*0.5,\"\"))),\"\")","v":""}]
[null,null,null,null,null,null,null,null,null,null,null,null,null,null,null,null,null,null,null,null,null,null,null,null,null,null,null,null,null," "]
[null,null,null,"HICS implementation / \ntraining",null,null,null,null,null,null,"[Select]",null,null,"[Select]",null,"[Select]",null,"[Select]",null,"[Select]",null,"[Select]",null,null,{"$f":"IFERROR((LEFT(N26,1)+LEFT(P26,1)+LEFT(R26,1)+LEFT(T26,1)),\"\")","v":""},null,{"$f":"IFERROR(IF(LEFT(V26,1)=\"1\",Y26*1,IF(LEFT(V26,1)=\"2\",Y26*0.75,IF(LEFT(V26,1)=\"3\",Y26*0.5,\"\"))),\"\")","v":""}]
[null,null,null,null,null,null,null,null,null,null,null,null,null,null,null,null,null,null,null,null,null,null,null,null,null,null,null,null,null," "]
[null,null,null,"COOP plan",null,null,null,null,null,null,"[Select]",null,null,"[Select]",null,"[Select]",null,"[Select]",null,"[Select]",null,"[Select]",null,null,{"$f":"IFERROR((LEFT(N28,1)+LEFT(P28,1)+LEFT(R28,1)+LEFT(T28,1)),\"\")","v":""},null,{"$f":"IFERROR(IF(LEFT(V28,1)=\"1\",Y28*1,IF(LEFT(V28,1)=\"2\",Y28*0.75,IF(LEFT(V28,1)=\"3\",Y28*0.5,\"\"))),\"\")","v":""}]
[]
[null,null,null,"Leadership succession",null,null,null,null,null,null,"[Select]",null,null,"[Select]",null,"[Select]",null,"[Select]",null,"[Select]",null,"[Select]",null,null,{"$f":"IFERROR((LEFT(N30,1)+LEFT(P30,1)+LEFT(R30,1)+LEFT(T30,1)),\"\")","v":""},null,{"$f":"IFERROR(IF(LEFT(V30,1)=\"1\",Y30*1,IF(LEFT(V30,1)=\"2\",Y30*0.75,IF(LEFT(V30,1)=\"3\",Y30*0.5,\"\"))),\"\")","v":""}]
[]
[null,null,null,"Mass casualty",null,null,null,null,null,null,"[Select]",null,null,"[Select]",null,"[Select]",null,"[Select]",null,"[Select]",null,"[Select]",null,null,{"$f":"IFERROR((LEFT(N32,1)+LEFT(P32,1)+LEFT(R32,1)+LEFT(T32,1)),\"\")","v":""},null,{"$f":"IFERROR(IF(LEFT(V32,1)=\"1\",Y32*1,IF(LEFT(V32,1)=\"2\",Y32*0.75,IF(LEFT(V32,1)=\"3\",Y32*0.5,\"\"))),\"\")","v":""}]
[]
[null,null,null,"Mass fatality / morgue",null,null,null,null,null,null,"[Select]",null,null,"[Select]",null,"[Select]",null,"[Select]",null,"[Select]",null,"[Select]",null,null,{"$f":"IFERROR((LEFT(N34,1)+LEFT(P34,1)+LEFT(R34,1)+LEFT(T34,1)),\"\")","v":""},null,{"$f":"IFERROR(IF(LEFT(V34,1)=\"1\",Y34*1,IF(LEFT(V34,1)=\"2\",Y34*0.75,IF(LEFT(V34,1)=\"3\",Y34*0.5,\"\"))),\"\")","v":""}]
[]
[null,null,null,"Surge capacity - inpatient",null,null,null,null,null,null,"[Select]",null,null,"[Select]",null,"[Select]",null,"[Select]",null,"[Select]",null,"[Select]",null,null,{"$f":"IFERROR((LEFT(N36,1)+LEFT(P36,1)+LEFT(R36,1)+LEFT(T36,1)),\"\")","v":""},null,{"$f":"IFERROR(IF(LEFT(V36,1)=\"1\",Y36*1,IF(LEFT(V36,1)=\"2\",Y36*0.75,IF(LEFT(V36,1)=\"3\",Y36*0.5,\"\"))),\"\")","v":""}]
[]
[null,null,null,"Surge capacity - clinics",null,null,null,null,null,null,"[Select]",null,null,"[Select]",null,"[Select]",null,"[Select]",null,"[Select]",null,"[Select]",null,null,{"$f":"IFERROR((LEFT(N38,1)+LEFT(P38,1)+LEFT(R38,1)+LEFT(T38,1)),\"\")","v":""},null,{"$f":"IFERROR(IF(LEFT(V38,1)=\"1\",Y38*1,IF(LEFT(V38,1)=\"2\",Y38*0.75,IF(LEFT(V38,1)=\"3\",Y38*0.5,\"\"))),\"\")","v":""}]
[null,null,null,null,null,null,null,null,null,null,null,null,null,null,null,null,null,null,null,null,null,null,null,null,null,null,null,null,null," "]
[null,null,null,"Burn annex",null,null,null,null,null,null,"[Select]",null,null,"[Select]",null,"[Select]",null,"[Select]",null,"[Select]",null,"[Select]",null,null,{"$f":"IFERROR((LEFT(N40,1)+LEFT(P40,1)+LEFT(R40,1)+LEFT(T40,1)),\"\")","v":""},null,{"$f":"IFERROR(IF(LEFT(V40,1)=\"1\",Y40*1,IF(LEFT(V40,1)=\"2\",Y40*0.75,IF(LEFT(V40,1)=\"3\",Y40*0.5,\"\"))),\"\")","v":""}]
[]
[null,null,null,"Pediatric annex",null,null,null,null,null,null,"[Select]",null,null,"[Select]",null,"[Select]",null,"[Select]",null,"[Select]",null,"[Select]",null,null,{"$f":"IFERROR((LEFT(N42,1)+LEFT(P42,1)+LEFT(R42,1)+LEFT(T42,1)),\"\")","v":""},null,{"$f":"IFERROR(IF(LEFT(V42,1)=\"1\",Y42*1,IF(LEFT(V42,1)=\"2\",Y42*0.75,IF(LEFT(V42,1)=\"3\",Y42*0.5,\"\"))),\"\")","v":""}]
[]
[null,null,null,"Facility HAZMAT annex",null,null,null,null,null,null,"[Select]",null,null,"[Select]",null,"[Select]",null,"[Select]",null,"[Select]",null,"[Select]",null,null,{"$f":"IFERROR((LEFT(N44,1)+LEFT(P44,1)+LEFT(R44,1)+LEFT(T44,1)),\"\")","v":""},null,{"$f":"IFERROR(IF(LEFT(V44,1)=\"1\",Y44*1,IF(LEFT(V44,1)=\"2\",Y44*0.75,IF(LEFT(V44,1)=\"3\",Y44*0.5,\"\"))),\"\")","v":""}]
[]
[null,null,null,"Victim decontamination \nannex",null,null,null,null,null,null,"[Select]",null,null,"[Select]",null,"[Select]",null,"[Select]",null,"[Select]",null,"[Select]",null,null,{"$f":"IFERROR((LEFT(N46,1)+LEFT(P46,1)+LEFT(R46,1)+LEFT(T46,1)),\"\")","v":""},null,{"$f":"IFERROR(IF(LEFT(V46,1)=\"1\",Y46*1,IF(LEFT(V46,1)=\"2\",Y46*0.75,IF(LEFT(V46,1)=\"3\",Y46*0.5,\"\"))),\"\")","v":""}]
[]
[null,null,null,"Scarce resources / Crisis \ncare annex",null,null,null,null,null,null,"[Select]",null,null,"[Select]",null,"[Select]",null,"[Select]",null,"[Select]",null,"[Select]",null,null,{"$f":"IFERROR((LEFT(N48,1)+LEFT(P48,1)+LEFT(R48,1)+LEFT(T48,1)),\"\")","v":""},null,{"$f":"IFERROR(IF(LEFT(V48,1)=\"1\",Y48*1,IF(LEFT(V48,1)=\"2\",Y48*0.75,IF(LEFT(V48,1)=\"3\",Y48*0.5,\"\"))),\"\")","v":""}]
[]
[null,null,null,"Healthcare Command \nCenter policies",null,null,null,null,null,null,"[Select]",null,null,"[Select]",null,"[Select]",null,"[Select]",null,"[Select]",null,"[Select]",null,null,{"$f":"IFERROR((LEFT(N50,1)+LEFT(P50,1)+LEFT(R50,1)+LEFT(T50,1)),\"\")","v":""},null,{"$f":"IFERROR(IF(LEFT(V50,1)=\"1\",Y50*1,IF(LEFT(V50,1)=\"2\",Y50*0.75,IF(LEFT(V50,1)=\"3\",Y50*0.5,\"\"))),\"\")","v":""}]
[]
[null,null,null,"Healthcare Command \nCenter security",null,null,null,null,null,null,"[Select]",null,null,"[Select]",null,"[Select]",null,"[Select]",null,"[Select]",null,"[Select]",null,null,{"$f":"IFERROR((LEFT(N52,1)+LEFT(P52,1)+LEFT(R52,1)+LEFT(T52,1)),\"\")","v":""},null,{"$f":"IFERROR(IF(LEFT(V52,1)=\"1\",Y52*1,IF(LEFT(V52,1)=\"2\",Y52*0.75,IF(LEFT(V52,1)=\"3\",Y52*0.5,\"\"))),\"\")","v":""}]
[null,null,null,null,null,null,null,null,null,null,null,null,null,null,null,null,null,null,null,null,null,null,null,null,null,null,null,null,null," "]
[null,null,null,"Registration / patient \ntracking",null,null,null,null,null,null,"[Select]",null,null,"[Select]",null,"[Select]",null,"[Select]",null,"[Select]",null,"[Select]",null,null,{"$f":"IFERROR((LEFT(N54,1)+LEFT(P54,1)+LEFT(R54,1)+LEFT(T54,1)),\"\")","v":""},null,{"$f":"IFERROR(IF(LEFT(V54,1)=\"1\",Y54*1,IF(LEFT(V54,1)=\"2\",Y54*0.75,IF(LEFT(V54,1)=\"3\",Y54*0.5,\"\"))),\"\")","v":""}]
[]
[null,null,null,"Credentialling / volunteer management",null,null,null,null,null,null,"[Select]",null,null,"[Select]",null,"[Select]",null,"[Select]",null,"[Select]",null,"[Select]",null,null,{"$f":"IFERROR((LEFT(N56,1)+LEFT(P56,1)+LEFT(R56,1)+LEFT(T56,1)),\"\")","v":""},null,{"$f":"IFERROR(IF(LEFT(V56,1)=\"1\",Y56*1,IF(LEFT(V56,1)=\"2\",Y56*0.75,IF(LEFT(V56,1)=\"3\",Y56*0.5,\"\"))),\"\")","v":""}]
[]
[null,null,null,"Donation management",null,null,null,null,null,null,"[Select]",null,null,"[Select]",null,"[Select]",null,"[Select]",null,"[Select]",null,"[Select]",null,null,{"$f":"IFERROR((LEFT(N58,1)+LEFT(P58,1)+LEFT(R58,1)+LEFT(T58,1)),\"\")","v":""},null,{"$f":"IFERROR(IF(LEFT(V58,1)=\"1\",Y58*1,IF(LEFT(V58,1)=\"2\",Y58*0.75,IF(LEFT(V58,1)=\"3\",Y58*0.5,\"\"))),\"\")","v":""}]
[]
[null,null,null,"Surge discharge plan \n(general medicine/surgery \nfloors)",null,null,null,null,null,null,"[Select]",null,null,"[Select]",null,"[Select]",null,"[Select]",null,"[Select]",null,"[Select]",null,null,{"$f":"IFERROR((LEFT(N60,1)+LEFT(P60,1)+LEFT(R60,1)+LEFT(T60,1)),\"\")","v":""},null,{"$f":"IFERROR(IF(LEFT(V60,1)=\"1\",Y60*1,IF(LEFT(V60,1)=\"2\",Y60*0.75,IF(LEFT(V60,1)=\"3\",Y60*0.5,\"\"))),\"\")","v":""}]
[]
[null,null,null,"Evacuation plan",null,null,null,null,null,null,"[Select]",null,null,"[Select]",null,"[Select]",null,"[Select]",null,"[Select]",null,"[Select]",null,null,{"$f":"IFERROR((LEFT(N62,1)+LEFT(P62,1)+LEFT(R62,1)+LEFT(T62,1)),\"\")","v":""},null,{"$f":"IFERROR(IF(LEFT(V62,1)=\"1\",Y62*1,IF(LEFT(V62,1)=\"2\",Y62*0.75,IF(LEFT(V62,1)=\"3\",Y62*0.5,\"\"))),\"\")","v":""}]
[null,null,null,null,null,null,null,null,null,null,null,null,null,null,null,null,null,null,null,null,null,null,null,null,null,null,null,null,null," "]
[null,null,null,"Family support and \nre-unification",null,null,null,null,null,null,"[Select]",null,null,"[Select]",null,"[Select]",null,"[Select]",null,"[Select]",null,"[Select]",null,null,{"$f":"IFERROR((LEFT(N64,1)+LEFT(P64,1)+LEFT(R64,1)+LEFT(T64,1)),\"\")","v":""},null,{"$f":"IFERROR(IF(LEFT(V64,1)=\"1\",Y64*1,IF(LEFT(V64,1)=\"2\",Y64*0.75,IF(LEFT(V64,1)=\"3\",Y64*0.5,\"\"))),\"\")","v":""}]
[null,null,null,null,null,null,null,null,null,null,null,null,null,null,null,null,null,null,null,null,null,null,null,null,null,null,null,null,null," "]
[null,null,null,"Staff housing during \ndisaster",null,null,null,null,null,null,"[Select]",null,null,"[Select]",null,"[Select]",null,"[Select]",null,"[Select]",null,"[Select]",null,null,{"$f":"IFERROR((LEFT(N66,1)+LEFT(P66,1)+LEFT(R66,1)+LEFT(T66,1)),\"\")","v":""},null,{"$f":"IFERROR(IF(LEFT(V66,1)=\"1\",Y66*1,IF(LEFT(V66,1)=\"2\",Y66*0.75,IF(LEFT(V66,1)=\"3\",Y66*0.5,\"\"))),\"\")","v":""}]
[null,null,null,null,null,null,null,null,null,null,null,null,null,null,null,null,null,null,null,null,null,null,null,null,null,null,null,null,null," "]
[null,null,null,"Staff / pet support \nduring disaster",null,null,null,null,null,null,"[Select]",null,null,"[Select]",null,"[Select]",null,"[Select]",null,"[Select]",null,"[Select]",null,null,{"$f":"IFERROR((LEFT(N68,1)+LEFT(P68,1)+LEFT(R68,1)+LEFT(T68,1)),\"\")","v":""},null,{"$f":"IFERROR(IF(LEFT(V68,1)=\"1\",Y68*1,IF(LEFT(V68,1)=\"2\",Y68*0.75,IF(LEFT(V68,1)=\"3\",Y68*0.5,\"\"))),\"\")","v":""}]
[null,null,null,null,null,null,null,null,null,null,null,null,null,null,null,null,null,null,null,null,null,null,null,null,null,null,null,null,null," "]
[null,null,null,"Regional/coalition \ninterface",null,null,null,null,null,null,"[Select]",null,null,"[Select]",null,"[Select]",null,"[Select]",null,"[Select]",null,"[Select]",null,null,{"$f":"IFERROR((LEFT(N70,1)+LEFT(P70,1)+LEFT(R70,1)+LEFT(T70,1)),\"\")","v":""},null,{"$f":"IFERROR(IF(LEFT(V70,1)=\"1\",Y70*1,IF(LEFT(V70,1)=\"2\",Y70*0.75,IF(LEFT(V70,1)=\"3\",Y70*0.5,\"\"))),\"\")","v":""}]
[]
[null,null,null,"NDMS plan",null,null,null,null,null,null,"[Select]",null,null,"[Select]",null,"[Select]",null,"[Select]",null,"[Select]",null,"[Select]",null,null,{"$f":"IFERROR((LEFT(N72,1)+LEFT(P72,1)+LEFT(R72,1)+LEFT(T72,1)),\"\")","v":""},null,{"$f":"IFERROR(IF(LEFT(V72,1)=\"1\",Y72*1,IF(LEFT(V72,1)=\"2\",Y72*0.75,IF(LEFT(V72,1)=\"3\",Y72*0.5,\"\"))),\"\")","v":""}]
[]
[null,null,null,"Exercise plan / AAR process",null,null,null,null,null,null,"[Select]",null,null,"[Select]",null,"[Select]",null,"[Select]",null,"[Select]",null,"[Select]",null,null,{"$f":"IFERROR((LEFT(N74,1)+LEFT(P74,1)+LEFT(R74,1)+LEFT(T74,1)),\"\")","v":""},null,{"$f":"IFERROR(IF(LEFT(V74,1)=\"1\",Y74*1,IF(LEFT(V74,1)=\"2\",Y74*0.75,IF(LEFT(V74,1)=\"3\",Y74*0.5,\"\"))),\"\")","v":""}]
[]
[null,null,null,"NIMS compliance",null,null,null,null,null,null,"[Select]",null,null,"[Select]",null,"[Select]",null,"[Select]",null,"[Select]",null,"[Select]",null,null,{"$f":"IFERROR((LEFT(N76,1)+LEFT(P76,1)+LEFT(R76,1)+LEFT(T76,1)),\"\")","v":""},null,{"$f":"IFERROR(IF(LEFT(V76,1)=\"1\",Y76*1,IF(LEFT(V76,1)=\"2\",Y76*0.75,IF(LEFT(V76,1)=\"3\",Y76*0.5,\"\"))),\"\")","v":""}]
[]
[null,null,null,"Staff transportation support",null,null,null,null,null,null,"[Select]",null,null,"[Select]",null,"[Select]",null,"[Select]",null,"[Select]",null,"[Select]",null,null,{"$f":"IFERROR((LEFT(N78,1)+LEFT(P78,1)+LEFT(R78,1)+LEFT(T78,1)),\"\")","v":""},null,{"$f":"IFERROR(IF(LEFT(V78,1)=\"1\",Y78*1,IF(LEFT(V78,1)=\"2\",Y78*0.75,IF(LEFT(V78,1)=\"3\",Y78*0.5,\"\"))),\"\")","v":""}]
[]
[null,null,null,"Interpreter and adaptive communications augmentation",null,null,null,null,null,null,"[Select]",null,null,"[Select]",null,"[Select]",null,"[Select]",null,"[Select]",null,"[Select]",null,null,{"$f":"IFERROR((LEFT(N80,1)+LEFT(P80,1)+LEFT(R80,1)+LEFT(T80,1)),\"\")","v":""},null,{"$f":"IFERROR(IF(LEFT(V80,1)=\"1\",Y80*1,IF(LEFT(V80,1)=\"2\",Y80*0.75,IF(LEFT(V80,1)=\"3\",Y80*0.5,\"\"))),\"\")","v":""}]
[]
[]
[null,null,"Supplies (#)"]
[]
[null,null,null,"Healthcare Command \nCenter space",null,null,null,null,null,null,"[Select]",null,null,"[Select]",null,"[Select]",null,"[Select]",null,"[Select]",null,"[Select]",null,null,{"$f":"IFERROR((LEFT(N85,1)+LEFT(P85,1)+LEFT(R85,1)+LEFT(T85,1)),\"\")","v":""},null,{"$f":"IFERROR(IF(LEFT(V85,1)=\"1\",Y85*1,IF(LEFT(V85,1)=\"2\",Y85*0.75,IF(LEFT(V85,1)=\"3\",Y85*0.5,\"\"))),\"\")","v":""}]
[]
[null,null,null,"Healthcare Command \nCenter communications",null,null,null,null,null,null,"[Select]",null,null,"[Select]",null,"[Select]",null,"[Select]",null,"[Select]",null,"[Select]",null,null,{"$f":"IFERROR((LEFT(N87,1)+LEFT(P87,1)+LEFT(R87,1)+LEFT(T87,1)),\"\")","v":""},null,{"$f":"IFERROR(IF(LEFT(V87,1)=\"1\",Y87*1,IF(LEFT(V87,1)=\"2\",Y87*0.75,IF(LEFT(V87,1)=\"3\",Y87*0.5,\"\"))),\"\")","v":""}]
[]
[null,null,null,"Healthcare Command \nCenter supplies",null,null,null,null,null,null,"[Select]",null,null,"[Select]",null,"[Select]",null,"[Select]",null,"[Select]",null,"[Select]",null,null,{"$f":"IFERROR((LEFT(N89,1)+LEFT(P89,1)+LEFT(R89,1)+LEFT(T89,1)),\"\")","v":""},null,{"$f":"IFERROR(IF(LEFT(V89,1)=\"1\",Y89*1,IF(LEFT(V89,1)=\"2\",Y89*0.75,IF(LEFT(V89,1)=\"3\",Y89*0.5,\"\"))),\"\")","v":""}]
[]
[null,null,null,"Notification systems – \ninternal",null,null,null,null,null,null,"[Select]",null,null,"[Select]",null,"[Select]",null,"[Select]",null,"[Select]",null,"[Select]",null,null,{"$f":"IFERROR((LEFT(N91,1)+LEFT(P91,1)+LEFT(R91,1)+LEFT(T91,1)),\"\")","v":""},null,{"$f":"IFERROR(IF(LEFT(V91,1)=\"1\",Y91*1,IF(LEFT(V91,1)=\"2\",Y91*0.75,IF(LEFT(V91,1)=\"3\",Y91*0.5,\"\"))),\"\")","v":""}]
[]
[null,null,null,"Notification systems – \nexternal",null,null,null,null,null,null,"[Select]",null,null,"[Select]",null,"[Select]",null,"[Select]",null,"[Select]",null,"[Select]",null,null,{"$f":"IFERROR((LEFT(N93,1)+LEFT(P93,1)+LEFT(R93,1)+LEFT(T93,1)),\"\")","v":""},null,{"$f":"IFERROR(IF(LEFT(V93,1)=\"1\",Y93*1,IF(LEFT(V93,1)=\"2\",Y93*0.75,IF(LEFT(V93,1)=\"3\",Y93*0.5,\"\"))),\"\")","v":""}]
[]
[null,null,null,"Body bags",null,null,null,null,null,null,"[Select]",null,null,"[Select]",null,"[Select]",null,"[Select]",null,"[Select]",null,"[Select]",null,null,{"$f":"IFERROR((LEFT(N95,1)+LEFT(P95,1)+LEFT(R95,1)+LEFT(T95,1)),\"\")","v":""},null,{"$f":"IFERROR(IF(LEFT(V95,1)=\"1\",Y95*1,IF(LEFT(V95,1)=\"2\",Y95*0.75,IF(LEFT(V95,1)=\"3\",Y95*0.5,\"\"))),\"\")","v":""}]
[]
[null,null,null,"Evacuation Sleds/Stretchers",null,null,null,null,null,null,"[Select]",null,null,"[Select]",null,"[Select]",null,"[Select]",null,"[Select]",null,"[Select]",null,null,{"$f":"IFERROR((LEFT(N97,1)+LEFT(P97,1)+LEFT(R97,1)+LEFT(T97,1)),\"\")","v":""},null,{"$f":"IFERROR(IF(LEFT(V97,1)=\"1\",Y97*1,IF(LEFT(V97,1)=\"2\",Y97*0.75,IF(LEFT(V97,1)=\"3\",Y97*0.5,\"\"))),\"\")","v":""}]
[]
[null,null,null,"Emergency radio equipment - external",null,null,null,null,null,null,"[Select]",null,null,"[Select]",null,"[Select]",null,"[Select]",null,"[Select]",null,"[Select]",null,null,{"$f":"IFERROR((LEFT(N99,1)+LEFT(P99,1)+LEFT(R99,1)+LEFT(T99,1)),\"\")","v":""},null,{"$f":"IFERROR(IF(LEFT(V99,1)=\"1\",Y99*1,IF(LEFT(V99,1)=\"2\",Y99*0.75,IF(LEFT(V99,1)=\"3\",Y99*0.5,\"\"))),\"\")","v":""}]
[]
[null,null,null,"Emergency radio equipment - internal",null,null,null,null,null,null,"[Select]",null,null,"[Select]",null,"[Select]",null,"[Select]",null,"[Select]",null,"[Select]",null,null,{"$f":"IFERROR((LEFT(N101,1)+LEFT(P101,1)+LEFT(R101,1)+LEFT(T101,1)),\"\")","v":""},null,{"$f":"IFERROR(IF(LEFT(V101,1)=\"1\",Y101*1,IF(LEFT(V101,1)=\"2\",Y101*0.75,IF(LEFT(V101,1)=\"3\",Y101*0.5,\"\"))),\"\")","v":""}]
[]
[null,null,null,"First aid kits (for on-campus \ndamage and ‘sidewalk’ response)",null,null,null,null,null,null,"[Select]",null,null,"[Select]",null,"[Select]",null,"[Select]",null,"[Select]",null,"[Select]",null,null,{"$f":"IFERROR((LEFT(N103,1)+LEFT(P103,1)+LEFT(R103,1)+LEFT(T103,1)),\"\")","v":""},null,{"$f":"IFERROR(IF(LEFT(V103,1)=\"1\",Y103*1,IF(LEFT(V103,1)=\"2\",Y103*0.75,IF(LEFT(V103,1)=\"3\",Y103*0.5,\"\"))),\"\")","v":""}]
[]
[null,null,null,"Cots",null,null,null,null,null,null,"[Select]",null,null,"[Select]",null,"[Select]",null,"[Select]",null,"[Select]",null,"[Select]",null,null,{"$f":"IFERROR((LEFT(N105,1)+LEFT(P105,1)+LEFT(R105,1)+LEFT(T105,1)),\"\")","v":""},null,{"$f":"IFERROR(IF(LEFT(V105,1)=\"1\",Y105*1,IF(LEFT(V105,1)=\"2\",Y105*0.75,IF(LEFT(V105,1)=\"3\",Y105*0.5,\"\"))),\"\")","v":""}]
[]
[null,null,null,"Beds in storage",null,null,null,null,null,null,"[Select]",null,null,"[Select]",null,"[Select]",null,"[Select]",null,"[Select]",null,"[Select]",null,null,{"$f":"IFERROR((LEFT(N107,1)+LEFT(P107,1)+LEFT(R107,1)+LEFT(T107,1)),\"\")","v":""},null,{"$f":"IFERROR(IF(LEFT(V107,1)=\"1\",Y107*1,IF(LEFT(V107,1)=\"2\",Y107*0.75,IF(LEFT(V107,1)=\"3\",Y107*0.5,\"\"))),\"\")","v":""}]
[]
[]
[null,null,"Other issues:"]
[]
[]
[null,null,"Comments:"]

{"sheet":"Summary Raw","index":7,"n_rows":1,"n_cols":30,"rows_kept":1,"cut":false,"hidden":true,"merged":[]}
["Department","Category","Gap",null,null,"Current",null,"Goal",null,"Goal Sufficient?",null,null,"(L) Likelihood ",null,"(I) Impact",null,"(R) Risk to ",null,"(CP) Current preparedness",null,"(Cost) Cost ",null,null,"Overall Priority ",null,"Priority related to Cost",null,null,"Gap Closure Solution and Notes",2014]

{"sheet":"Critical Care","index":8,"n_rows":46,"n_cols":34,"rows_kept":46,"cut":false,"hidden":false,"merged":[[46,2,46,30],[3,3,3,29],[45,2,45,3],[42,2,42,3],[43,2,43,30],[5,10,5,11],[5,13,5,21],[7,3,7,4],[7,19,7,21],[7,26,7,28],[7,6,7,11]]}
[null,null,null,null,null,null,null,null,null,null,null,null,null,null,null,null,null,null,null,null,null,null,null,null,null,null,null,null,null,null,null,null,null,6]
[]
[]
[null,null,null,"Hospital Resource Vulnerability Assessment (RVA) - Critical Care"]
[]
[null,null,null,null,null,null,null,null,null,null,"Hospital:",null,null,{"$f":"IF('Hospital Information'!F9=\"\",\"\",'Hospital Information'!F9)","v":""}]
[null,null,null," "]
[null,null,null,"Name of person completing:",null,null,null,null,null,null,null,null,null,"Phone:",null,null,null,"Email:",null,null,null,null,null,null,"Date:",null,null,null,null,"(mm/dd/yyyy)"]
[]
[]
[null,null,null,"Category",null,null,"Current",null,"Goal",null,"Goal Met",null,null,"(L) Likelihood of activation /use in incident",null,"(I) Impact",null,"(R) Risk to life / operations if deficient",null,"(CP) Current preparedness",null,"(Cost) Cost to close gap including supplies and training",null,null,"Overall Priority = L + I + R + CP",null,"Priority related to Cost = \nOverall Priority * Cost",null,null,"Gap Closure Solution and Notes"]
[]
[null,null,"Staff (#)"]
[]
[null,null,null,"Critical care physicians\n(including mid-level / resident providers / trainees)"]
[]
[null,null,null,"Intensive care RN"]
[]
[]
[null,null,"Plans (Y / N / In development)"]
[]
[null,null,null,"Staff notification plan",null,null,null,null,null,null,"[Select]",null,null,"[Select]",null,"[Select]",null,"[Select]",null,"[Select]",null,"[Select]",null,null,{"$f":"IFERROR((LEFT(N22,1)+LEFT(P22,1)+LEFT(R22,1)+LEFT(T22,1)),\"\")","v":""},null,{"$f":"IFERROR(IF(LEFT(V22,1)=\"1\",Y22*1,IF(LEFT(V22,1)=\"2\",Y22*0.75,IF(LEFT(V22,1)=\"3\",Y22*0.5,\"\"))),\"\")","v":""}]
[]
[null,null,null,"Critical care surge plan",null,null,null,null,null,null,"[Select]",null,null,"[Select]",null,"[Select]",null,"[Select]",null,"[Select]",null,"[Select]",null,null,{"$f":"IFERROR((LEFT(N24,1)+LEFT(P24,1)+LEFT(R24,1)+LEFT(T24,1)),\"\")","v":""},null,{"$f":"IFERROR(IF(LEFT(V24,1)=\"1\",Y24*1,IF(LEFT(V24,1)=\"2\",Y24*0.75,IF(LEFT(V24,1)=\"3\",Y24*0.5,\"\"))),\"\")","v":""}]
[null,null,null,null,null,null,null,null,null,null,null,null,null,null,null,null,null,null,null,null,null,null,null,null,null,null,null,null,null," "]
[null,null,null,"Surge discharge/ unit \ntransfer plan",null,null,null,null,null,null,"[Select]",null,null,"[Select]",null,"[Select]",null,"[Select]",null,"[Select]",null,"[Select]",null,null,{"$f":"IFERROR((LEFT(N26,1)+LEFT(P26,1)+LEFT(R26,1)+LEFT(T26,1)),\"\")","v":""},null,{"$f":"IFERROR(IF(LEFT(V26,1)=\"1\",Y26*1,IF(LEFT(V26,1)=\"2\",Y26*0.75,IF(LEFT(V26,1)=\"3\",Y26*0.5,\"\"))),\"\")","v":""}]
[]
[null,null,null,"Crisis triage plan",null,null,null,null,null,null,"[Select]",null,null,"[Select]",null,"[Select]",null,"[Select]",null,"[Select]",null,"[Select]",null,null,{"$f":"IFERROR((LEFT(N28,1)+LEFT(P28,1)+LEFT(R28,1)+LEFT(T28,1)),\"\")","v":""},null,{"$f":"IFERROR(IF(LEFT(V28,1)=\"1\",Y28*1,IF(LEFT(V28,1)=\"2\",Y28*0.75,IF(LEFT(V28,1)=\"3\",Y28*0.5,\"\"))),\"\")","v":""}]
[]
[]
[null,null,"Space (# of beds in each space)"]
[]
[null,null,null,"Medical/Surgical ICU beds",null,null,null,null,null,null,"[Select]",null,null,"[Select]",null,"[Select]",null,"[Select]",null,"[Select]",null,"[Select]",null,null,{"$f":"IFERROR((LEFT(N33,1)+LEFT(P33,1)+LEFT(R33,1)+LEFT(T33,1)),\"\")","v":""},null,{"$f":"IFERROR(IF(LEFT(V33,1)=\"1\",Y33*1,IF(LEFT(V33,1)=\"2\",Y33*0.75,IF(LEFT(V33,1)=\"3\",Y33*0.5,\"\"))),\"\")","v":""}]
[]
[null,null,null,"ICU beds that could be added \nto existing rooms or by converting areas (e.g. PACU)",null,null,null,null,null,null,"[Select]",null,null,"[Select]",null,"[Select]",null,"[Select]",null,"[Select]",null,"[Select]",null,null,{"$f":"IFERROR((LEFT(N35,1)+LEFT(P35,1)+LEFT(R35,1)+LEFT(T35,1)),\"\")","v":""},null,{"$f":"IFERROR(IF(LEFT(V35,1)=\"1\",Y35*1,IF(LEFT(V35,1)=\"2\",Y35*0.75,IF(LEFT(V35,1)=\"3\",Y35*0.5,\"\"))),\"\")","v":""}]
[]
[]
[null,null,"Supplies (#)"]
[]
[null,null,null,"Evacuation equipment",null,null,null,null,null,null,"[Select]",null,null,"[Select]",null,"[Select]",null,"[Select]",null,"[Select]",null,"[Select]",null,null,{"$f":"IFERROR((LEFT(N40,1)+LEFT(P40,1)+LEFT(R40,1)+LEFT(T40,1)),\"\")","v":""},null,{"$f":"IFERROR(IF(LEFT(V40,1)=\"1\",Y40*1,IF(LEFT(V40,1)=\"2\",Y40*0.75,IF(LEFT(V40,1)=\"3\",Y40*0.5,\"\"))),\"\")","v":""}]
[]
[]
[null,null,"Other issues:"]
[]
[]
[null,null,"Comments:"]

{"sheet":"ED","index":9,"n_rows":92,"n_cols":30,"rows_kept":92,"cut":false,"hidden":false,"merged":[[92,2,92,30],[3,3,3,29],[5,10,5,11],[89,2,89,30],[91,2,91,3],[88,2,88,3],[7,26,7,28],[7,19,7,21],[7,3,7,4],[5,13,5,21],[7,6,7,11]]}
[]
[]
[]
[null,null,null,"Hospital Resource Vulnerability Assessment (RVA) - ED"]
[]
[null,null,null,null,null,null,null,null,null,null,"Hospital:",null,null,{"$f":"IF('Hospital Information'!F9=\"\",\"\",'Hospital Information'!F9)","v":""}]
[]
[null,null,null,"Name of person completing:",null,null,null,null,null,null,null,null,null,"Phone:",null,null,null,"Email:",null,null,null,null,null,null,"Date:",null,null,null,null,"(mm/dd/yyyy)"]
[]
[]
[null,null,null,"Category",null,null,"Current",null,"Goal",null,"Goal Met",null,null,"(L) Likelihood of activation /use in incident",null,"(I) Impact",null,"(R) Risk to life / operations if deficient",null,"(CP) Current preparedness",null,"(Cost) Cost to close gap including supplies and training",null,null,"Overall Priority = L + I + R + CP",null,"Priority related to Cost = \nOverall Priority * Cost",null,null,"Gap Closure Solution and Notes"]
[]
[null,null,"Staff (#)"]
[]
[null,null,null,"Physician (including mid-level \n/ resident providers) / \nResident / PA"]
[]
[null,null,null,"RN"]
[]
[null,null,null,"Nursing/Healthcare assitant"]
[]
[]
[null,null,"Plans (Y / N / In development)"]
[]
[null,null,null,"Notification system",null,null,null,null,null,null,"[Select]",null,null,"[Select]",null,"[Select]",null,"[Select]",null,"[Select]",null,"[Select]",null,null,{"$f":"IFERROR((LEFT(N24,1)+LEFT(P24,1)+LEFT(R24,1)+LEFT(T24,1)),\"\")","v":""},null,{"$f":"IFERROR(IF(LEFT(V24,1)=\"1\",Y24*1,IF(LEFT(V24,1)=\"2\",Y24*0.75,IF(LEFT(V24,1)=\"3\",Y24*0.5,\"\"))),\"\")","v":""}]
[]
[null,null,null,"ED Response Plan",null,null,null,null,null,null,"[Select]",null,null,"[Select]",null,"[Select]",null,"[Select]",null,"[Select]",null,"[Select]",null,null,{"$f":"IFERROR((LEFT(N26,1)+LEFT(P26,1)+LEFT(R26,1)+LEFT(T26,1)),\"\")","v":""},null,{"$f":"IFERROR(IF(LEFT(V26,1)=\"1\",Y26*1,IF(LEFT(V26,1)=\"2\",Y26*0.75,IF(LEFT(V26,1)=\"3\",Y26*0.5,\"\"))),\"\")","v":""}]
[null,null,null,null,null,null,null,null,null,null,null,null,null,null,null,null,null,null,null,null,null,null,null,null,null,null,null,null,null," "]
[null,null,null,"Surge capacity plan",null,null,null,null,null,null,"[Select]",null,null,"[Select]",null,"[Select]",null,"[Select]",null,"[Select]",null,"[Select]",null,null,{"$f":"IFERROR((LEFT(N28,1)+LEFT(P28,1)+LEFT(R28,1)+LEFT(T28,1)),\"\")","v":""},null,{"$f":"IFERROR(IF(LEFT(V28,1)=\"1\",Y28*1,IF(LEFT(V28,1)=\"2\",Y28*0.75,IF(LEFT(V28,1)=\"3\",Y28*0.5,\"\"))),\"\")","v":""}]
[]
[null,null,null,"Patient registration / \ntracking",null,null,null,null,null,null,"[Select]",null,null,"[Select]",null,"[Select]",null,"[Select]",null,"[Select]",null,"[Select]",null,null,{"$f":"IFERROR((LEFT(N30,1)+LEFT(P30,1)+LEFT(R30,1)+LEFT(T30,1)),\"\")","v":""},null,{"$f":"IFERROR(IF(LEFT(V30,1)=\"1\",Y30*1,IF(LEFT(V30,1)=\"2\",Y30*0.75,IF(LEFT(V30,1)=\"3\",Y30*0.5,\"\"))),\"\")","v":""}]
[]
[null,null,null,"HAZMAT plan",null,null,null,null,null,null,"[Select]",null,null,"[Select]",null,"[Select]",null,"[Select]",null,"[Select]",null,"[Select]",null,null,{"$f":"IFERROR((LEFT(N32,1)+LEFT(P32,1)+LEFT(R32,1)+LEFT(T32,1)),\"\")","v":""},null,{"$f":"IFERROR(IF(LEFT(V32,1)=\"1\",Y32*1,IF(LEFT(V32,1)=\"2\",Y32*0.75,IF(LEFT(V32,1)=\"3\",Y32*0.5,\"\"))),\"\")","v":""}]
[]
[null,null,null,"Radiologic plan",null,null,null,null,null,null,"[Select]",null,null,"[Select]",null,"[Select]",null,"[Select]",null,"[Select]",null,"[Select]",null,null,{"$f":"IFERROR((LEFT(N34,1)+LEFT(P34,1)+LEFT(R34,1)+LEFT(T34,1)),\"\")","v":""},null,{"$f":"IFERROR(IF(LEFT(V34,1)=\"1\",Y34*1,IF(LEFT(V34,1)=\"2\",Y34*0.75,IF(LEFT(V34,1)=\"3\",Y34*0.5,\"\"))),\"\")","v":""}]
[]
[null,null,null,"Evacuation / Shelter plan",null,null,null,null,null,null,"[Select]",null,null,"[Select]",null,"[Select]",null,"[Select]",null,"[Select]",null,"[Select]",null,null,{"$f":"IFERROR((LEFT(N36,1)+LEFT(P36,1)+LEFT(R36,1)+LEFT(T36,1)),\"\")","v":""},null,{"$f":"IFERROR(IF(LEFT(V36,1)=\"1\",Y36*1,IF(LEFT(V36,1)=\"2\",Y36*0.75,IF(LEFT(V36,1)=\"3\",Y36*0.5,\"\"))),\"\")","v":""}]
[]
[null,null,null,"Security / active threat plan",null,null,null,null,null,null,"[Select]",null,null,"[Select]",null,"[Select]",null,"[Select]",null,"[Select]",null,"[Select]",null,null,{"$f":"IFERROR((LEFT(N38,1)+LEFT(P38,1)+LEFT(R38,1)+LEFT(T38,1)),\"\")","v":""},null,{"$f":"IFERROR(IF(LEFT(V38,1)=\"1\",Y38*1,IF(LEFT(V38,1)=\"2\",Y38*0.75,IF(LEFT(V38,1)=\"3\",Y38*0.5,\"\"))),\"\")","v":""}]
[]
[]
[null,null,"Space (# of beds in each space)"]
[]
[null,null,null,"Resuscitation-capable",null,null,null,null,null,null,"[Select]",null,null,"[Select]",null,"[Select]",null,"[Select]",null,"[Select]",null,"[Select]",null,null,{"$f":"IFERROR((LEFT(N43,1)+LEFT(P43,1)+LEFT(R43,1)+LEFT(T43,1)),\"\")","v":""},null,{"$f":"IFERROR(IF(LEFT(V43,1)=\"1\",Y43*1,IF(LEFT(V43,1)=\"2\",Y43*0.75,IF(LEFT(V43,1)=\"3\",Y43*0.5,\"\"))),\"\")","v":""}]
[]
[null,null,null,"Monitored",null,null,null,null,null,null,"[Select]",null,null,"[Select]",null,"[Select]",null,"[Select]",null,"[Select]",null,"[Select]",null,null,{"$f":"IFERROR((LEFT(N45,1)+LEFT(P45,1)+LEFT(R45,1)+LEFT(T45,1)),\"\")","v":""},null,{"$f":"IFERROR(IF(LEFT(V45,1)=\"1\",Y45*1,IF(LEFT(V45,1)=\"2\",Y45*0.75,IF(LEFT(V45,1)=\"3\",Y45*0.5,\"\"))),\"\")","v":""}]
[]
[null,null,null,"Non-monitored",null,null,null,null,null,null,"[Select]",null,null,"[Select]",null,"[Select]",null,"[Select]",null,"[Select]",null,"[Select]",null,null,{"$f":"IFERROR((LEFT(N47,1)+LEFT(P47,1)+LEFT(R47,1)+LEFT(T47,1)),\"\")","v":""},null,{"$f":"IFERROR(IF(LEFT(V47,1)=\"1\",Y47*1,IF(LEFT(V47,1)=\"2\",Y47*0.75,IF(LEFT(V47,1)=\"3\",Y47*0.5,\"\"))),\"\")","v":""}]
[]
[null,null,null,"Isolation \n(Negative pressure/AIIR)",null,null,null,null,null,null,"[Select]",null,null,"[Select]",null,"[Select]",null,"[Select]",null,"[Select]",null,"[Select]",null,null,{"$f":"IFERROR((LEFT(N49,1)+LEFT(P49,1)+LEFT(R49,1)+LEFT(T49,1)),\"\")","v":""},null,{"$f":"IFERROR(IF(LEFT(V49,1)=\"1\",Y49*1,IF(LEFT(V49,1)=\"2\",Y49*0.75,IF(LEFT(V49,1)=\"3\",Y49*0.5,\"\"))),\"\")","v":""}]
[]
[]
[null,null,"Supplies (#)"]
[]
[null,null,null,"Entry controls",null,null,null,null,null,null,"[Select]",null,null,"[Select]",null,"[Select]",null,"[Select]",null,"[Select]",null,"[Select]",null,null,{"$f":"IFERROR((LEFT(N54,1)+LEFT(P54,1)+LEFT(R54,1)+LEFT(T54,1)),\"\")","v":""},null,{"$f":"IFERROR(IF(LEFT(V54,1)=\"1\",Y54*1,IF(LEFT(V54,1)=\"2\",Y54*0.75,IF(LEFT(V54,1)=\"3\",Y54*0.5,\"\"))),\"\")","v":""}]
[]
[null,null,null,"Security cameras",null,null,null,null,null,null,"[Select]",null,null,"[Select]",null,"[Select]",null,"[Select]",null,"[Select]",null,"[Select]",null,null,{"$f":"IFERROR((LEFT(N56,1)+LEFT(P56,1)+LEFT(R56,1)+LEFT(T56,1)),\"\")","v":""},null,{"$f":"IFERROR(IF(LEFT(V56,1)=\"1\",Y56*1,IF(LEFT(V56,1)=\"2\",Y56*0.75,IF(LEFT(V56,1)=\"3\",Y56*0.5,\"\"))),\"\")","v":""}]
[]
[null,null,null,"Communications",null,null,null,null,null,null,"[Select]",null,null,"[Select]",null,"[Select]",null,"[Select]",null,"[Select]",null,"[Select]",null,null,{"$f":"IFERROR((LEFT(N58,1)+LEFT(P58,1)+LEFT(R58,1)+LEFT(T58,1)),\"\")","v":""},null,{"$f":"IFERROR(IF(LEFT(V58,1)=\"1\",Y58*1,IF(LEFT(V58,1)=\"2\",Y58*0.75,IF(LEFT(V58,1)=\"3\",Y58*0.5,\"\"))),\"\")","v":""}]
[]
[null,null,null,"Decontamination PPE",null,null,null,null,null,null,"[Select]",null,null,"[Select]",null,"[Select]",null,"[Select]",null,"[Select]",null,"[Select]",null,null,{"$f":"IFERROR((LEFT(N60,1)+LEFT(P60,1)+LEFT(R60,1)+LEFT(T60,1)),\"\")","v":""},null,{"$f":"IFERROR(IF(LEFT(V60,1)=\"1\",Y60*1,IF(LEFT(V60,1)=\"2\",Y60*0.75,IF(LEFT(V60,1)=\"3\",Y60*0.5,\"\"))),\"\")","v":""}]
[]
[null,null,null,"Radiologic detection / monitoring",null,null,null,null,null,null,"[Select]",null,null,"[Select]",null,"[Select]",null,"[Select]",null,"[Select]",null,"[Select]",null,null,{"$f":"IFERROR((LEFT(N62,1)+LEFT(P62,1)+LEFT(R62,1)+LEFT(T62,1)),\"\")","v":""},null,{"$f":"IFERROR(IF(LEFT(V62,1)=\"1\",Y62*1,IF(LEFT(V62,1)=\"2\",Y62*0.75,IF(LEFT(V62,1)=\"3\",Y62*0.5,\"\"))),\"\")","v":""}]
[]
[null,null,null,"Dry decon kits",null,null,null,null,null,null,"[Select]",null,null,"[Select]",null,"[Select]",null,"[Select]",null,"[Select]",null,"[Select]",null,null,{"$f":"IFERROR((LEFT(N64,1)+LEFT(P64,1)+LEFT(R64,1)+LEFT(T64,1)),\"\")","v":""},null,{"$f":"IFERROR(IF(LEFT(V64,1)=\"1\",Y64*1,IF(LEFT(V64,1)=\"2\",Y64*0.75,IF(LEFT(V64,1)=\"3\",Y64*0.5,\"\"))),\"\")","v":""}]
[]
[null,null,null,"Decontamination \nequipment",null,null,null,null,null,null,"[Select]",null,null,"[Select]",null,"[Select]",null,"[Select]",null,"[Select]",null,"[Select]",null,null,{"$f":"IFERROR((LEFT(N66,1)+LEFT(P66,1)+LEFT(R66,1)+LEFT(T66,1)),\"\")","v":""},null,{"$f":"IFERROR(IF(LEFT(V66,1)=\"1\",Y66*1,IF(LEFT(V66,1)=\"2\",Y66*0.75,IF(LEFT(V66,1)=\"3\",Y66*0.5,\"\"))),\"\")","v":""}]
[]
[null,null,null,"Disaster critical care kits",null,null,null,null,null,null,"[Select]",null,null,"[Select]",null,"[Select]",null,"[Select]",null,"[Select]",null,"[Select]",null,null,{"$f":"IFERROR((LEFT(N68,1)+LEFT(P68,1)+LEFT(R68,1)+LEFT(T68,1)),\"\")","v":""},null,{"$f":"IFERROR(IF(LEFT(V68,1)=\"1\",Y68*1,IF(LEFT(V68,1)=\"2\",Y68*0.75,IF(LEFT(V68,1)=\"3\",Y68*0.5,\"\"))),\"\")","v":""}]
[]
[null,null,null,"Disaster triage area kits",null,null,null,null,null,null,"[Select]",null,null,"[Select]",null,"[Select]",null,"[Select]",null,"[Select]",null,"[Select]",null,null,{"$f":"IFERROR((LEFT(N70,1)+LEFT(P70,1)+LEFT(R70,1)+LEFT(T70,1)),\"\")","v":""},null,{"$f":"IFERROR(IF(LEFT(V70,1)=\"1\",Y70*1,IF(LEFT(V70,1)=\"2\",Y70*0.75,IF(LEFT(V70,1)=\"3\",Y70*0.5,\"\"))),\"\")","v":""}]
[]
[null,null,null,"Vests and signage",null,null,null,null,null,null,"[Select]",null,null,"[Select]",null,"[Select]",null,"[Select]",null,"[Select]",null,"[Select]",null,null,{"$f":"IFERROR((LEFT(N72,1)+LEFT(P72,1)+LEFT(R72,1)+LEFT(T72,1)),\"\")","v":""},null,{"$f":"IFERROR(IF(LEFT(V72,1)=\"1\",Y72*1,IF(LEFT(V72,1)=\"2\",Y72*0.75,IF(LEFT(V72,1)=\"3\",Y72*0.5,\"\"))),\"\")","v":""}]
[]
[null,null,null,"Carts and beds",null,null,null,null,null,null,"[Select]",null,null,"[Select]",null,"[Select]",null,"[Select]",null,"[Select]",null,"[Select]",null,null,{"$f":"IFERROR((LEFT(N74,1)+LEFT(P74,1)+LEFT(R74,1)+LEFT(T74,1)),\"\")","v":""},null,{"$f":"IFERROR(IF(LEFT(V74,1)=\"1\",Y74*1,IF(LEFT(V74,1)=\"2\",Y74*0.75,IF(LEFT(V74,1)=\"3\",Y74*0.5,\"\"))),\"\")","v":""}]
[]
[null,null,null,"Central supply disaster supplies",null,null,null,null,null,null,"[Select]",null,null,"[Select]",null,"[Select]",null,"[Select]",null,"[Select]",null,"[Select]",null,null,{"$f":"IFERROR((LEFT(N76,1)+LEFT(P76,1)+LEFT(R76,1)+LEFT(T76,1)),\"\")","v":""},null,{"$f":"IFERROR(IF(LEFT(V76,1)=\"1\",Y76*1,IF(LEFT(V76,1)=\"2\",Y76*0.75,IF(LEFT(V76,1)=\"3\",Y76*0.5,\"\"))),\"\")","v":""}]
[]
[null,null,null,"BVM (for ED)",null,null,null,null,null,null,"[Select]",null,null,"[Select]",null,"[Select]",null,"[Select]",null,"[Select]",null,"[Select]",null,null,{"$f":"IFERROR((LEFT(N78,1)+LEFT(P78,1)+LEFT(R78,1)+LEFT(T78,1)),\"\")","v":""},null,{"$f":"IFERROR(IF(LEFT(V78,1)=\"1\",Y78*1,IF(LEFT(V78,1)=\"2\",Y78*0.75,IF(LEFT(V78,1)=\"3\",Y78*0.5,\"\"))),\"\")","v":""}]
[]
[null,null,null,"Infectious disease PPE",null,null,null,null,null,null,"[Select]",null,null,"[Select]",null,"[Select]",null,"[Select]",null,"[Select]",null,"[Select]",null,null,{"$f":"IFERROR((LEFT(N80,1)+LEFT(P80,1)+LEFT(R80,1)+LEFT(T80,1)),\"\")","v":""},null,{"$f":"IFERROR(IF(LEFT(V80,1)=\"1\",Y80*1,IF(LEFT(V80,1)=\"2\",Y80*0.75,IF(LEFT(V80,1)=\"3\",Y80*0.5,\"\"))),\"\")","v":""}]
[]
[null,null,null,"Patient tracking bands / kits \n(photo tracking?)",null,null,null,null,null,null,"[Select]",null,null,"[Select]",null,"[Select]",null,"[Select]",null,"[Select]",null,"[Select]",null,null,{"$f":"IFERROR((LEFT(N82,1)+LEFT(P82,1)+LEFT(R82,1)+LEFT(T82,1)),\"\")","v":""},null,{"$f":"IFERROR(IF(LEFT(V82,1)=\"1\",Y82*1,IF(LEFT(V82,1)=\"2\",Y82*0.75,IF(LEFT(V82,1)=\"3\",Y82*0.5,\"\"))),\"\")","v":""}]
[]
[null,null,null,"EMS radio / hospital radio",null,null,null,null,null,null,"[Select]",null,null,"[Select]",null,"[Select]",null,"[Select]",null,"[Select]",null,"[Select]",null,null,{"$f":"IFERROR((LEFT(N84,1)+LEFT(P84,1)+LEFT(R84,1)+LEFT(T84,1)),\"\")","v":""},null,{"$f":"IFERROR(IF(LEFT(V84,1)=\"1\",Y84*1,IF(LEFT(V84,1)=\"2\",Y84*0.75,IF(LEFT(V84,1)=\"3\",Y84*0.5,\"\"))),\"\")","v":""}]
[]
[null,null,null,"Arterial tourniquets",null,null,null,null,null,null,"[Select]",null,null,"[Select]",null,"[Select]",null,"[Select]",null,"[Select]",null,"[Select]",null,null,{"$f":"IFERROR((LEFT(N86,1)+LEFT(P86,1)+LEFT(R86,1)+LEFT(T86,1)),\"\")","v":""},null,{"$f":"IFERROR(IF(LEFT(V86,1)=\"1\",Y86*1,IF(LEFT(V86,1)=\"2\",Y86*0.75,IF(LEFT(V86,1)=\"3\",Y86*0.5,\"\"))),\"\")","v":""}]
[]
[]
[null,null,"Other issues:"]
[]
[]
[null,null,"Comments:"]

{"sheet":"Medical Services","index":10,"n_rows":58,"n_cols":30,"rows_kept":58,"cut":false,"hidden":false,"merged":[[54,2,54,3],[55,2,55,30],[57,2,57,3],[58,2,58,30],[3,3,3,29],[5,10,5,11],[5,13,5,21],[7,3,7,4],[7,6,7,11],[7,19,7,21],[7,26,7,28]]}
[]
[]
[]
[null,null,null,"Hospital Resource Vulnerability Assessment (RVA) - Medical Services"]
[]
[null,null,null,null,null,null,null,null,null,null,"Hospital:",null,null,{"$f":"IF('Hospital Information'!F9=\"\",\"\",'Hospital Information'!F9)","v":""}]
[]
[null,null,null,"Name of person completing:",null,null,null,null,null,null,null,null,null,"Phone:",null,null,null,"Email:",null,null,null,null,null,null,"Date:",null,null,null,null,"(mm/dd/yyyy)"]
[]
[]
[null,null,null,"Category",null,null,"Current",null,"Goal",null,"Goal Met",null,null,"(L) Likelihood of activation /use in incident",null,"(I) Impact",null,"(R) Risk to life / operations if deficient",null,"(CP) Current preparedness",null,"(Cost) Cost to close gap including supplies and training",null,null,"Overall Priority = L + I + R + CP",null,"Priority related to Cost = \nOverall Priority * Cost",null,null,"Gap Closure Solution and Notes"]
[]
[null,null,"Staff (#)"]
[]
[null,null,null,"Medicine physician staff (including mid-level / resident providers; excluding critical care)"]
[]
[null,null,null,"Medicine nurses (excluding \nICU and surgical)"]
[]
[]
[null,null,"Plans (Y / N / In development)"]
[]
[null,null,null,"Medicine surge capacity plan",null,null,null,null,null,null,"[Select]",null,null,"[Select]",null,"[Select]",null,"[Select]",null,"[Select]",null,"[Select]",null,null,{"$f":"IFERROR((LEFT(N22,1)+LEFT(P22,1)+LEFT(R22,1)+LEFT(T22,1)),\"\")","v":""},null,{"$f":"IFERROR(IF(LEFT(V22,1)=\"1\",Y22*1,IF(LEFT(V22,1)=\"2\",Y22*0.75,IF(LEFT(V22,1)=\"3\",Y22*0.5,\"\"))),\"\")","v":""}]
[]
[null,null,null,"Surge discharge / transfer \nplan",null,null,null,null,null,null,"[Select]",null,null,"[Select]",null,"[Select]",null,"[Select]",null,"[Select]",null,"[Select]",null,null,{"$f":"IFERROR((LEFT(N24,1)+LEFT(P24,1)+LEFT(R24,1)+LEFT(T24,1)),\"\")","v":""},null,{"$f":"IFERROR(IF(LEFT(V24,1)=\"1\",Y24*1,IF(LEFT(V24,1)=\"2\",Y24*0.75,IF(LEFT(V24,1)=\"3\",Y24*0.5,\"\"))),\"\")","v":""}]
[]
[null,null,null,"Medical staff notification \nplan",null,null,null,null,null,null,"[Select]",null,null,"[Select]",null,"[Select]",null,"[Select]",null,"[Select]",null,"[Select]",null,null,{"$f":"IFERROR((LEFT(N26,1)+LEFT(P26,1)+LEFT(R26,1)+LEFT(T26,1)),\"\")","v":""},null,{"$f":"IFERROR(IF(LEFT(V26,1)=\"1\",Y26*1,IF(LEFT(V26,1)=\"2\",Y26*0.75,IF(LEFT(V26,1)=\"3\",Y26*0.5,\"\"))),\"\")","v":""}]
[]
[]
[null,null,"Space (# of beds in each space)"]
[]
[null,null,null,"Stepdown",null,null,null,null,null,null,"[Select]",null,null,"[Select]",null,"[Select]",null,"[Select]",null,"[Select]",null,"[Select]",null,null,{"$f":"IFERROR((LEFT(N31,1)+LEFT(P31,1)+LEFT(R31,1)+LEFT(T31,1)),\"\")","v":""},null,{"$f":"IFERROR(IF(LEFT(V31,1)=\"1\",Y31*1,IF(LEFT(V31,1)=\"2\",Y31*0.75,IF(LEFT(V31,1)=\"3\",Y31*0.5,\"\"))),\"\")","v":""}]
[]
[null,null,null,"Stepdown beds that could be added to existing rooms",null,null,null,null,null,null,"[Select]",null,null,"[Select]",null,"[Select]",null,"[Select]",null,"[Select]",null,"[Select]",null,null,{"$f":"IFERROR((LEFT(N33,1)+LEFT(P33,1)+LEFT(R33,1)+LEFT(T33,1)),\"\")","v":""},null,{"$f":"IFERROR(IF(LEFT(V33,1)=\"1\",Y33*1,IF(LEFT(V33,1)=\"2\",Y33*0.75,IF(LEFT(V33,1)=\"3\",Y33*0.5,\"\"))),\"\")","v":""}]
[]
[null,null,null,"Telemetry (fixed \nequipment)",null,null,null,null,null,null,"[Select]",null,null,"[Select]",null,"[Select]",null,"[Select]",null,"[Select]",null,"[Select]",null,null,{"$f":"IFERROR((LEFT(N35,1)+LEFT(P35,1)+LEFT(R35,1)+LEFT(T35,1)),\"\")","v":""},null,{"$f":"IFERROR(IF(LEFT(V35,1)=\"1\",Y35*1,IF(LEFT(V35,1)=\"2\",Y35*0.75,IF(LEFT(V35,1)=\"3\",Y35*0.5,\"\"))),\"\")","v":""}]
[]
[null,null,null,"Telemetry (remote)",null,null,null,null,null,null,"[Select]",null,null,"[Select]",null,"[Select]",null,"[Select]",null,"[Select]",null,"[Select]",null,null,{"$f":"IFERROR((LEFT(N37,1)+LEFT(P37,1)+LEFT(R37,1)+LEFT(T37,1)),\"\")","v":""},null,{"$f":"IFERROR(IF(LEFT(V37,1)=\"1\",Y37*1,IF(LEFT(V37,1)=\"2\",Y37*0.75,IF(LEFT(V37,1)=\"3\",Y37*0.5,\"\"))),\"\")","v":""}]
[]
[null,null,null,"Medicine Floor",null,null,null,null,null,null,"[Select]",null,null,"[Select]",null,"[Select]",null,"[Select]",null,"[Select]",null,"[Select]",null,null,{"$f":"IFERROR((LEFT(N39,1)+LEFT(P39,1)+LEFT(R39,1)+LEFT(T39,1)),\"\")","v":""},null,{"$f":"IFERROR(IF(LEFT(V39,1)=\"1\",Y39*1,IF(LEFT(V39,1)=\"2\",Y39*0.75,IF(LEFT(V39,1)=\"3\",Y39*0.5,\"\"))),\"\")","v":""}]
[]
[null,null,null,"Medicine beds that could be added to existing rooms",null,null,null,null,null,null,"[Select]",null,null,"[Select]",null,"[Select]",null,"[Select]",null,"[Select]",null,"[Select]",null,null,{"$f":"IFERROR((LEFT(N41,1)+LEFT(P41,1)+LEFT(R41,1)+LEFT(T41,1)),\"\")","v":""},null,{"$f":"IFERROR(IF(LEFT(V41,1)=\"1\",Y41*1,IF(LEFT(V41,1)=\"2\",Y41*0.75,IF(LEFT(V41,1)=\"3\",Y41*0.5,\"\"))),\"\")","v":""}]
[]
[null,null,null,"Rehabilitation",null,null,null,null,null,null,"[Select]",null,null,"[Select]",null,"[Select]",null,"[Select]",null,"[Select]",null,"[Select]",null,null,{"$f":"IFERROR((LEFT(N43,1)+LEFT(P43,1)+LEFT(R43,1)+LEFT(T43,1)),\"\")","v":""},null,{"$f":"IFERROR(IF(LEFT(V43,1)=\"1\",Y43*1,IF(LEFT(V43,1)=\"2\",Y43*0.75,IF(LEFT(V43,1)=\"3\",Y43*0.5,\"\"))),\"\")","v":""}]
[]
[null,null,null,"Cot based care area - # cots",null,null,null,null,null,null,"[Select]",null,null,"[Select]",null,"[Select]",null,"[Select]",null,"[Select]",null,"[Select]",null,null,{"$f":"IFERROR((LEFT(N45,1)+LEFT(P45,1)+LEFT(R45,1)+LEFT(T45,1)),\"\")","v":""},null,{"$f":"IFERROR(IF(LEFT(V45,1)=\"1\",Y45*1,IF(LEFT(V45,1)=\"2\",Y45*0.75,IF(LEFT(V45,1)=\"3\",Y45*0.5,\"\"))),\"\")","v":""}]
[]
[null,null,null,"Procedure areas",null,null,null,null,null,null,"[Select]",null,null,"[Select]",null,"[Select]",null,"[Select]",null,"[Select]",null,"[Select]",null,null,{"$f":"IFERROR((LEFT(N47,1)+LEFT(P47,1)+LEFT(R47,1)+LEFT(T47,1)),\"\")","v":""},null,{"$f":"IFERROR(IF(LEFT(V47,1)=\"1\",Y47*1,IF(LEFT(V47,1)=\"2\",Y47*0.75,IF(LEFT(V47,1)=\"3\",Y47*0.5,\"\"))),\"\")","v":""}]
[]
[]
[null,null,"Supplies (#)"]
[]
[null,null,null,"Evacuation equipment",null,null,null,null,null,null,"[Select]",null,null,"[Select]",null,"[Select]",null,"[Select]",null,"[Select]",null,"[Select]",null,null,{"$f":"IFERROR((LEFT(N52,1)+LEFT(P52,1)+LEFT(R52,1)+LEFT(T52,1)),\"\")","v":""},null,{"$f":"IFERROR(IF(LEFT(V52,1)=\"1\",Y52*1,IF(LEFT(V52,1)=\"2\",Y52*0.75,IF(LEFT(V52,1)=\"3\",Y52*0.5,\"\"))),\"\")","v":""}]
[]
[]
[null,null,"Other issues:"]
[]
[]
[null,null,"Comments:"]

{"sheet":"Mental Health","index":11,"n_rows":62,"n_cols":30,"rows_kept":62,"cut":false,"hidden":false,"merged":[[62,2,62,30],[3,3,3,29],[61,2,61,3],[58,2,58,3],[59,2,59,30],[5,10,5,11],[5,13,5,21],[7,3,7,4],[7,19,7,21],[7,26,7,28],[7,6,7,11]]}
[]
[]
[]
[null,null,null,"Hospital Resource Vulnerability Assessment (RVA) - Mental Health"]
[]
[null,null,null,null,null,null,null,null,null,null,"Hospital:",null,null,{"$f":"IF('Hospital Information'!F9=\"\",\"\",'Hospital Information'!F9)","v":""}]
[]
[null,null,null,"Name of person completing:",null,null,null,null,null,null,null,null,null,"Phone:",null,null,null,"Email:",null,null,null,null,null,null,"Date:",null,null,null,null,"(mm/dd/yyyy)"]
[]
[]
[null,null,null,"Category",null,null,"Current",null,"Goal",null,"Goal Met",null,null,"(L) Likelihood of activation /use in incident",null,"(I) Impact",null,"(R) Risk to life / operations if deficient",null,"(CP) Current preparedness",null,"(Cost) Cost to close gap including supplies and training",null,null,"Overall Priority = L + I + R + CP",null,"Priority related to Cost = \nOverall Priority * Cost",null,null,"Gap Closure Solution and Notes"]
[]
[null,null,"Staff (#)"]
[]
[null,null,null,"Physician (including mid-level / resident providers) / \nPsychologist Staff"]
[]
[null,null,null,"Nursing Staff"]
[]
[null,null,null,"Social Workers"]
[]
[null,null,null,"Spiritual care/chaplaincy"]
[]
[]
[null,null,"Plans (Y / N / In development)"]
[]
[null,null,null,"Staff notification / alerting",null,null,null,null,null,null,"[Select]",null,null,null,null,"[Select]",null,"[Select]",null,"[Select]",null,"[Select]",null,null,{"$f":"IFERROR((LEFT(N26,1)+LEFT(P26,1)+LEFT(R26,1)+LEFT(T26,1)),\"\")","v":""},null,{"$f":"IFERROR(IF(LEFT(V26,1)=\"1\",Y26*1,IF(LEFT(V26,1)=\"2\",Y26*0.75,IF(LEFT(V26,1)=\"3\",Y26*0.5,\"\"))),\"\")","v":""}]
[]
[null,null,null,"Inpatient support/screening process",null,null,null,null,null,null,"[Select]",null,null,"[Select]",null,"[Select]",null,"[Select]",null,"[Select]",null,"[Select]",null,null,{"$f":"IFERROR((LEFT(N28,1)+LEFT(P28,1)+LEFT(R28,1)+LEFT(T28,1)),\"\")","v":""},null,{"$f":"IFERROR(IF(LEFT(V28,1)=\"1\",Y28*1,IF(LEFT(V28,1)=\"2\",Y28*0.75,IF(LEFT(V28,1)=\"3\",Y28*0.5,\"\"))),\"\")","v":""}]
[null,null,null,null,null,null,null,null,null,null,null,null,null,null,null,null,null,null,null,null,null,null,null,null,null,null,null,null,null," "]
[null,null,null,"ED / outpatient support and screening process",null,null,null,null,null,null,"[Select]",null,null,"[Select]",null,"[Select]",null,"[Select]",null,"[Select]",null,"[Select]",null,null,{"$f":"IFERROR((LEFT(N30,1)+LEFT(P30,1)+LEFT(R30,1)+LEFT(T30,1)),\"\")","v":""},null,{"$f":"IFERROR(IF(LEFT(V30,1)=\"1\",Y30*1,IF(LEFT(V30,1)=\"2\",Y30*0.75,IF(LEFT(V30,1)=\"3\",Y30*0.5,\"\"))),\"\")","v":""}]
[]
[null,null,null,"Crisis services surge capacity",null,null,null,null,null,null,"[Select]",null,null,"[Select]",null,"[Select]",null,"[Select]",null,"[Select]",null,"[Select]",null,null,{"$f":"IFERROR((LEFT(N32,1)+LEFT(P32,1)+LEFT(R32,1)+LEFT(T32,1)),\"\")","v":""},null,{"$f":"IFERROR(IF(LEFT(V32,1)=\"1\",Y32*1,IF(LEFT(V32,1)=\"2\",Y32*0.75,IF(LEFT(V32,1)=\"3\",Y32*0.5,\"\"))),\"\")","v":""}]
[]
[null,null,null,"Inpatient psychiatry surge capacity plan",null,null,null,null,null,null,"[Select]",null,null,"[Select]",null,"[Select]",null,"[Select]",null,"[Select]",null,"[Select]",null,null,{"$f":"IFERROR((LEFT(N34,1)+LEFT(P34,1)+LEFT(R34,1)+LEFT(T34,1)),\"\")","v":""},null,{"$f":"IFERROR(IF(LEFT(V34,1)=\"1\",Y34*1,IF(LEFT(V34,1)=\"2\",Y34*0.75,IF(LEFT(V34,1)=\"3\",Y34*0.5,\"\"))),\"\")","v":""}]
[]
[null,null,null,"Psychiatric inpatient \nevacuation plan",null,null,null,null,null,null,"[Select]",null,null,"[Select]",null,"[Select]",null,"[Select]",null,"[Select]",null,"[Select]",null,null,{"$f":"IFERROR((LEFT(N36,1)+LEFT(P36,1)+LEFT(R36,1)+LEFT(T36,1)),\"\")","v":""},null,{"$f":"IFERROR(IF(LEFT(V36,1)=\"1\",Y36*1,IF(LEFT(V36,1)=\"2\",Y36*0.75,IF(LEFT(V36,1)=\"3\",Y36*0.5,\"\"))),\"\")","v":""}]
[]
[null,null,null,"Staff Support and Resilience \nPlan",null,null,null,null,null,null,"[Select]",null,null,"[Select]",null,"[Select]",null,"[Select]",null,"[Select]",null,"[Select]",null,null,{"$f":"IFERROR((LEFT(N38,1)+LEFT(P38,1)+LEFT(R38,1)+LEFT(T38,1)),\"\")","v":""},null,{"$f":"IFERROR(IF(LEFT(V38,1)=\"1\",Y38*1,IF(LEFT(V38,1)=\"2\",Y38*0.75,IF(LEFT(V38,1)=\"3\",Y38*0.5,\"\"))),\"\")","v":""}]
[]
[null,null,null,"Family Support Center Plan",null,null,null,null,null,null,"[Select]",null,null,"[Select]",null,"[Select]",null,"[Select]",null,"[Select]",null,"[Select]",null,null,{"$f":"IFERROR((LEFT(N40,1)+LEFT(P40,1)+LEFT(R40,1)+LEFT(T40,1)),\"\")","v":""},null,{"$f":"IFERROR(IF(LEFT(V40,1)=\"1\",Y40*1,IF(LEFT(V40,1)=\"2\",Y40*0.75,IF(LEFT(V40,1)=\"3\",Y40*0.5,\"\"))),\"\")","v":""}]
[]
[]
[null,null,"Space (# of beds in each space)"]
[]
[null,null,null,"ED/crisis holding rooms",null,null,null,null,null,null,"[Select]",null,null,"[Select]",null,"[Select]",null,"[Select]",null,"[Select]",null,"[Select]",null,null,{"$f":"IFERROR((LEFT(N45,1)+LEFT(P45,1)+LEFT(R45,1)+LEFT(T45,1)),\"\")","v":""},null,{"$f":"IFERROR(IF(LEFT(V45,1)=\"1\",Y45*1,IF(LEFT(V45,1)=\"2\",Y45*0.75,IF(LEFT(V45,1)=\"3\",Y45*0.5,\"\"))),\"\")","v":""}]
[]
[null,null,null,"Inpatient psychiatry beds",null,null,null,null,null,null,"[Select]",null,null,"[Select]",null,"[Select]",null,"[Select]",null,"[Select]",null,"[Select]",null,null,{"$f":"IFERROR((LEFT(N47,1)+LEFT(P47,1)+LEFT(R47,1)+LEFT(T47,1)),\"\")","v":""},null,{"$f":"IFERROR(IF(LEFT(V47,1)=\"1\",Y47*1,IF(LEFT(V47,1)=\"2\",Y47*0.75,IF(LEFT(V47,1)=\"3\",Y47*0.5,\"\"))),\"\")","v":""}]
[]
[]
[null,null,"Supplies (#)"]
[]
[null,null,null,"Patient tracking / \nidentification supplies",null,null,null,null,null,null,"[Select]",null,null,"[Select]",null,"[Select]",null,"[Select]",null,"[Select]",null,"[Select]",null,null,{"$f":"IFERROR((LEFT(N52,1)+LEFT(P52,1)+LEFT(R52,1)+LEFT(T52,1)),\"\")","v":""},null,{"$f":"IFERROR(IF(LEFT(V52,1)=\"1\",Y52*1,IF(LEFT(V52,1)=\"2\",Y52*0.75,IF(LEFT(V52,1)=\"3\",Y52*0.5,\"\"))),\"\")","v":""}]
[]
[null,null,null,"Anxiolysis / sedation (oral) \nstockpile",null,null,null,null,null,null,"[Select]",null,null,"[Select]",null,"[Select]",null,"[Select]",null,"[Select]",null,"[Select]",null,null,{"$f":"IFERROR((LEFT(N54,1)+LEFT(P54,1)+LEFT(R54,1)+LEFT(T54,1)),\"\")","v":""},null,{"$f":"IFERROR(IF(LEFT(V54,1)=\"1\",Y54*1,IF(LEFT(V54,1)=\"2\",Y54*0.75,IF(LEFT(V54,1)=\"3\",Y54*0.5,\"\"))),\"\")","v":""}]
[]
[null,null,null,"Anti-psychotics (oral and IM)",null,null,null,null,null,null,"[Select]",null,null,"[Select]",null,"[Select]",null,"[Select]",null,"[Select]",null,"[Select]",null,null,{"$f":"IFERROR((LEFT(N56,1)+LEFT(P56,1)+LEFT(R56,1)+LEFT(T56,1)),\"\")","v":""},null,{"$f":"IFERROR(IF(LEFT(V56,1)=\"1\",Y56*1,IF(LEFT(V56,1)=\"2\",Y56*0.75,IF(LEFT(V56,1)=\"3\",Y56*0.5,\"\"))),\"\")","v":""}]
[]
[]
[null,null,"Other issues:"]
[]
[]
[null,null,"Comments:"]

{"sheet":"OBGYN and Nursery","index":12,"n_rows":66,"n_cols":30,"rows_kept":66,"cut":false,"hidden":false,"merged":[[66,2,66,30],[3,3,3,29],[65,2,65,3],[62,2,62,3],[63,2,63,30],[5,10,5,11],[5,13,5,21],[7,3,7,4],[7,19,7,21],[7,26,7,28],[7,6,7,11]]}
[]
[]
[]
[null,null,null,"Hospital Resource Vulnerability Assessment (RVA) - OB/Gyn/Nursery"]
[]
[null,null,null,null,null,null,null,null,null,null,"Hospital:",null,null,{"$f":"IF('Hospital Information'!F9=\"\",\"\",'Hospital Information'!F9)","v":""}]
[]
[null,null,null,"Name of person completing:",null,null,null,null,null,null,null,null,null,"Phone:",null,null,null,"Email:",null,null,null,null,null,null,"Date:",null,null,null,null,"(mm/dd/yyyy)"]
[]
[]
[null,null,null,"Category",null,null,"Current",null,"Goal",null,"Goal Met",null,null,"(L) Likelihood of activation /use in incident",null,"(I) Impact",null,"(R) Risk to life / operations if deficient",null,"(CP) Current preparedness",null,"(Cost) Cost to close gap including supplies and training",null,null,"Overall Priority = L + I + R + CP",null,"Priority related to Cost = \nOverall Priority * Cost",null,null,"Gap Closure Solution and Notes"]
[]
[null,null,"Staff (#)"]
[]
[null,null,null,"Total nursing staff"]
[]
[null,null,null,"Total physician (including \nmid-level / resident providers) staff (residents and faculty)"]
[]
[]
[null,null,"Plans (Y / N / In development)"]
[]
[null,null,null,"Staff notification / \nalerting",null,null,null,null,null,null,"[Select]",null,null,"[Select]",null,"[Select]",null,"[Select]",null,"[Select]",null,"[Select]",null,null,{"$f":"IFERROR((LEFT(N22,1)+LEFT(P22,1)+LEFT(R22,1)+LEFT(T22,1)),\"\")","v":""},null,{"$f":"IFERROR(IF(LEFT(V22,1)=\"1\",Y22*1,IF(LEFT(V22,1)=\"2\",Y22*0.75,IF(LEFT(V22,1)=\"3\",Y22*0.5,\"\"))),\"\")","v":""}]
[]
[null,null,null,"Inpatient surge capacity / \nuse of spaces during MCI",null,null,null,null,null,null,"[Select]",null,null,"[Select]",null,"[Select]",null,"[Select]",null,"[Select]",null,"[Select]",null,null,{"$f":"IFERROR((LEFT(N24,1)+LEFT(P24,1)+LEFT(R24,1)+LEFT(T24,1)),\"\")","v":""},null,{"$f":"IFERROR(IF(LEFT(V24,1)=\"1\",Y24*1,IF(LEFT(V24,1)=\"2\",Y24*0.75,IF(LEFT(V24,1)=\"3\",Y24*0.5,\"\"))),\"\")","v":""}]
[null,null,null,null,null,null,null,null,null,null,null,null,null,null,null,null,null,null,null,null,null,null,null,null,null,null,null,null,null," "]
[null,null,null,"Evacuation planning - OB",null,null,null,null,null,null,"[Select]",null,null,"[Select]",null,"[Select]",null,"[Select]",null,"[Select]",null,"[Select]",null,null,{"$f":"IFERROR((LEFT(N26,1)+LEFT(P26,1)+LEFT(R26,1)+LEFT(T26,1)),\"\")","v":""},null,{"$f":"IFERROR(IF(LEFT(V26,1)=\"1\",Y26*1,IF(LEFT(V26,1)=\"2\",Y26*0.75,IF(LEFT(V26,1)=\"3\",Y26*0.5,\"\"))),\"\")","v":""}]
[]
[null,null,null,"Evacuation planning – \nnursery / NICU",null,null,null,null,null,null,"[Select]",null,null,"[Select]",null,"[Select]",null,"[Select]",null,"[Select]",null,"[Select]",null,null,{"$f":"IFERROR((LEFT(N28,1)+LEFT(P28,1)+LEFT(R28,1)+LEFT(T28,1)),\"\")","v":""},null,{"$f":"IFERROR(IF(LEFT(V28,1)=\"1\",Y28*1,IF(LEFT(V28,1)=\"2\",Y28*0.75,IF(LEFT(V28,1)=\"3\",Y28*0.5,\"\"))),\"\")","v":""}]
[]
[null,null,null,"Infectious disease plan / \npandemic plan for OB",null,null,null,null,null,null,"[Select]",null,null,"[Select]",null,"[Select]",null,"[Select]",null,"[Select]",null,"[Select]",null,null,{"$f":"IFERROR((LEFT(N30,1)+LEFT(P30,1)+LEFT(R30,1)+LEFT(T30,1)),\"\")","v":""},null,{"$f":"IFERROR(IF(LEFT(V30,1)=\"1\",Y30*1,IF(LEFT(V30,1)=\"2\",Y30*0.75,IF(LEFT(V30,1)=\"3\",Y30*0.5,\"\"))),\"\")","v":""}]
[]
[]
[null,null,"Space (# of beds in each space)"]
[]
[null,null,null,"L+D (labor ready)",null,null,null,null,null,null,"[Select]",null,null,"[Select]",null,"[Select]",null,"[Select]",null,"[Select]",null,"[Select]",null,null,{"$f":"IFERROR((LEFT(N35,1)+LEFT(P35,1)+LEFT(R35,1)+LEFT(T35,1)),\"\")","v":""},null,{"$f":"IFERROR(IF(LEFT(V35,1)=\"1\",Y35*1,IF(LEFT(V35,1)=\"2\",Y35*0.75,IF(LEFT(V35,1)=\"3\",Y35*0.5,\"\"))),\"\")","v":""}]
[]
[null,null,null,"Triage",null,null,null,null,null,null,"[Select]",null,null,"[Select]",null,"[Select]",null,"[Select]",null,"[Select]",null,"[Select]",null,null,{"$f":"IFERROR((LEFT(N37,1)+LEFT(P37,1)+LEFT(R37,1)+LEFT(T37,1)),\"\")","v":""},null,{"$f":"IFERROR(IF(LEFT(V37,1)=\"1\",Y37*1,IF(LEFT(V37,1)=\"2\",Y37*0.75,IF(LEFT(V37,1)=\"3\",Y37*0.5,\"\"))),\"\")","v":""}]
[]
[null,null,null,"OR",null,null,null,null,null,null,"[Select]",null,null,"[Select]",null,"[Select]",null,"[Select]",null,"[Select]",null,"[Select]",null,null,{"$f":"IFERROR((LEFT(N39,1)+LEFT(P39,1)+LEFT(R39,1)+LEFT(T39,1)),\"\")","v":""},null,{"$f":"IFERROR(IF(LEFT(V39,1)=\"1\",Y39*1,IF(LEFT(V39,1)=\"2\",Y39*0.75,IF(LEFT(V39,1)=\"3\",Y39*0.5,\"\"))),\"\")","v":""}]
[]
[null,null,null,"PACU",null,null,null,null,null,null,"[Select]",null,null,"[Select]",null,"[Select]",null,"[Select]",null,"[Select]",null,"[Select]",null,null,{"$f":"IFERROR((LEFT(N41,1)+LEFT(P41,1)+LEFT(R41,1)+LEFT(T41,1)),\"\")","v":""},null,{"$f":"IFERROR(IF(LEFT(V41,1)=\"1\",Y41*1,IF(LEFT(V41,1)=\"2\",Y41*0.75,IF(LEFT(V41,1)=\"3\",Y41*0.5,\"\"))),\"\")","v":""}]
[]
[null,null,null,"Midwife (labor ready)",null,null,null,null,null,null,"[Select]",null,null,"[Select]",null,"[Select]",null,"[Select]",null,"[Select]",null,"[Select]",null,null,{"$f":"IFERROR((LEFT(N43,1)+LEFT(P43,1)+LEFT(R43,1)+LEFT(T43,1)),\"\")","v":""},null,{"$f":"IFERROR(IF(LEFT(V43,1)=\"1\",Y43*1,IF(LEFT(V43,1)=\"2\",Y43*0.75,IF(LEFT(V43,1)=\"3\",Y43*0.5,\"\"))),\"\")","v":""}]
[]
[null,null,null,"OBGYN floor",null,null,null,null,null,null,"[Select]",null,null,"[Select]",null,"[Select]",null,"[Select]",null,"[Select]",null,"[Select]",null,null,{"$f":"IFERROR((LEFT(N45,1)+LEFT(P45,1)+LEFT(R45,1)+LEFT(T45,1)),\"\")","v":""},null,{"$f":"IFERROR(IF(LEFT(V45,1)=\"1\",Y45*1,IF(LEFT(V45,1)=\"2\",Y45*0.75,IF(LEFT(V45,1)=\"3\",Y45*0.5,\"\"))),\"\")","v":""}]
[]
[null,null,null,"Nursery",null,null,null,null,null,null,"[Select]",null,null,"[Select]",null,"[Select]",null,"[Select]",null,"[Select]",null,"[Select]",null,null,{"$f":"IFERROR((LEFT(N47,1)+LEFT(P47,1)+LEFT(R47,1)+LEFT(T47,1)),\"\")","v":""},null,{"$f":"IFERROR(IF(LEFT(V47,1)=\"1\",Y47*1,IF(LEFT(V47,1)=\"2\",Y47*0.75,IF(LEFT(V47,1)=\"3\",Y47*0.5,\"\"))),\"\")","v":""}]
[]
[]
[null,null,"Supplies (#)"]
[]
[null,null,null,"Patient / baby tracking / \nidentification",null,null,null,null,null,null,"[Select]",null,null,"[Select]",null,"[Select]",null,"[Select]",null,"[Select]",null,"[Select]",null,null,{"$f":"IFERROR((LEFT(N52,1)+LEFT(P52,1)+LEFT(R52,1)+LEFT(T52,1)),\"\")","v":""},null,{"$f":"IFERROR(IF(LEFT(V52,1)=\"1\",Y52*1,IF(LEFT(V52,1)=\"2\",Y52*0.75,IF(LEFT(V52,1)=\"3\",Y52*0.5,\"\"))),\"\")","v":""}]
[]
[null,null,null,"Patient carts on L&D",null,null,null,null,null,null,"[Select]",null,null,"[Select]",null,"[Select]",null,"[Select]",null,"[Select]",null,"[Select]",null,null,{"$f":"IFERROR((LEFT(N54,1)+LEFT(P54,1)+LEFT(R54,1)+LEFT(T54,1)),\"\")","v":""},null,{"$f":"IFERROR(IF(LEFT(V54,1)=\"1\",Y54*1,IF(LEFT(V54,1)=\"2\",Y54*0.75,IF(LEFT(V54,1)=\"3\",Y54*0.5,\"\"))),\"\")","v":""}]
[]
[null,null,null,"Evacuation Supplies - OB",null,null,null,null,null,null,"[Select]",null,null,"[Select]",null,"[Select]",null,"[Select]",null,"[Select]",null,"[Select]",null,null,{"$f":"IFERROR((LEFT(N56,1)+LEFT(P56,1)+LEFT(R56,1)+LEFT(T56,1)),\"\")","v":""},null,{"$f":"IFERROR(IF(LEFT(V56,1)=\"1\",Y56*1,IF(LEFT(V56,1)=\"2\",Y56*0.75,IF(LEFT(V56,1)=\"3\",Y56*0.5,\"\"))),\"\")","v":""}]
[]
[null,null,null,"Evacuation Supplies - \nNICU",null,null,null,null,null,null,"[Select]",null,null,"[Select]",null,"[Select]",null,"[Select]",null,"[Select]",null,"[Select]",null,null,{"$f":"IFERROR((LEFT(N58,1)+LEFT(P58,1)+LEFT(R58,1)+LEFT(T58,1)),\"\")","v":""},null,{"$f":"IFERROR(IF(LEFT(V58,1)=\"1\",Y58*1,IF(LEFT(V58,1)=\"2\",Y58*0.75,IF(LEFT(V58,1)=\"3\",Y58*0.5,\"\"))),\"\")","v":""}]
[]
[null,null,null,"Evacuation equipment",null,null,null,null,null,null,"[Select]",null,null,"[Select]",null,"[Select]",null,"[Select]",null,"[Select]",null,"[Select]",null,null,{"$f":"IFERROR((LEFT(N60,1)+LEFT(P60,1)+LEFT(R60,1)+LEFT(T60,1)),\"\")","v":""},null,{"$f":"IFERROR(IF(LEFT(V60,1)=\"1\",Y60*1,IF(LEFT(V60,1)=\"2\",Y60*0.75,IF(LEFT(V60,1)=\"3\",Y60*0.5,\"\"))),\"\")","v":""}]
[]
[]
[null,null,"Other issues:"]
[]
[]
[null,null,"Comments:"]

{"sheet":"Pediatrics","index":13,"n_rows":88,"n_cols":30,"rows_kept":88,"cut":false,"hidden":false,"merged":[[88,2,88,30],[3,3,3,29],[84,2,84,3],[85,2,85,30],[87,2,87,3],[5,10,5,11],[5,13,5,21],[7,3,7,4],[7,19,7,21],[7,26,7,28],[7,6,7,11]]}
[]
[]
[]
[null,null,null,"Hospital Resource Vulnerability Assessment (RVA) - Pediatrics"]
[]
[null,null,null,null,null,null,null,null,null,null,"Hospital:",null,null,{"$f":"IF('Hospital Information'!F9=\"\",\"\",'Hospital Information'!F9)","v":""}]
[]
[null,null,null,"Name of person completing:",null,null,null,null,null,null,null,null,null,"Phone:",null,null,null,"Email:",null,null,null,null,null,null,"Date:",null,null,null,null,"(mm/dd/yyyy)"]
[]
[]
[null,null,null,"Category",null,null,"Current",null,"Goal",null,"Goal Met",null,null,"(L) Likelihood of activation /use in incident",null,"(I) Impact",null,"(R) Risk to life / operations if deficient",null,"(CP) Current preparedness",null,"(Cost) Cost to close gap including supplies and training",null,null,"Overall Priority = L + I + R + CP",null,"Priority related to Cost = \nOverall Priority * Cost",null,null,"Gap Closure Solution and Notes"]
[]
[null,null,"Staff (#)"]
[]
[null,null,null,"Physician (including \nmid-level / resident providers)"]
[]
[null,null,null,"Nursing"]
[]
[null,null,null,"HCA"]
[]
[null,null,null,"Child Life / Support Staff"]
[]
[]
[null,null,"Plans (Y / N / In development)"]
[]
[null,null,null,"Staff notification / \nalerting",null,null,null,null,null,null,"[Select]",null,null,"[Select]",null,"[Select]",null,"[Select]",null,"[Select]",null,"[Select]",null,null,{"$f":"IFERROR((LEFT(N26,1)+LEFT(P26,1)+LEFT(R26,1)+LEFT(T26,1)),\"\")","v":""},null,{"$f":"IFERROR(IF(LEFT(V26,1)=\"1\",Y26*1,IF(LEFT(V26,1)=\"2\",Y26*0.75,IF(LEFT(V26,1)=\"3\",Y26*0.5,\"\"))),\"\")","v":""}]
[]
[null,null,null,"PICU surge plan",null,null,null,null,null,null,"[Select]",null,null,"[Select]",null,"[Select]",null,"[Select]",null,"[Select]",null,"[Select]",null,null,{"$f":"IFERROR((LEFT(N28,1)+LEFT(P28,1)+LEFT(R28,1)+LEFT(T28,1)),\"\")","v":""},null,{"$f":"IFERROR(IF(LEFT(V28,1)=\"1\",Y28*1,IF(LEFT(V28,1)=\"2\",Y28*0.75,IF(LEFT(V28,1)=\"3\",Y28*0.5,\"\"))),\"\")","v":""}]
[null,null,null,null,null,null,null,null,null,null,null,null,null,null,null,null,null,null,null,null,null,null,null,null,null,null,null,null,null," "]
[null,null,null,"Pediatric floor surge plan",null,null,null,null,null,null,"[Select]",null,null,"[Select]",null,"[Select]",null,"[Select]",null,"[Select]",null,"[Select]",null,null,{"$f":"IFERROR((LEFT(N30,1)+LEFT(P30,1)+LEFT(R30,1)+LEFT(T30,1)),\"\")","v":""},null,{"$f":"IFERROR(IF(LEFT(V30,1)=\"1\",Y30*1,IF(LEFT(V30,1)=\"2\",Y30*0.75,IF(LEFT(V30,1)=\"3\",Y30*0.5,\"\"))),\"\")","v":""}]
[]
[null,null,null,"Surge discharge plan",null,null,null,null,null,null,"[Select]",null,null,"[Select]",null,"[Select]",null,"[Select]",null,"[Select]",null,"[Select]",null,null,{"$f":"IFERROR((LEFT(N32,1)+LEFT(P32,1)+LEFT(R32,1)+LEFT(T32,1)),\"\")","v":""},null,{"$f":"IFERROR(IF(LEFT(V32,1)=\"1\",Y32*1,IF(LEFT(V32,1)=\"2\",Y32*0.75,IF(LEFT(V32,1)=\"3\",Y32*0.5,\"\"))),\"\")","v":""}]
[]
[null,null,null,"Pediatric safe area plan",null,null,null,null,null,null,"[Select]",null,null,"[Select]",null,"[Select]",null,"[Select]",null,"[Select]",null,"[Select]",null,null,{"$f":"IFERROR((LEFT(N34,1)+LEFT(P34,1)+LEFT(R34,1)+LEFT(T34,1)),\"\")","v":""},null,{"$f":"IFERROR(IF(LEFT(V34,1)=\"1\",Y34*1,IF(LEFT(V34,1)=\"2\",Y34*0.75,IF(LEFT(V34,1)=\"3\",Y34*0.5,\"\"))),\"\")","v":""}]
[]
[null,null,null,"Staff disaster child care \nplan",null,null,null,null,null,null,"[Select]",null,null,"[Select]",null,"[Select]",null,"[Select]",null,"[Select]",null,"[Select]",null,null,{"$f":"IFERROR((LEFT(N36,1)+LEFT(P36,1)+LEFT(R36,1)+LEFT(T36,1)),\"\")","v":""},null,{"$f":"IFERROR(IF(LEFT(V36,1)=\"1\",Y36*1,IF(LEFT(V36,1)=\"2\",Y36*0.75,IF(LEFT(V36,1)=\"3\",Y36*0.5,\"\"))),\"\")","v":""}]
[]
[null,null,null,"Reunification plan / policies",null,null,null,null,null,null,"[Select]",null,null,"[Select]",null,"[Select]",null,"[Select]",null,"[Select]",null,"[Select]",null,null,{"$f":"IFERROR((LEFT(N38,1)+LEFT(P38,1)+LEFT(R38,1)+LEFT(T38,1)),\"\")","v":""},null,{"$f":"IFERROR(IF(LEFT(V38,1)=\"1\",Y38*1,IF(LEFT(V38,1)=\"2\",Y38*0.75,IF(LEFT(V38,1)=\"3\",Y38*0.5,\"\"))),\"\")","v":""}]
[]
[null,null,null,"Pediatric / PICU evacuation \nplan",null,null,null,null,null,null,"[Select]",null,null,"[Select]",null,"[Select]",null,"[Select]",null,"[Select]",null,"[Select]",null,null,{"$f":"IFERROR((LEFT(N40,1)+LEFT(P40,1)+LEFT(R40,1)+LEFT(T40,1)),\"\")","v":""},null,{"$f":"IFERROR(IF(LEFT(V40,1)=\"1\",Y40*1,IF(LEFT(V40,1)=\"2\",Y40*0.75,IF(LEFT(V40,1)=\"3\",Y40*0.5,\"\"))),\"\")","v":""}]
[]
[]
[null,null,"Space (# of beds in each space)"]
[]
[null,null,null,"PICU",null,null,null,null,null,null,"[Select]",null,null,"[Select]",null,"[Select]",null,"[Select]",null,"[Select]",null,"[Select]",null,null,{"$f":"IFERROR((LEFT(N45,1)+LEFT(P45,1)+LEFT(R45,1)+LEFT(T45,1)),\"\")","v":""},null,{"$f":"IFERROR(IF(LEFT(V45,1)=\"1\",Y45*1,IF(LEFT(V45,1)=\"2\",Y45*0.75,IF(LEFT(V45,1)=\"3\",Y45*0.5,\"\"))),\"\")","v":""}]
[]
[null,null,null,"NICU",null,null,null,null,null,null,"[Select]",null,null,"[Select]",null,"[Select]",null,"[Select]",null,"[Select]",null,"[Select]",null,null,{"$f":"IFERROR((LEFT(N47,1)+LEFT(P47,1)+LEFT(R47,1)+LEFT(T47,1)),\"\")","v":""},null,{"$f":"IFERROR(IF(LEFT(V47,1)=\"1\",Y47*1,IF(LEFT(V47,1)=\"2\",Y47*0.75,IF(LEFT(V47,1)=\"3\",Y47*0.5,\"\"))),\"\")","v":""}]
[]
[null,null,null,"Pediatric floor beds",null,null,null,null,null,null,"[Select]",null,null,"[Select]",null,"[Select]",null,"[Select]",null,"[Select]",null,"[Select]",null,null,{"$f":"IFERROR((LEFT(N49,1)+LEFT(P49,1)+LEFT(R49,1)+LEFT(T49,1)),\"\")","v":""},null,{"$f":"IFERROR(IF(LEFT(V49,1)=\"1\",Y49*1,IF(LEFT(V49,1)=\"2\",Y49*0.75,IF(LEFT(V49,1)=\"3\",Y49*0.5,\"\"))),\"\")","v":""}]
[]
[null,null,null,"Potential PICU expansion              within unit",null,null,null,null,null,null,"[Select]",null,null,"[Select]",null,"[Select]",null,"[Select]",null,"[Select]",null,"[Select]",null,null,{"$f":"IFERROR((LEFT(N51,1)+LEFT(P51,1)+LEFT(R51,1)+LEFT(T51,1)),\"\")","v":""},null,{"$f":"IFERROR(IF(LEFT(V51,1)=\"1\",Y51*1,IF(LEFT(V51,1)=\"2\",Y51*0.75,IF(LEFT(V51,1)=\"3\",Y51*0.5,\"\"))),\"\")","v":""}]
[]
[null,null,null,"Pediatric floor beds that could be doubled",null,null,null,null,null,null,"[Select]",null,null,"[Select]",null,"[Select]",null,"[Select]",null,"[Select]",null,"[Select]",null,null,{"$f":"IFERROR((LEFT(N53,1)+LEFT(P53,1)+LEFT(R53,1)+LEFT(T53,1)),\"\")","v":""},null,{"$f":"IFERROR(IF(LEFT(V53,1)=\"1\",Y53*1,IF(LEFT(V53,1)=\"2\",Y53*0.75,IF(LEFT(V53,1)=\"3\",Y53*0.5,\"\"))),\"\")","v":""}]
[]
[]
[null,null,"Supplies (#)"]
[]
[null,null,null,"Porta-cribs",null,null,null,null,null,null,"[Select]",null,null,"[Select]",null,"[Select]",null,"[Select]",null,"[Select]",null,"[Select]",null,null,{"$f":"IFERROR((LEFT(N58,1)+LEFT(P58,1)+LEFT(R58,1)+LEFT(T58,1)),\"\")","v":""},null,{"$f":"IFERROR(IF(LEFT(V58,1)=\"1\",Y58*1,IF(LEFT(V58,1)=\"2\",Y58*0.75,IF(LEFT(V58,1)=\"3\",Y58*0.5,\"\"))),\"\")","v":""}]
[]
[null,null,null,"Pediatric central lines",null,null,null,null,null,null,"[Select]",null,null,"[Select]",null,"[Select]",null,"[Select]",null,"[Select]",null,"[Select]",null,null,{"$f":"IFERROR((LEFT(N60,1)+LEFT(P60,1)+LEFT(R60,1)+LEFT(T60,1)),\"\")","v":""},null,{"$f":"IFERROR(IF(LEFT(V60,1)=\"1\",Y60*1,IF(LEFT(V60,1)=\"2\",Y60*0.75,IF(LEFT(V60,1)=\"3\",Y60*0.5,\"\"))),\"\")","v":""}]
[]
[null,null,null,"Pediatric arterial lines",null,null,null,null,null,null,"[Select]",null,null,"[Select]",null,"[Select]",null,"[Select]",null,"[Select]",null,"[Select]",null,null,{"$f":"IFERROR((LEFT(N62,1)+LEFT(P62,1)+LEFT(R62,1)+LEFT(T62,1)),\"\")","v":""},null,{"$f":"IFERROR(IF(LEFT(V62,1)=\"1\",Y62*1,IF(LEFT(V62,1)=\"2\",Y62*0.75,IF(LEFT(V62,1)=\"3\",Y62*0.5,\"\"))),\"\")","v":""}]
[]
[null,null,null,"Peds BVM on unit",null,null,null,null,null,null,"[Select]",null,null,"[Select]",null,"[Select]",null,"[Select]",null,"[Select]",null,"[Select]",null,null,{"$f":"IFERROR((LEFT(N64,1)+LEFT(P64,1)+LEFT(R64,1)+LEFT(T64,1)),\"\")","v":""},null,{"$f":"IFERROR(IF(LEFT(V64,1)=\"1\",Y64*1,IF(LEFT(V64,1)=\"2\",Y64*0.75,IF(LEFT(V64,1)=\"3\",Y64*0.5,\"\"))),\"\")","v":""}]
[]
[null,null,null,"Endotracheal tubes 3-5",null,null,null,null,null,null,"[Select]",null,null,"[Select]",null,"[Select]",null,"[Select]",null,"[Select]",null,"[Select]",null,null,{"$f":"IFERROR((LEFT(N66,1)+LEFT(P66,1)+LEFT(R66,1)+LEFT(T66,1)),\"\")","v":""},null,{"$f":"IFERROR(IF(LEFT(V66,1)=\"1\",Y66*1,IF(LEFT(V66,1)=\"2\",Y66*0.75,IF(LEFT(V66,1)=\"3\",Y66*0.5,\"\"))),\"\")","v":""}]
[]
[null,null,null,"IV catheters 22-24",null,null,null,null,null,null,"[Select]",null,null,"[Select]",null,"[Select]",null,"[Select]",null,"[Select]",null,"[Select]",null,null,{"$f":"IFERROR((LEFT(N68,1)+LEFT(P68,1)+LEFT(R68,1)+LEFT(T68,1)),\"\")","v":""},null,{"$f":"IFERROR(IF(LEFT(V68,1)=\"1\",Y68*1,IF(LEFT(V68,1)=\"2\",Y68*0.75,IF(LEFT(V68,1)=\"3\",Y68*0.5,\"\"))),\"\")","v":""}]
[]
[null,null,null,"Buretrols",null,null,null,null,null,null,"[Select]",null,null,"[Select]",null,"[Select]",null,"[Select]",null,"[Select]",null,"[Select]",null,null,{"$f":"IFERROR((LEFT(N70,1)+LEFT(P70,1)+LEFT(R70,1)+LEFT(T70,1)),\"\")","v":""},null,{"$f":"IFERROR(IF(LEFT(V70,1)=\"1\",Y70*1,IF(LEFT(V70,1)=\"2\",Y70*0.75,IF(LEFT(V70,1)=\"3\",Y70*0.5,\"\"))),\"\")","v":""}]
[]
[null,null,null,"Pediatric IV pumps",null,null,null,null,null,null,"[Select]",null,null,"[Select]",null,"[Select]",null,"[Select]",null,"[Select]",null,"[Select]",null,null,{"$f":"IFERROR((LEFT(N72,1)+LEFT(P72,1)+LEFT(R72,1)+LEFT(T72,1)),\"\")","v":""},null,{"$f":"IFERROR(IF(LEFT(V72,1)=\"1\",Y72*1,IF(LEFT(V72,1)=\"2\",Y72*0.75,IF(LEFT(V72,1)=\"3\",Y72*0.5,\"\"))),\"\")","v":""}]
[]
[null,null,null,"Pediatric oxygen masks and cannulas",null,null,null,null,null,null,"[Select]",null,null,"[Select]",null,"[Select]",null,"[Select]",null,"[Select]",null,"[Select]",null,null,{"$f":"IFERROR((LEFT(N74,1)+LEFT(P74,1)+LEFT(R74,1)+LEFT(T74,1)),\"\")","v":""},null,{"$f":"IFERROR(IF(LEFT(V74,1)=\"1\",Y74*1,IF(LEFT(V74,1)=\"2\",Y74*0.75,IF(LEFT(V74,1)=\"3\",Y74*0.5,\"\"))),\"\")","v":""}]
[]
[null,null,null,"Diapers adequate supply for disaster?",null,null,null,null,null,null,"[Select]",null,null,"[Select]",null,"[Select]",null,"[Select]",null,"[Select]",null,"[Select]",null,null,{"$f":"IFERROR((LEFT(N76,1)+LEFT(P76,1)+LEFT(R76,1)+LEFT(T76,1)),\"\")","v":""},null,{"$f":"IFERROR(IF(LEFT(V76,1)=\"1\",Y76*1,IF(LEFT(V76,1)=\"2\",Y76*0.75,IF(LEFT(V76,1)=\"3\",Y76*0.5,\"\"))),\"\")","v":""}]
[]
[null,null,null,"Formula adequate for disasters?",null,null,null,null,null,null,"[Select]",null,null,"[Select]",null,"[Select]",null,"[Select]",null,"[Select]",null,"[Select]",null,null,{"$f":"IFERROR((LEFT(N78,1)+LEFT(P78,1)+LEFT(R78,1)+LEFT(T78,1)),\"\")","v":""},null,{"$f":"IFERROR(IF(LEFT(V78,1)=\"1\",Y78*1,IF(LEFT(V78,1)=\"2\",Y78*0.75,IF(LEFT(V78,1)=\"3\",Y78*0.5,\"\"))),\"\")","v":""}]
[]
[null,null,null,"Wristbands - safe area",null,null,null,null,null,null,"[Select]",null,null,"[Select]",null,"[Select]",null,"[Select]",null,"[Select]",null,"[Select]",null,null,{"$f":"IFERROR((LEFT(N80,1)+LEFT(P80,1)+LEFT(R80,1)+LEFT(T80,1)),\"\")","v":""},null,{"$f":"IFERROR(IF(LEFT(V80,1)=\"1\",Y80*1,IF(LEFT(V80,1)=\"2\",Y80*0.75,IF(LEFT(V80,1)=\"3\",Y80*0.5,\"\"))),\"\")","v":""}]
[]
[null,null,null,"Evacuation equipment",null,null,null,null,null,null,"[Select]",null,null,"[Select]",null,"[Select]",null,"[Select]",null,"[Select]",null,"[Select]",null,null,{"$f":"IFERROR((LEFT(N82,1)+LEFT(P82,1)+LEFT(R82,1)+LEFT(T82,1)),\"\")","v":""},null,{"$f":"IFERROR(IF(LEFT(V82,1)=\"1\",Y82*1,IF(LEFT(V82,1)=\"2\",Y82*0.75,IF(LEFT(V82,1)=\"3\",Y82*0.5,\"\"))),\"\")","v":""}]
[]
[]
[null,null,"Other issues:"]
[]
[]
[null,null,"Comments:"]

{"sheet":"Renal","index":14,"n_rows":45,"n_cols":30,"rows_kept":45,"cut":false,"hidden":false,"merged":[[45,2,45,30],[3,3,3,29],[44,2,44,3],[41,2,41,3],[42,2,42,30],[5,10,5,11],[5,13,5,21],[7,3,7,4],[7,19,7,21],[7,26,7,28],[7,6,7,11]]}
[]
[]
[]
[null,null,null,"Hospital Resource Vulnerability Assessment (RVA) - Renal"]
[]
[null,null,null,null,null,null,null,null,null,null,"Hospital:",null,null,{"$f":"IF('Hospital Information'!F9=\"\",\"\",'Hospital Information'!F9)","v":""}]
[]
[null,null,null,"Name of person completing:",null,null,null,null,null,null,null,null,null,"Phone:",null,null,null,"Email:",null,null,null,null,null,null,"Date:",null,null,null,null,"(mm/dd/yyyy)"]
[]
[]
[null,null,null,"Category",null,null,"Current",null,"Goal",null,"Goal Met",null,null,"(L) Likelihood of activation /use in incident",null,"(I) Impact",null,"(R) Risk to life / operations if deficient",null,"(CP) Current preparedness",null,"(Cost) Cost to close gap including supplies and training",null,null,"Overall Priority = L + I + R + CP",null,"Priority related to Cost = \nOverall Priority * Cost",null,null,"Gap Closure Solution and Notes"]
[]
[null,null,"Staff (#)"]
[]
[null,null,null,"Renal Staff (including fellows)"]
[]
[null,null,null,"Dialysis nurses"]
[]
[]
[null,null,"Plans (Y / N / In development)"]
[]
[null,null,null,"Patient home planning for \ndisasters",null,null,null,null,null,null,"[Select]",null,null,"[Select]",null,"[Select]",null,"[Select]",null,"[Select]",null,"[Select]",null,null,{"$f":"IFERROR((LEFT(N22,1)+LEFT(P22,1)+LEFT(R22,1)+LEFT(T22,1)),\"\")","v":""},null,{"$f":"IFERROR(IF(LEFT(V22,1)=\"1\",Y22*1,IF(LEFT(V22,1)=\"2\",Y22*0.75,IF(LEFT(V22,1)=\"3\",Y22*0.5,\"\"))),\"\")","v":""}]
[]
[]
[null,null,"Supplies (#)"]
[]
[null,null,null,"Dialysis tubing",null,null,null,null,null,null,"[Select]",null,null,"[Select]",null,"[Select]",null,"[Select]",null,"[Select]",null,"[Select]",null,null,{"$f":"IFERROR((LEFT(N27,1)+LEFT(P27,1)+LEFT(R27,1)+LEFT(T27,1)),\"\")","v":""},null,{"$f":"IFERROR(IF(LEFT(V27,1)=\"1\",Y27*1,IF(LEFT(V27,1)=\"2\",Y27*0.75,IF(LEFT(V27,1)=\"3\",Y27*0.5,\"\"))),\"\")","v":""}]
[]
[null,null,null,"Dialysis machines (owned)",null,null,null,null,null,null,"[Select]",null,null,"[Select]",null,"[Select]",null,"[Select]",null,"[Select]",null,"[Select]",null,null,{"$f":"IFERROR((LEFT(N29,1)+LEFT(P29,1)+LEFT(R29,1)+LEFT(T29,1)),\"\")","v":""},null,{"$f":"IFERROR(IF(LEFT(V29,1)=\"1\",Y29*1,IF(LEFT(V29,1)=\"2\",Y29*0.75,IF(LEFT(V29,1)=\"3\",Y29*0.5,\"\"))),\"\")","v":""}]
[]
[null,null,null,"Dialysis machines (leased)",null,null,null,null,null,null,"[Select]",null,null,"[Select]",null,"[Select]",null,"[Select]",null,"[Select]",null,"[Select]",null,null,{"$f":"IFERROR((LEFT(N31,1)+LEFT(P31,1)+LEFT(R31,1)+LEFT(T31,1)),\"\")","v":""},null,{"$f":"IFERROR(IF(LEFT(V31,1)=\"1\",Y31*1,IF(LEFT(V31,1)=\"2\",Y31*0.75,IF(LEFT(V31,1)=\"3\",Y31*0.5,\"\"))),\"\")","v":""}]
[]
[null,null,null,"Water purification (number \nof plumbed rooms)",null,null,null,null,null,null,"[Select]",null,null,"[Select]",null,"[Select]",null,"[Select]",null,"[Select]",null,"[Select]",null,null,{"$f":"IFERROR((LEFT(N33,1)+LEFT(P33,1)+LEFT(R33,1)+LEFT(T33,1)),\"\")","v":""},null,{"$f":"IFERROR(IF(LEFT(V33,1)=\"1\",Y33*1,IF(LEFT(V33,1)=\"2\",Y33*0.75,IF(LEFT(V33,1)=\"3\",Y33*0.5,\"\"))),\"\")","v":""}]
[]
[null,null,null,"Water purification \n(portable)",null,null,null,null,null,null,"[Select]",null,null,"[Select]",null,"[Select]",null,"[Select]",null,"[Select]",null,"[Select]",null,null,{"$f":"IFERROR((LEFT(N35,1)+LEFT(P35,1)+LEFT(R35,1)+LEFT(T35,1)),\"\")","v":""},null,{"$f":"IFERROR(IF(LEFT(V35,1)=\"1\",Y35*1,IF(LEFT(V35,1)=\"2\",Y35*0.75,IF(LEFT(V35,1)=\"3\",Y35*0.5,\"\"))),\"\")","v":""}]
[]
[null,null,null,"Filters and other Supplies\n(water purification and pumps)",null,null,null,null,null,null,"[Select]",null,null,"[Select]",null,"[Select]",null,"[Select]",null,"[Select]",null,"[Select]",null,null,{"$f":"IFERROR((LEFT(N37,1)+LEFT(P37,1)+LEFT(R37,1)+LEFT(T37,1)),\"\")","v":""},null,{"$f":"IFERROR(IF(LEFT(V37,1)=\"1\",Y37*1,IF(LEFT(V37,1)=\"2\",Y37*0.75,IF(LEFT(V37,1)=\"3\",Y37*0.5,\"\"))),\"\")","v":""}]
[]
[null,null,null,"Quinton and other temporary access catheters",null,null,null,null,null,null,"[Select]",null,null,"[Select]",null,"[Select]",null,"[Select]",null,"[Select]",null,"[Select]",null,null,{"$f":"IFERROR((LEFT(N39,1)+LEFT(P39,1)+LEFT(R39,1)+LEFT(T39,1)),\"\")","v":""},null,{"$f":"IFERROR(IF(LEFT(V39,1)=\"1\",Y39*1,IF(LEFT(V39,1)=\"2\",Y39*0.75,IF(LEFT(V39,1)=\"3\",Y39*0.5,\"\"))),\"\")","v":""}]
[]
[]
[null,null,"Other issues:"]
[]
[]
[null,null,"Comments:"]

{"sheet":"Surgical Services","index":15,"n_rows":94,"n_cols":30,"rows_kept":94,"cut":false,"hidden":false,"merged":[[94,2,94,30],[3,3,3,29],[93,2,93,3],[90,2,90,3],[91,2,91,30],[5,10,5,11],[5,13,5,21],[7,3,7,4],[7,19,7,21],[7,26,7,28],[7,6,7,11]]}
[]
[]
[]
[null,null,null,"Hospital Resource Vulnerability Assessment (RVA) - Surgical Services"]
[]
[null,null,null,null,null,null,null,null,null,null,"Hospital:",null,null,{"$f":"IF('Hospital Information'!F9=\"\",\"\",'Hospital Information'!F9)","v":""}]
[]
[null,null,null,"Name of person completing:",null,null,null,null,null,null,null,null,null,"Phone:",null,null,null,"Email:",null,null,null,null,null,null,"Date:",null,null,null,null,"(mm/dd/yyyy)"]
[]
[]
[null,null,null,"Category",null,null,"Current",null,"Goal",null,"Goal Met",null,null,"(L) Likelihood of activation /use in incident",null,"(I) Impact",null,"(R) Risk to life / operations if deficient",null,"(CP) Current preparedness",null,"(Cost) Cost to close gap including supplies and training",null,null,"Overall Priority = L + I + R + CP",null,"Priority related to Cost = \nOverall Priority * Cost",null,null,"Gap Closure Solution and Notes"]
[]
[null,null,"Staff (#)"]
[]
[null,null,null,"General surgeons and \nresidents"]
[]
[null,null,null,"Orthopedic surgeons and \nresidents"]
[]
[null,null,null,"Anesthesia"]
[]
[null,null,null,"CRNA"]
[]
[null,null,null,"OR Nurses"]
[]
[null,null,null,"PACU and pre-induction"]
[]
[null,null,null,"Burn RN"]
[]
[null,null,null,"Surgical floor RN"]
[]
[]
[null,null,"Plans (Y / N / In development)"]
[]
[null,null,null,"Notification system \n(residents, staff including surgical nursing, anesthesia",null,null,null,null,null,null,"[Select]",null,null,"[Select]",null,"[Select]",null,"[Select]",null,"[Select]",null,"[Select]",null,null,{"$f":"IFERROR((LEFT(N34,1)+LEFT(P34,1)+LEFT(R34,1)+LEFT(T34,1)),\"\")","v":""},null,{"$f":"IFERROR(IF(LEFT(V34,1)=\"1\",Y34*1,IF(LEFT(V34,1)=\"2\",Y34*0.75,IF(LEFT(V34,1)=\"3\",Y34*0.5,\"\"))),\"\")","v":""}]
[]
[null,null,null,"Department plan",null,null,null,null,null,null,"[Select]",null,null,"[Select]",null,"[Select]",null,"[Select]",null,"[Select]",null,"[Select]",null,null,{"$f":"IFERROR((LEFT(N36,1)+LEFT(P36,1)+LEFT(R36,1)+LEFT(T36,1)),\"\")","v":""},null,{"$f":"IFERROR(IF(LEFT(V36,1)=\"1\",Y36*1,IF(LEFT(V36,1)=\"2\",Y36*0.75,IF(LEFT(V36,1)=\"3\",Y36*0.5,\"\"))),\"\")","v":""}]
[null,null,null,null,null,null,null,null,null,null,null,null,null,null,null,null,null,null,null,null,null,null,null,null,null,null,null,null,null," "]
[null,null,null,"Surge plan – main OR area",null,null,null,null,null,null,"[Select]",null,null,"[Select]",null,"[Select]",null,"[Select]",null,"[Select]",null,"[Select]",null,null,{"$f":"IFERROR((LEFT(N38,1)+LEFT(P38,1)+LEFT(R38,1)+LEFT(T38,1)),\"\")","v":""},null,{"$f":"IFERROR(IF(LEFT(V38,1)=\"1\",Y38*1,IF(LEFT(V38,1)=\"2\",Y38*0.75,IF(LEFT(V38,1)=\"3\",Y38*0.5,\"\"))),\"\")","v":""}]
[]
[null,null,null,"Surge discharge plan",null,null,null,null,null,null,"[Select]",null,null,"[Select]",null,"[Select]",null,"[Select]",null,"[Select]",null,"[Select]",null,null,{"$f":"IFERROR((LEFT(N40,1)+LEFT(P40,1)+LEFT(R40,1)+LEFT(T40,1)),\"\")","v":""},null,{"$f":"IFERROR(IF(LEFT(V40,1)=\"1\",Y40*1,IF(LEFT(V40,1)=\"2\",Y40*0.75,IF(LEFT(V40,1)=\"3\",Y40*0.5,\"\"))),\"\")","v":""}]
[]
[null,null,null,"Surge plan – burn unit",null,null,null,null,null,null,"[Select]",null,null,"[Select]",null,"[Select]",null,"[Select]",null,"[Select]",null,"[Select]",null,null,{"$f":"IFERROR((LEFT(N42,1)+LEFT(P42,1)+LEFT(R42,1)+LEFT(T42,1)),\"\")","v":""},null,{"$f":"IFERROR(IF(LEFT(V42,1)=\"1\",Y42*1,IF(LEFT(V42,1)=\"2\",Y42*0.75,IF(LEFT(V42,1)=\"3\",Y42*0.5,\"\"))),\"\")","v":""}]
[]
[null,null,null,"Surge plan – PACU, \npre-induction",null,null,null,null,null,null,"[Select]",null,null,"[Select]",null,"[Select]",null,"[Select]",null,"[Select]",null,"[Select]",null,null,{"$f":"IFERROR((LEFT(N44,1)+LEFT(P44,1)+LEFT(R44,1)+LEFT(T44,1)),\"\")","v":""},null,{"$f":"IFERROR(IF(LEFT(V44,1)=\"1\",Y44*1,IF(LEFT(V44,1)=\"2\",Y44*0.75,IF(LEFT(V44,1)=\"3\",Y44*0.5,\"\"))),\"\")","v":""}]
[]
[null,null,null,"Sterile supply support \nplan",null,null,null,null,null,null,"[Select]",null,null,"[Select]",null,"[Select]",null,"[Select]",null,"[Select]",null,"[Select]",null,null,{"$f":"IFERROR((LEFT(N46,1)+LEFT(P46,1)+LEFT(R46,1)+LEFT(T46,1)),\"\")","v":""},null,{"$f":"IFERROR(IF(LEFT(V46,1)=\"1\",Y46*1,IF(LEFT(V46,1)=\"2\",Y46*0.75,IF(LEFT(V46,1)=\"3\",Y46*0.5,\"\"))),\"\")","v":""}]
[]
[]
[null,null,"Space (# of beds in each space)"]
[]
[null,null,null,"Inpatient surgical area\nPACU / pre-induction",null,null,null,null,null,null,"[Select]",null,null,"[Select]",null,"[Select]",null,"[Select]",null,"[Select]",null,"[Select]",null,null,{"$f":"IFERROR((LEFT(N51,1)+LEFT(P51,1)+LEFT(R51,1)+LEFT(T51,1)),\"\")","v":""},null,{"$f":"IFERROR(IF(LEFT(V51,1)=\"1\",Y51*1,IF(LEFT(V51,1)=\"2\",Y51*0.75,IF(LEFT(V51,1)=\"3\",Y51*0.5,\"\"))),\"\")","v":""}]
[]
[null,null,null,"Outpatient surgical area \nPACU / pre-induction",null,null,null,null,null,null,"[Select]",null,null,"[Select]",null,"[Select]",null,"[Select]",null,"[Select]",null,"[Select]",null,null,{"$f":"IFERROR((LEFT(N53,1)+LEFT(P53,1)+LEFT(R53,1)+LEFT(T53,1)),\"\")","v":""},null,{"$f":"IFERROR(IF(LEFT(V53,1)=\"1\",Y53*1,IF(LEFT(V53,1)=\"2\",Y53*0.75,IF(LEFT(V53,1)=\"3\",Y53*0.5,\"\"))),\"\")","v":""}]
[]
[null,null,null,"OR (suitable for major \ntrauma)",null,null,null,null,null,null,"[Select]",null,null,"[Select]",null,"[Select]",null,"[Select]",null,"[Select]",null,"[Select]",null,null,{"$f":"IFERROR((LEFT(N55,1)+LEFT(P55,1)+LEFT(R55,1)+LEFT(T55,1)),\"\")","v":""},null,{"$f":"IFERROR(IF(LEFT(V55,1)=\"1\",Y55*1,IF(LEFT(V55,1)=\"2\",Y55*0.75,IF(LEFT(V55,1)=\"3\",Y55*0.5,\"\"))),\"\")","v":""}]
[]
[null,null,null,"OR (other)",null,null,null,null,null,null,"[Select]",null,null,"[Select]",null,"[Select]",null,"[Select]",null,"[Select]",null,"[Select]",null,null,{"$f":"IFERROR((LEFT(N57,1)+LEFT(P57,1)+LEFT(R57,1)+LEFT(T57,1)),\"\")","v":""},null,{"$f":"IFERROR(IF(LEFT(V57,1)=\"1\",Y57*1,IF(LEFT(V57,1)=\"2\",Y57*0.75,IF(LEFT(V57,1)=\"3\",Y57*0.5,\"\"))),\"\")","v":""}]
[]
[null,null,null,"Surgical floor beds",null,null,null,null,null,null,"[Select]",null,null,"[Select]",null,"[Select]",null,"[Select]",null,"[Select]",null,"[Select]",null,null,{"$f":"IFERROR((LEFT(N59,1)+LEFT(P59,1)+LEFT(R59,1)+LEFT(T59,1)),\"\")","v":""},null,{"$f":"IFERROR(IF(LEFT(V59,1)=\"1\",Y59*1,IF(LEFT(V59,1)=\"2\",Y59*0.75,IF(LEFT(V59,1)=\"3\",Y59*0.5,\"\"))),\"\")","v":""}]
[]
[null,null,null,"Surgical floor beds that could \nbe added to existing rooms",null,null,null,null,null,null,"[Select]",null,null,"[Select]",null,"[Select]",null,"[Select]",null,"[Select]",null,"[Select]",null,null,{"$f":"IFERROR((LEFT(N61,1)+LEFT(P61,1)+LEFT(R61,1)+LEFT(T61,1)),\"\")","v":""},null,{"$f":"IFERROR(IF(LEFT(V61,1)=\"1\",Y61*1,IF(LEFT(V61,1)=\"2\",Y61*0.75,IF(LEFT(V61,1)=\"3\",Y61*0.5,\"\"))),\"\")","v":""}]
[]
[]
[null,null,"Supplies (#)"]
[]
[null,null,null,"Anesthesia machines",null,null,null,null,null,null,"[Select]",null,null,"[Select]",null,"[Select]",null,"[Select]",null,"[Select]",null,"[Select]",null,null,{"$f":"IFERROR((LEFT(N66,1)+LEFT(P66,1)+LEFT(R66,1)+LEFT(T66,1)),\"\")","v":""},null,{"$f":"IFERROR(IF(LEFT(V66,1)=\"1\",Y66*1,IF(LEFT(V66,1)=\"2\",Y66*0.75,IF(LEFT(V66,1)=\"3\",Y66*0.5,\"\"))),\"\")","v":""}]
[]
[null,null,null,"Subset of machines that \ncould be used as ventilators",null,null,null,null,null,null,"[Select]",null,null,"[Select]",null,"[Select]",null,"[Select]",null,"[Select]",null,"[Select]",null,null,{"$f":"IFERROR((LEFT(N68,1)+LEFT(P68,1)+LEFT(R68,1)+LEFT(T68,1)),\"\")","v":""},null,{"$f":"IFERROR(IF(LEFT(V68,1)=\"1\",Y68*1,IF(LEFT(V68,1)=\"2\",Y68*0.75,IF(LEFT(V68,1)=\"3\",Y68*0.5,\"\"))),\"\")","v":""}]
[]
[null,null,null,"Orthopedic – external \nfixators",null,null,null,null,null,null,"[Select]",null,null,"[Select]",null,"[Select]",null,"[Select]",null,"[Select]",null,"[Select]",null,null,{"$f":"IFERROR((LEFT(N70,1)+LEFT(P70,1)+LEFT(R70,1)+LEFT(T70,1)),\"\")","v":""},null,{"$f":"IFERROR(IF(LEFT(V70,1)=\"1\",Y70*1,IF(LEFT(V70,1)=\"2\",Y70*0.75,IF(LEFT(V70,1)=\"3\",Y70*0.5,\"\"))),\"\")","v":""}]
[]
[null,null,null,"Orthopedic – other trays and hardware",null,null,null,null,null,null,"[Select]",null,null,"[Select]",null,"[Select]",null,"[Select]",null,"[Select]",null,"[Select]",null,null,{"$f":"IFERROR((LEFT(N72,1)+LEFT(P72,1)+LEFT(R72,1)+LEFT(T72,1)),\"\")","v":""},null,{"$f":"IFERROR(IF(LEFT(V72,1)=\"1\",Y72*1,IF(LEFT(V72,1)=\"2\",Y72*0.75,IF(LEFT(V72,1)=\"3\",Y72*0.5,\"\"))),\"\")","v":""}]
[]
[null,null,null,"Burn dressings",null,null,null,null,null,null,"[Select]",null,null,"[Select]",null,"[Select]",null,"[Select]",null,"[Select]",null,"[Select]",null,null,{"$f":"IFERROR((LEFT(N74,1)+LEFT(P74,1)+LEFT(R74,1)+LEFT(T74,1)),\"\")","v":""},null,{"$f":"IFERROR(IF(LEFT(V74,1)=\"1\",Y74*1,IF(LEFT(V74,1)=\"2\",Y74*0.75,IF(LEFT(V74,1)=\"3\",Y74*0.5,\"\"))),\"\")","v":""}]
[]
[null,null,null,"Topical antimicrobials – \nburn",null,null,null,null,null,null,"[Select]",null,null,"[Select]",null,"[Select]",null,"[Select]",null,"[Select]",null,"[Select]",null,null,{"$f":"IFERROR((LEFT(N76,1)+LEFT(P76,1)+LEFT(R76,1)+LEFT(T76,1)),\"\")","v":""},null,{"$f":"IFERROR(IF(LEFT(V76,1)=\"1\",Y76*1,IF(LEFT(V76,1)=\"2\",Y76*0.75,IF(LEFT(V76,1)=\"3\",Y76*0.5,\"\"))),\"\")","v":""}]
[]
[null,null,null,"Other burn supplies",null,null,null,null,null,null,"[Select]",null,null,"[Select]",null,"[Select]",null,"[Select]",null,"[Select]",null,"[Select]",null,null,{"$f":"IFERROR((LEFT(N78,1)+LEFT(P78,1)+LEFT(R78,1)+LEFT(T78,1)),\"\")","v":""},null,{"$f":"IFERROR(IF(LEFT(V78,1)=\"1\",Y78*1,IF(LEFT(V78,1)=\"2\",Y78*0.75,IF(LEFT(V78,1)=\"3\",Y78*0.5,\"\"))),\"\")","v":""}]
[]
[null,null,null,"Patient transport carts",null,null,null,null,null,null,"[Select]",null,null,"[Select]",null,"[Select]",null,"[Select]",null,"[Select]",null,"[Select]",null,null,{"$f":"IFERROR((LEFT(N80,1)+LEFT(P80,1)+LEFT(R80,1)+LEFT(T80,1)),\"\")","v":""},null,{"$f":"IFERROR(IF(LEFT(V80,1)=\"1\",Y80*1,IF(LEFT(V80,1)=\"2\",Y80*0.75,IF(LEFT(V80,1)=\"3\",Y80*0.5,\"\"))),\"\")","v":""}]
[]
[null,null,null,"Wheelchairs",null,null,null,null,null,null,"[Select]",null,null,"[Select]",null,"[Select]",null,"[Select]",null,"[Select]",null,"[Select]",null,null,{"$f":"IFERROR((LEFT(N82,1)+LEFT(P82,1)+LEFT(R82,1)+LEFT(T82,1)),\"\")","v":""},null,{"$f":"IFERROR(IF(LEFT(V82,1)=\"1\",Y82*1,IF(LEFT(V82,1)=\"2\",Y82*0.75,IF(LEFT(V82,1)=\"3\",Y82*0.5,\"\"))),\"\")","v":""}]
[]
[null,null,null,"Geri-chairs",null,null,null,null,null,null,"[Select]",null,null,"[Select]",null,"[Select]",null,"[Select]",null,"[Select]",null,"[Select]",null,null,{"$f":"IFERROR((LEFT(N84,1)+LEFT(P84,1)+LEFT(R84,1)+LEFT(T84,1)),\"\")","v":""},null,{"$f":"IFERROR(IF(LEFT(V84,1)=\"1\",Y84*1,IF(LEFT(V84,1)=\"2\",Y84*0.75,IF(LEFT(V84,1)=\"3\",Y84*0.5,\"\"))),\"\")","v":""}]
[]
[null,null,null,"Dedicated communication \nto ED",null,null,null,null,null,null,"[Select]",null,null,"[Select]",null,"[Select]",null,"[Select]",null,"[Select]",null,"[Select]",null,null,{"$f":"IFERROR((LEFT(N86,1)+LEFT(P86,1)+LEFT(R86,1)+LEFT(T86,1)),\"\")","v":""},null,{"$f":"IFERROR(IF(LEFT(V86,1)=\"1\",Y86*1,IF(LEFT(V86,1)=\"2\",Y86*0.75,IF(LEFT(V86,1)=\"3\",Y86*0.5,\"\"))),\"\")","v":""}]
[]
[null,null,null,"Evacuation equipment",null,null,null,null,null,null,"[Select]",null,null,"[Select]",null,"[Select]",null,"[Select]",null,"[Select]",null,"[Select]",null,null,{"$f":"IFERROR((LEFT(N88,1)+LEFT(P88,1)+LEFT(R88,1)+LEFT(T88,1)),\"\")","v":""},null,{"$f":"IFERROR(IF(LEFT(V88,1)=\"1\",Y88*1,IF(LEFT(V88,1)=\"2\",Y88*0.75,IF(LEFT(V88,1)=\"3\",Y88*0.5,\"\"))),\"\")","v":""}]
[]
[]
[null,null,"Other issues:"]
[]
[]
[null,null,"Comments:"]

{"sheet":"Blood Bank","index":16,"n_rows":45,"n_cols":30,"rows_kept":45,"cut":false,"hidden":false,"merged":[[45,2,45,30],[3,3,3,29],[44,2,44,3],[41,2,41,3],[42,2,42,30],[5,10,5,11],[5,13,5,21],[7,3,7,4],[7,19,7,21],[7,26,7,28],[7,6,7,11]]}
[]
[]
[]
[null,null,null,"Hospital Resource Vulnerability Assessment (RVA) - Blood Bank"]
[]
[null,null,null,null,null,null,null,null,null,null,"Hospital:",null,null,{"$f":"IF('Hospital Information'!F9=\"\",\"\",'Hospital Information'!F9)","v":""}]
[]
[null,null,null,"Name of person completing:",null,null,null,null,null,null,null,null,null,"Phone:",null,null,null,"Email:",null,null,null,null,null,null,"Date:",null,null,null,null,"(mm/dd/yyyy)"]
[]
[]
[null,null,null,"Category",null,null,"Current",null,"Goal",null,"Goal Met",null,null,"(L) Likelihood of activation /use in incident",null,"(I) Impact",null,"(R) Risk to life / operations if deficient",null,"(CP) Current preparedness",null,"(Cost) Cost to close gap including supplies and training",null,null,"Overall Priority = L + I + R + CP",null,"Priority related to Cost = \nOverall Priority * Cost",null,null,"Gap Closure Solution and Notes"]
[]
[null,null,"Staff (#)"]
[]
[null,null,null,"Total technologist staff"]
[]
[]
[null,null,"Plans (Y / N / In development)"]
[]
[null,null,null,"Notification / Staff alerting",null,null,null,null,null,null,"[Select]",null,null,"[Select]",null,"[Select]",null,"[Select]",null,"[Select]",null,"[Select]",null,null,{"$f":"IFERROR((LEFT(N20,1)+LEFT(P20,1)+LEFT(R20,1)+LEFT(T20,1)),\"\")","v":""},null,{"$f":"IFERROR(IF(LEFT(V20,1)=\"1\",Y20*1,IF(LEFT(V20,1)=\"2\",Y20*0.75,IF(LEFT(V20,1)=\"3\",Y20*0.5,\"\"))),\"\")","v":""}]
[]
[null,null,null,"Surge capacity – sample \nprocessing and key labs",null,null,null,null,null,null,"[Select]",null,null,"[Select]",null,"[Select]",null,"[Select]",null,"[Select]",null,"[Select]",null,null,{"$f":"IFERROR((LEFT(N22,1)+LEFT(P22,1)+LEFT(R22,1)+LEFT(T22,1)),\"\")","v":""},null,{"$f":"IFERROR(IF(LEFT(V22,1)=\"1\",Y22*1,IF(LEFT(V22,1)=\"2\",Y22*0.75,IF(LEFT(V22,1)=\"3\",Y22*0.5,\"\"))),\"\")","v":""}]
[null,null,null,null,null,null,null,null,null,null,null,null,null,null,null,null,null,null,null,null,null,null,null,null,null,null,null,null,null," "]
[null,null,null,"Scarce resource / disaster \nrestrictions on services",null,null,null,null,null,null,"[Select]",null,null,"[Select]",null,"[Select]",null,"[Select]",null,"[Select]",null,"[Select]",null,null,{"$f":"IFERROR((LEFT(N24,1)+LEFT(P24,1)+LEFT(R24,1)+LEFT(T24,1)),\"\")","v":""},null,{"$f":"IFERROR(IF(LEFT(V24,1)=\"1\",Y24*1,IF(LEFT(V24,1)=\"2\",Y24*0.75,IF(LEFT(V24,1)=\"3\",Y24*0.5,\"\"))),\"\")","v":""}]
[]
[null,null,null,"Surge Plan with Regional \nBlood Bank",null,null,null,null,null,null,"[Select]",null,null,"[Select]",null,"[Select]",null,"[Select]",null,"[Select]",null,"[Select]",null,null,{"$f":"IFERROR((LEFT(N26,1)+LEFT(P26,1)+LEFT(R26,1)+LEFT(T26,1)),\"\")","v":""},null,{"$f":"IFERROR(IF(LEFT(V26,1)=\"1\",Y26*1,IF(LEFT(V26,1)=\"2\",Y26*0.75,IF(LEFT(V26,1)=\"3\",Y26*0.5,\"\"))),\"\")","v":""}]
[]
[null,null,null,"Alternate Communications \nPlan to Regional Blood Bank",null,null,null,null,null,null,"[Select]",null,null,"[Select]",null,"[Select]",null,"[Select]",null,"[Select]",null,"[Select]",null,null,{"$f":"IFERROR((LEFT(N28,1)+LEFT(P28,1)+LEFT(R28,1)+LEFT(T28,1)),\"\")","v":""},null,{"$f":"IFERROR(IF(LEFT(V28,1)=\"1\",Y28*1,IF(LEFT(V28,1)=\"2\",Y28*0.75,IF(LEFT(V28,1)=\"3\",Y28*0.5,\"\"))),\"\")","v":""}]
[]
[null,null,null,"Courier plans (including \nduring lockdown)",null,null,null,null,null,null,"[Select]",null,null,"[Select]",null,"[Select]",null,"[Select]",null,"[Select]",null,"[Select]",null,null,{"$f":"IFERROR((LEFT(N30,1)+LEFT(P30,1)+LEFT(R30,1)+LEFT(T30,1)),\"\")","v":""},null,{"$f":"IFERROR(IF(LEFT(V30,1)=\"1\",Y30*1,IF(LEFT(V30,1)=\"2\",Y30*0.75,IF(LEFT(V30,1)=\"3\",Y30*0.5,\"\"))),\"\")","v":""}]
[]
[null,null,null,"Special pathogen handling",null,null,null,null,null,null,"[Select]",null,null,"[Select]",null,"[Select]",null,"[Select]",null,"[Select]",null,"[Select]",null,null,{"$f":"IFERROR((LEFT(N32,1)+LEFT(P32,1)+LEFT(R32,1)+LEFT(T32,1)),\"\")","v":""},null,{"$f":"IFERROR(IF(LEFT(V32,1)=\"1\",Y32*1,IF(LEFT(V32,1)=\"2\",Y32*0.75,IF(LEFT(V32,1)=\"3\",Y32*0.5,\"\"))),\"\")","v":""}]
[]
[null,null,null,"Blood Bank surge staffing \nplan",null,null,null,null,null,null,"[Select]",null,null,"[Select]",null,"[Select]",null,"[Select]",null,"[Select]",null,"[Select]",null,null,{"$f":"IFERROR((LEFT(N34,1)+LEFT(P34,1)+LEFT(R34,1)+LEFT(T34,1)),\"\")","v":""},null,{"$f":"IFERROR(IF(LEFT(V34,1)=\"1\",Y34*1,IF(LEFT(V34,1)=\"2\",Y34*0.75,IF(LEFT(V34,1)=\"3\",Y34*0.5,\"\"))),\"\")","v":""}]
[]
[]
[null,null,"Supplies (#)"]
[]
[null,null,null,"Blood bank disaster supplies",null,null,null,null,null,null,"[Select]",null,null,"[Select]",null,"[Select]",null,"[Select]",null,"[Select]",null,"[Select]",null,null,{"$f":"IFERROR((LEFT(N39,1)+LEFT(P39,1)+LEFT(R39,1)+LEFT(T39,1)),\"\")","v":""},null,{"$f":"IFERROR(IF(LEFT(V39,1)=\"1\",Y39*1,IF(LEFT(V39,1)=\"2\",Y39*0.75,IF(LEFT(V39,1)=\"3\",Y39*0.5,\"\"))),\"\")","v":""}]
[]
[]
[null,null,"Other issues:"]
[]
[]
[null,null,"Comments:"]

{"sheet":"Facilities_Utilities","index":17,"n_rows":65,"n_cols":30,"rows_kept":65,"cut":false,"hidden":false,"merged":[[65,2,65,30],[3,3,3,29],[64,2,64,3],[5,10,5,11],[5,13,5,21],[7,3,7,4],[7,19,7,21],[7,26,7,28],[7,6,7,11]]}
[]
[]
[]
[null,null,null,"Hospital Resource Vulnerability Assessment (RVA) - Facilities/Utilities"]
[]
[null,null,null,null,null,null,null,null,null,null,"Hospital:",null,null,{"$f":"IF('Hospital Information'!F9=\"\",\"\",'Hospital Information'!F9)","v":""}]
[]
[null,null,null,"Name of person completing:",null,null,null,null,null,null,null,null,null,"Phone:",null,null,null,"Email:",null,null,null,null,null,null,"Date:",null,null,null,null,"(mm/dd/yyyy)"]
[]
[]
[null,null,null,"Category",null,null,"Current",null,"Goal",null,"Goal Met",null,null,"(L) Likelihood of activation /use in incident",null,"(I) Impact",null,"(R) Risk to life / operations if deficient",null,"(CP) Current preparedness",null,"(Cost) Cost to close gap including supplies and training",null,null,"Overall Priority = L + I + R + CP",null,"Priority related to Cost = \nOverall Priority * Cost",null,null,"Gap Closure Solution and Notes"]
[]
[null,null,"Plans (Y / N / In development)"]
[]
[null,null,null,"Damage assessment \ntemplate",null,null,null,null,null,null,"[Select]",null,null,"[Select]",null,"[Select]",null,"[Select]",null,"[Select]",null,"[Select]",null,null,{"$f":"IFERROR((LEFT(N15,1)+LEFT(P15,1)+LEFT(R15,1)+LEFT(T15,1)),\"\")","v":""},null,{"$f":"IFERROR(IF(LEFT(V15,1)=\"1\",Y15*1,IF(LEFT(V15,1)=\"2\",Y15*0.75,IF(LEFT(V15,1)=\"3\",Y15*0.5,\"\"))),\"\")","v":""}]
[]
[null,null,null,"Staff notification / \nalerting plan",null,null,null,null,null,null,"[Select]",null,null,"[Select]",null,"[Select]",null,"[Select]",null,"[Select]",null,"[Select]",null,null,{"$f":"IFERROR((LEFT(N17,1)+LEFT(P17,1)+LEFT(R17,1)+LEFT(T17,1)),\"\")","v":""},null,{"$f":"IFERROR(IF(LEFT(V17,1)=\"1\",Y17*1,IF(LEFT(V17,1)=\"2\",Y17*0.75,IF(LEFT(V17,1)=\"3\",Y17*0.5,\"\"))),\"\")","v":""}]
[]
[null,null,null,"Liquid oxygen / medical gas contingencies",null,null,null,null,null,null,"[Select]",null,null,"[Select]",null,"[Select]",null,"[Select]",null,"[Select]",null,"[Select]",null,null,{"$f":"IFERROR((LEFT(N19,1)+LEFT(P19,1)+LEFT(R19,1)+LEFT(T19,1)),\"\")","v":""},null,{"$f":"IFERROR(IF(LEFT(V19,1)=\"1\",Y19*1,IF(LEFT(V19,1)=\"2\",Y19*0.75,IF(LEFT(V19,1)=\"3\",Y19*0.5,\"\"))),\"\")","v":""}]
[]
[null,null,null,"General waste disposal \ncontingency",null,null,null,null,null,null,"[Select]",null,null,"[Select]",null,"[Select]",null,"[Select]",null,"[Select]",null,"[Select]",null,null,{"$f":"IFERROR((LEFT(N21,1)+LEFT(P21,1)+LEFT(R21,1)+LEFT(T21,1)),\"\")","v":""},null,{"$f":"IFERROR(IF(LEFT(V21,1)=\"1\",Y21*1,IF(LEFT(V21,1)=\"2\",Y21*0.75,IF(LEFT(V21,1)=\"3\",Y21*0.5,\"\"))),\"\")","v":""}]
[]
[null,null,null,"Medical waste disposal \ncontingency",null,null,null,null,null,null,"[Select]",null,null,"[Select]",null,"[Select]",null,"[Select]",null,"[Select]",null,"[Select]",null,null,{"$f":"IFERROR((LEFT(N23,1)+LEFT(P23,1)+LEFT(R23,1)+LEFT(T23,1)),\"\")","v":""},null,{"$f":"IFERROR(IF(LEFT(V23,1)=\"1\",Y23*1,IF(LEFT(V23,1)=\"2\",Y23*0.75,IF(LEFT(V23,1)=\"3\",Y23*0.5,\"\"))),\"\")","v":""}]
[]
[null,null,null,"Elevator failure plan",null,null,null,null,null,null,"[Select]",null,null,"[Select]",null,"[Select]",null,"[Select]",null,"[Select]",null,"[Select]",null,null,{"$f":"IFERROR((LEFT(N25,1)+LEFT(P25,1)+LEFT(R25,1)+LEFT(T25,1)),\"\")","v":""},null,{"$f":"IFERROR(IF(LEFT(V25,1)=\"1\",Y25*1,IF(LEFT(V25,1)=\"2\",Y25*0.75,IF(LEFT(V25,1)=\"3\",Y25*0.5,\"\"))),\"\")","v":""}]
[]
[null,null,null,"HVAC failure plan",null,null,null,null,null,null,"[Select]",null,null,"[Select]",null,"[Select]",null,"[Select]",null,"[Select]",null,"[Select]",null,null,{"$f":"IFERROR((LEFT(N27,1)+LEFT(P27,1)+LEFT(R27,1)+LEFT(T27,1)),\"\")","v":""},null,{"$f":"IFERROR(IF(LEFT(V27,1)=\"1\",Y27*1,IF(LEFT(V27,1)=\"2\",Y27*0.75,IF(LEFT(V27,1)=\"3\",Y27*0.5,\"\"))),\"\")","v":""}]
[]
[null,null,null,"Water failure plan",null,null,null,null,null,null,"[Select]",null,null,"[Select]",null,"[Select]",null,"[Select]",null,"[Select]",null,"[Select]",null,null,{"$f":"IFERROR((LEFT(N29,1)+LEFT(P29,1)+LEFT(R29,1)+LEFT(T29,1)),\"\")","v":""},null,{"$f":"IFERROR(IF(LEFT(V29,1)=\"1\",Y29*1,IF(LEFT(V29,1)=\"2\",Y29*0.75,IF(LEFT(V29,1)=\"3\",Y29*0.5,\"\"))),\"\")","v":""}]
[]
[null,null,null,"Steam failure plan",null,null,null,null,null,null,"[Select]",null,null,"[Select]",null,"[Select]",null,"[Select]",null,"[Select]",null,"[Select]",null,null,{"$f":"IFERROR((LEFT(N31,1)+LEFT(P31,1)+LEFT(R31,1)+LEFT(T31,1)),\"\")","v":""},null,{"$f":"IFERROR(IF(LEFT(V31,1)=\"1\",Y31*1,IF(LEFT(V31,1)=\"2\",Y31*0.75,IF(LEFT(V31,1)=\"3\",Y31*0.5,\"\"))),\"\")","v":""}]
[]
[]
[null,null,"Supplies (#)"]
[]
[null,null,null,"Generators - including \ncapacity, location",null,null,null,null,null,null,"[Select]",null,null,"[Select]",null,"[Select]",null,"[Select]",null,"[Select]",null,"[Select]",null,null,{"$f":"IFERROR((LEFT(N36,1)+LEFT(P36,1)+LEFT(R36,1)+LEFT(T36,1)),\"\")","v":""},null,{"$f":"IFERROR(IF(LEFT(V36,1)=\"1\",Y36*1,IF(LEFT(V36,1)=\"2\",Y36*0.75,IF(LEFT(V36,1)=\"3\",Y36*0.5,\"\"))),\"\")","v":""}]
[]
[null,null,null,"Emergency power outlet / \nsupply",null,null,null,null,null,null,"[Select]",null,null,"[Select]",null,"[Select]",null,"[Select]",null,"[Select]",null,"[Select]",null,null,{"$f":"IFERROR((LEFT(N38,1)+LEFT(P38,1)+LEFT(R38,1)+LEFT(T38,1)),\"\")","v":""},null,{"$f":"IFERROR(IF(LEFT(V38,1)=\"1\",Y38*1,IF(LEFT(V38,1)=\"2\",Y38*0.75,IF(LEFT(V38,1)=\"3\",Y38*0.5,\"\"))),\"\")","v":""}]
[null,null,null,null,null,null,null,null,null,null,null,null,null,null,null,null,null,null,null,null,null,null,null,null,null,null,null,null,null," "]
[null,null,null,"Connections for external \ngenerators",null,null,null,null,null,null,"[Select]",null,null,"[Select]",null,"[Select]",null,"[Select]",null,"[Select]",null,"[Select]",null,null,{"$f":"IFERROR((LEFT(N40,1)+LEFT(P40,1)+LEFT(R40,1)+LEFT(T40,1)),\"\")","v":""},null,{"$f":"IFERROR(IF(LEFT(V40,1)=\"1\",Y40*1,IF(LEFT(V40,1)=\"2\",Y40*0.75,IF(LEFT(V40,1)=\"3\",Y40*0.5,\"\"))),\"\")","v":""}]
[]
[null,null,null,"Potable water",null,null,null,null,null,null,"[Select]",null,null,"[Select]",null,"[Select]",null,"[Select]",null,"[Select]",null,"[Select]",null,null,{"$f":"IFERROR((LEFT(N42,1)+LEFT(P42,1)+LEFT(R42,1)+LEFT(T42,1)),\"\")","v":""},null,{"$f":"IFERROR(IF(LEFT(V42,1)=\"1\",Y42*1,IF(LEFT(V42,1)=\"2\",Y42*0.75,IF(LEFT(V42,1)=\"3\",Y42*0.5,\"\"))),\"\")","v":""}]
[]
[null,null,null,"Structural damage response equipment and PPE",null,null,null,null,null,null,"[Select]",null,null,"[Select]",null,"[Select]",null,"[Select]",null,"[Select]",null,"[Select]",null,null,{"$f":"IFERROR((LEFT(N44,1)+LEFT(P44,1)+LEFT(R44,1)+LEFT(T44,1)),\"\")","v":""},null,{"$f":"IFERROR(IF(LEFT(V44,1)=\"1\",Y44*1,IF(LEFT(V44,1)=\"2\",Y44*0.75,IF(LEFT(V44,1)=\"3\",Y44*0.5,\"\"))),\"\")","v":""}]
[]
[null,null,null,"Fuel - on-site storage \n(including hours of generator operation at 100%)",null,null,null,null,null,null,"[Select]",null,null,"[Select]",null,"[Select]",null,"[Select]",null,"[Select]",null,"[Select]",null,null,{"$f":"IFERROR((LEFT(N46,1)+LEFT(P46,1)+LEFT(R46,1)+LEFT(T46,1)),\"\")","v":""},null,{"$f":"IFERROR(IF(LEFT(V46,1)=\"1\",Y46*1,IF(LEFT(V46,1)=\"2\",Y46*0.75,IF(LEFT(V46,1)=\"3\",Y46*0.5,\"\"))),\"\")","v":""}]
[]
[]
[null,null,"Other issues (Y / N / In development)"]
[]
[null,null,null,"Sewer backflow protection",null,null,null,null,null,null,"[Select]",null,null,"[Select]",null,"[Select]",null,"[Select]",null,"[Select]",null,"[Select]",null,null,{"$f":"IFERROR((LEFT(N51,1)+LEFT(P51,1)+LEFT(R51,1)+LEFT(T51,1)),\"\")","v":""},null,{"$f":"IFERROR(IF(LEFT(V51,1)=\"1\",Y51*1,IF(LEFT(V51,1)=\"2\",Y51*0.75,IF(LEFT(V51,1)=\"3\",Y51*0.5,\"\"))),\"\")","v":""}]
[]
[null,null,null,"On-site well water access",null,null,null,null,null,null,"[Select]",null,null,"[Select]",null,"[Select]",null,"[Select]",null,"[Select]",null,"[Select]",null,null,{"$f":"IFERROR((LEFT(N53,1)+LEFT(P53,1)+LEFT(R53,1)+LEFT(T53,1)),\"\")","v":""},null,{"$f":"IFERROR(IF(LEFT(V53,1)=\"1\",Y53*1,IF(LEFT(V53,1)=\"2\",Y53*0.75,IF(LEFT(V53,1)=\"3\",Y53*0.5,\"\"))),\"\")","v":""}]
[]
[null,null,null,"Electrical system \nvulnerabilities - flooding, etc.",null,null,null,null,null,null,"[Select]",null,null,"[Select]",null,"[Select]",null,"[Select]",null,"[Select]",null,"[Select]",null,null,{"$f":"IFERROR((LEFT(N55,1)+LEFT(P55,1)+LEFT(R55,1)+LEFT(T55,1)),\"\")","v":""},null,{"$f":"IFERROR(IF(LEFT(V55,1)=\"1\",Y55*1,IF(LEFT(V55,1)=\"2\",Y55*0.75,IF(LEFT(V55,1)=\"3\",Y55*0.5,\"\"))),\"\")","v":""}]
[]
[null,null,null,"Boilers / HVAC on generator?",null,null,null,null,null,null,"[Select]",null,null,"[Select]",null,"[Select]",null,"[Select]",null,"[Select]",null,"[Select]",null,null,{"$f":"IFERROR((LEFT(N57,1)+LEFT(P57,1)+LEFT(R57,1)+LEFT(T57,1)),\"\")","v":""},null,{"$f":"IFERROR(IF(LEFT(V57,1)=\"1\",Y57*1,IF(LEFT(V57,1)=\"2\",Y57*0.75,IF(LEFT(V57,1)=\"3\",Y57*0.5,\"\"))),\"\")","v":""}]
[]
[null,null,null,"Fuel pumps (vehicles and \nother) on generator?",null,null,null,null,null,null,"[Select]",null,null,"[Select]",null,"[Select]",null,"[Select]",null,"[Select]",null,"[Select]",null,null,{"$f":"IFERROR((LEFT(N59,1)+LEFT(P59,1)+LEFT(R59,1)+LEFT(T59,1)),\"\")","v":""},null,{"$f":"IFERROR(IF(LEFT(V59,1)=\"1\",Y59*1,IF(LEFT(V59,1)=\"2\",Y59*0.75,IF(LEFT(V59,1)=\"3\",Y59*0.5,\"\"))),\"\")","v":""}]
[]
[]
[null,null,null,"Connections for external \noxygen",null,null,null,null,null,null,"[Select]",null,null,"[Select]",null,"[Select]",null,"[Select]",null,"[Select]",null,"[Select]",null,null,{"$f":"IFERROR((LEFT(N62,1)+LEFT(P62,1)+LEFT(R62,1)+LEFT(T62,1)),\"\")","v":""},null,{"$f":"IFERROR(IF(LEFT(V62,1)=\"1\",Y62*1,IF(LEFT(V62,1)=\"2\",Y62*0.75,IF(LEFT(V62,1)=\"3\",Y62*0.5,\"\"))),\"\")","v":""}]
[]
[]
[null,null,"Comments:"]

{"sheet":"Infection Prev and Cont","index":18,"n_rows":56,"n_cols":30,"rows_kept":56,"cut":false,"hidden":false,"merged":[[56,2,56,30],[3,3,3,29],[55,2,55,3],[52,2,52,3],[53,2,53,30],[5,10,5,11],[5,13,5,21],[7,3,7,4],[7,19,7,21],[7,26,7,28],[7,6,7,11]]}
[]
[]
[]
[null,null,null,"Hospital Resource Vulnerability Assessment (RVA) - Infection Prevention and Control"]
[]
[null,null,null,null,null,null,null,null,null,null,"Hospital:",null,null,{"$f":"IF('Hospital Information'!F9=\"\",\"\",'Hospital Information'!F9)","v":""}]
[]
[null,null,null,"Name of person completing:",null,null,null,null,null,null,null,null,null,"Phone:",null,null,null,"Email:",null,null,null,null,null,null,"Date:",null,null,null,null,"(mm/dd/yyyy)"]
[]
[]
[null,null,null,"Category",null,null,"Current",null,"Goal",null,"Goal Met",null,null,"(L) Likelihood of activation /use in incident",null,"(I) Impact",null,"(R) Risk to life / operations if deficient",null,"(CP) Current preparedness",null,"(Cost) Cost to close gap including supplies and training",null,null,"Overall Priority = L + I + R + CP",null,"Priority related to Cost = \nOverall Priority * Cost",null,null,"Gap Closure Solution and Notes"]
[]
[null,null,"Staff (#)"]
[]
[null,null,null,"Total Staff"]
[]
[]
[null,null,"Plans (Y / N / In development)"]
[]
[null,null,null,"Highly contagious \npathogens",null,null,null,null,null,null,"[Select]",null,null,"[Select]",null,"[Select]",null,"[Select]",null,"[Select]",null,"[Select]",null,null,{"$f":"IFERROR((LEFT(N20,1)+LEFT(P20,1)+LEFT(R20,1)+LEFT(T20,1)),\"\")","v":""},null,{"$f":"IFERROR(IF(LEFT(V20,1)=\"1\",Y20*1,IF(LEFT(V20,1)=\"2\",Y20*0.75,IF(LEFT(V20,1)=\"3\",Y20*0.5,\"\"))),\"\")","v":""}]
[]
[null,null,null,"Pandemic",null,null,null,null,null,null,"[Select]",null,null,"[Select]",null,"[Select]",null,"[Select]",null,"[Select]",null,"[Select]",null,null,{"$f":"IFERROR((LEFT(N22,1)+LEFT(P22,1)+LEFT(R22,1)+LEFT(T22,1)),\"\")","v":""},null,{"$f":"IFERROR(IF(LEFT(V22,1)=\"1\",Y22*1,IF(LEFT(V22,1)=\"2\",Y22*0.75,IF(LEFT(V22,1)=\"3\",Y22*0.5,\"\"))),\"\")","v":""}]
[null,null,null,null,null,null,null,null,null,null,null,null,null,null,null,null,null,null,null,null,null,null,null,null,null,null,null,null,null," "]
[null,null,null,"Contagious cohort plan / iso \nsurge plan",null,null,null,null,null,null,"[Select]",null,null,"[Select]",null,"[Select]",null,"[Select]",null,"[Select]",null,"[Select]",null,null,{"$f":"IFERROR((LEFT(N24,1)+LEFT(P24,1)+LEFT(R24,1)+LEFT(T24,1)),\"\")","v":""},null,{"$f":"IFERROR(IF(LEFT(V24,1)=\"1\",Y24*1,IF(LEFT(V24,1)=\"2\",Y24*0.75,IF(LEFT(V24,1)=\"3\",Y24*0.5,\"\"))),\"\")","v":""}]
[]
[null,null,null,"Epidemic triage/screening \nplan",null,null,null,null,null,null,"[Select]",null,null,"[Select]",null,"[Select]",null,"[Select]",null,"[Select]",null,"[Select]",null,null,{"$f":"IFERROR((LEFT(N26,1)+LEFT(P26,1)+LEFT(R26,1)+LEFT(T26,1)),\"\")","v":""},null,{"$f":"IFERROR(IF(LEFT(V26,1)=\"1\",Y26*1,IF(LEFT(V26,1)=\"2\",Y26*0.75,IF(LEFT(V26,1)=\"3\",Y26*0.5,\"\"))),\"\")","v":""}]
[]
[null,null,null,"Staff prophylaxis and \nvaccination plan",null,null,null,null,null,null,"[Select]",null,null,"[Select]",null,"[Select]",null,"[Select]",null,"[Select]",null,"[Select]",null,null,{"$f":"IFERROR((LEFT(N28,1)+LEFT(P28,1)+LEFT(R28,1)+LEFT(T28,1)),\"\")","v":""},null,{"$f":"IFERROR(IF(LEFT(V28,1)=\"1\",Y28*1,IF(LEFT(V28,1)=\"2\",Y28*0.75,IF(LEFT(V28,1)=\"3\",Y28*0.5,\"\"))),\"\")","v":""}]
[]
[null,null,null,"Staff surveillance and \nscreening plan",null,null,null,null,null,null,"[Select]",null,null,"[Select]",null,"[Select]",null,"[Select]",null,"[Select]",null,"[Select]",null,null,{"$f":"IFERROR((LEFT(N30,1)+LEFT(P30,1)+LEFT(R30,1)+LEFT(T30,1)),\"\")","v":""},null,{"$f":"IFERROR(IF(LEFT(V30,1)=\"1\",Y30*1,IF(LEFT(V30,1)=\"2\",Y30*0.75,IF(LEFT(V30,1)=\"3\",Y30*0.5,\"\"))),\"\")","v":""}]
[]
[]
[null,null,"Space (# of beds in each space)"]
[]
[null,null,null,"AIIR rooms",null,null,null,null,null,null,"[Select]",null,null,"[Select]",null,"[Select]",null,"[Select]",null,"[Select]",null,"[Select]",null,null,{"$f":"IFERROR((LEFT(N35,1)+LEFT(P35,1)+LEFT(R35,1)+LEFT(T35,1)),\"\")","v":""},null,{"$f":"IFERROR(IF(LEFT(V35,1)=\"1\",Y35*1,IF(LEFT(V35,1)=\"2\",Y35*0.75,IF(LEFT(V35,1)=\"3\",Y35*0.5,\"\"))),\"\")","v":""}]
[]
[null,null,null,"Potential single to double \nAIIR?",null,null,null,null,null,null,"[Select]",null,null,"[Select]",null,"[Select]",null,"[Select]",null,"[Select]",null,"[Select]",null,null,{"$f":"IFERROR((LEFT(N37,1)+LEFT(P37,1)+LEFT(R37,1)+LEFT(T37,1)),\"\")","v":""},null,{"$f":"IFERROR(IF(LEFT(V37,1)=\"1\",Y37*1,IF(LEFT(V37,1)=\"2\",Y37*0.75,IF(LEFT(V37,1)=\"3\",Y37*0.5,\"\"))),\"\")","v":""}]
[]
[]
[null,null,"Supplies (#)"]
[]
[null,null,null,"N95",null,null,null,null,null,null,"[Select]",null,null,"[Select]",null,"[Select]",null,"[Select]",null,"[Select]",null,"[Select]",null,null,{"$f":"IFERROR((LEFT(N42,1)+LEFT(P42,1)+LEFT(R42,1)+LEFT(T42,1)),\"\")","v":""},null,{"$f":"IFERROR(IF(LEFT(V42,1)=\"1\",Y42*1,IF(LEFT(V42,1)=\"2\",Y42*0.75,IF(LEFT(V42,1)=\"3\",Y42*0.5,\"\"))),\"\")","v":""}]
[]
[]
[]
[null,null,null,"Special pathogen PPE kits",null,null,null,null,null,null,"[Select]",null,null,"[Select]",null,"[Select]",null,"[Select]",null,"[Select]",null,"[Select]",null,null,{"$f":"IFERROR((LEFT(N46,1)+LEFT(P46,1)+LEFT(R46,1)+LEFT(T46,1)),\"\")","v":""},null,{"$f":"IFERROR(IF(LEFT(V46,1)=\"1\",Y46*1,IF(LEFT(V46,1)=\"2\",Y46*0.75,IF(LEFT(V46,1)=\"3\",Y46*0.5,\"\"))),\"\")","v":""}]
[]
[null,null,null,"Barrier gowns / suits",null,null,null,null,null,null,"[Select]",null,null,"[Select]",null,"[Select]",null,"[Select]",null,"[Select]",null,"[Select]",null,null,{"$f":"IFERROR((LEFT(N48,1)+LEFT(P48,1)+LEFT(R48,1)+LEFT(T48,1)),\"\")","v":""},null,{"$f":"IFERROR(IF(LEFT(V48,1)=\"1\",Y48*1,IF(LEFT(V48,1)=\"2\",Y48*0.75,IF(LEFT(V48,1)=\"3\",Y48*0.5,\"\"))),\"\")","v":""}]
[]
[null,null,null,"PAPR for infection control",null,null,null,null,null,null,"[Select]",null,null,"[Select]",null,"[Select]",null,"[Select]",null,"[Select]",null,"[Select]",null,null,{"$f":"IFERROR((LEFT(N50,1)+LEFT(P50,1)+LEFT(R50,1)+LEFT(T50,1)),\"\")","v":""},null,{"$f":"IFERROR(IF(LEFT(V50,1)=\"1\",Y50*1,IF(LEFT(V50,1)=\"2\",Y50*0.75,IF(LEFT(V50,1)=\"3\",Y50*0.5,\"\"))),\"\")","v":""}]
[]
[]
[null,null,"Other issues:"]
[]
[]
[null,null,"Comments:"]

{"sheet":"IT_Communications","index":19,"n_rows":58,"n_cols":30,"rows_kept":58,"cut":false,"hidden":false,"merged":[[58,2,58,30],[3,3,3,29],[57,2,57,3],[54,2,54,3],[55,2,55,30],[5,10,5,11],[5,13,5,21],[7,3,7,4],[7,19,7,21],[7,26,7,28],[7,6,7,11]]}
[]
[]
[]
[null,null,null,"Hospital Resource Vulnerability Assessment (RVA) - IT/Communications"]
[]
[null,null,null,null,null,null,null,null,null,null,"Hospital:",null,null,{"$f":"IF('Hospital Information'!F9=\"\",\"\",'Hospital Information'!F9)","v":""}]
[]
[null,null,null,"Name of person completing:",null,null,null,null,null,null,null,null,null,"Phone:",null,null,null,"Email:",null,null,null,null,null,null,"Date:",null,null,null,null,"(mm/dd/yyyy)"]
[]
[]
[null,null,null,"Category",null,null,"Current",null,"Goal",null,"Goal Met",null,null,"(L) Likelihood of activation /use in incident",null,"(I) Impact",null,"(R) Risk to life / operations if deficient",null,"(CP) Current preparedness",null,"(Cost) Cost to close gap including supplies and training",null,null,"Overall Priority = L + I + R + CP",null,"Priority related to Cost = \nOverall Priority * Cost",null,null,"Gap Closure Solution and Notes"]
[]
[null,null,"Plans (Y / N / In development)"]
[]
[null,null,null,"Hardware failure plan",null,null,null,null,null,null,"[Select]",null,null,"[Select]",null,"[Select]",null,"[Select]",null,"[Select]",null,"[Select]",null,null,{"$f":"IFERROR((LEFT(N15,1)+LEFT(P15,1)+LEFT(R15,1)+LEFT(T15,1)),\"\")","v":""},null,{"$f":"IFERROR(IF(LEFT(V15,1)=\"1\",Y15*1,IF(LEFT(V15,1)=\"2\",Y15*0.75,IF(LEFT(V15,1)=\"3\",Y15*0.5,\"\"))),\"\")","v":""}]
[]
[null,null,null,"EMR failure  plan",null,null,null,null,null,null,"[Select]",null,null,"[Select]",null,"[Select]",null,"[Select]",null,"[Select]",null,"[Select]",null,null,{"$f":"IFERROR((LEFT(N17,1)+LEFT(P17,1)+LEFT(R17,1)+LEFT(T17,1)),\"\")","v":""},null,{"$f":"IFERROR(IF(LEFT(V17,1)=\"1\",Y17*1,IF(LEFT(V17,1)=\"2\",Y17*0.75,IF(LEFT(V17,1)=\"3\",Y17*0.5,\"\"))),\"\")","v":""}]
[null,null,null,null,null,null,null,null,null,null,null,null,null,null,null,null,null,null,null,null,null,null,null,null,null,null,null,null,null," "]
[null,null,null,"Billing systems failure plan",null,null,null,null,null,null,"[Select]",null,null,"[Select]",null,"[Select]",null,"[Select]",null,"[Select]",null,"[Select]",null,null,{"$f":"IFERROR((LEFT(N19,1)+LEFT(P19,1)+LEFT(R19,1)+LEFT(T19,1)),\"\")","v":""},null,{"$f":"IFERROR(IF(LEFT(V19,1)=\"1\",Y19*1,IF(LEFT(V19,1)=\"2\",Y19*0.75,IF(LEFT(V19,1)=\"3\",Y19*0.5,\"\"))),\"\")","v":""}]
[]
[null,null,null,"Financial systems failure plan",null,null,null,null,null,null,"[Select]",null,null,"[Select]",null,"[Select]",null,"[Select]",null,"[Select]",null,"[Select]",null,null,{"$f":"IFERROR((LEFT(N21,1)+LEFT(P21,1)+LEFT(R21,1)+LEFT(T21,1)),\"\")","v":""},null,{"$f":"IFERROR(IF(LEFT(V21,1)=\"1\",Y21*1,IF(LEFT(V21,1)=\"2\",Y21*0.75,IF(LEFT(V21,1)=\"3\",Y21*0.5,\"\"))),\"\")","v":""}]
[]
[null,null,null,"PACS failure plan",null,null,null,null,null,null,"[Select]",null,null,"[Select]",null,"[Select]",null,"[Select]",null,"[Select]",null,"[Select]",null,null,{"$f":"IFERROR((LEFT(N23,1)+LEFT(P23,1)+LEFT(R23,1)+LEFT(T23,1)),\"\")","v":""},null,{"$f":"IFERROR(IF(LEFT(V23,1)=\"1\",Y23*1,IF(LEFT(V23,1)=\"2\",Y23*0.75,IF(LEFT(V23,1)=\"3\",Y23*0.5,\"\"))),\"\")","v":""}]
[]
[null,null,null,"Internet failure plan \n(including VOIP)",null,null,null,null,null,null,"[Select]",null,null,"[Select]",null,"[Select]",null,"[Select]",null,"[Select]",null,"[Select]",null,null,{"$f":"IFERROR((LEFT(N25,1)+LEFT(P25,1)+LEFT(R25,1)+LEFT(T25,1)),\"\")","v":""},null,{"$f":"IFERROR(IF(LEFT(V25,1)=\"1\",Y25*1,IF(LEFT(V25,1)=\"2\",Y25*0.75,IF(LEFT(V25,1)=\"3\",Y25*0.5,\"\"))),\"\")","v":""}]
[]
[null,null,null,"Staff notification plan",null,null,null,null,null,null,"[Select]",null,null,"[Select]",null,"[Select]",null,"[Select]",null,"[Select]",null,"[Select]",null,null,{"$f":"IFERROR((LEFT(N27,1)+LEFT(P27,1)+LEFT(R27,1)+LEFT(T27,1)),\"\")","v":""},null,{"$f":"IFERROR(IF(LEFT(V27,1)=\"1\",Y27*1,IF(LEFT(V27,1)=\"2\",Y27*0.75,IF(LEFT(V27,1)=\"3\",Y27*0.5,\"\"))),\"\")","v":""}]
[]
[null,null,null,"Notification system failure \nplan",null,null,null,null,null,null,"[Select]",null,null,"[Select]",null,"[Select]",null,"[Select]",null,"[Select]",null,"[Select]",null,null,{"$f":"IFERROR((LEFT(N29,1)+LEFT(P29,1)+LEFT(R29,1)+LEFT(T29,1)),\"\")","v":""},null,{"$f":"IFERROR(IF(LEFT(V29,1)=\"1\",Y29*1,IF(LEFT(V29,1)=\"2\",Y29*0.75,IF(LEFT(V29,1)=\"3\",Y29*0.5,\"\"))),\"\")","v":""}]
[]
[null,null,null,"Phone system failure plan (external)",null,null,null,null,null,null,"[Select]",null,null,"[Select]",null,"[Select]",null,"[Select]",null,"[Select]",null,"[Select]",null,null,{"$f":"IFERROR((LEFT(N31,1)+LEFT(P31,1)+LEFT(R31,1)+LEFT(T31,1)),\"\")","v":""},null,{"$f":"IFERROR(IF(LEFT(V31,1)=\"1\",Y31*1,IF(LEFT(V31,1)=\"2\",Y31*0.75,IF(LEFT(V31,1)=\"3\",Y31*0.5,\"\"))),\"\")","v":""}]
[]
[null,null,null,"Phone system failure plan (internal)",null,null,null,null,null,null,"[Select]",null,null,"[Select]",null,"[Select]",null,"[Select]",null,"[Select]",null,"[Select]",null,null,{"$f":"IFERROR((LEFT(N33,1)+LEFT(P33,1)+LEFT(R33,1)+LEFT(T33,1)),\"\")","v":""},null,{"$f":"IFERROR(IF(LEFT(V33,1)=\"1\",Y33*1,IF(LEFT(V33,1)=\"2\",Y33*0.75,IF(LEFT(V33,1)=\"3\",Y33*0.5,\"\"))),\"\")","v":""}]
[]
[null,null,null,"Cyberattack plan",null,null,null,null,null,null,"[Select]",null,null,"[Select]",null,"[Select]",null,"[Select]",null,"[Select]",null,"[Select]",null,null,{"$f":"IFERROR((LEFT(N35,1)+LEFT(P35,1)+LEFT(R35,1)+LEFT(T35,1)),\"\")","v":""},null,{"$f":"IFERROR(IF(LEFT(V35,1)=\"1\",Y35*1,IF(LEFT(V35,1)=\"2\",Y35*0.75,IF(LEFT(V35,1)=\"3\",Y35*0.5,\"\"))),\"\")","v":""}]
[]
[null,null,null,"Patient data / records management in evacuation",null,null,null,null,null,null,"[Select]",null,null,"[Select]",null,"[Select]",null,"[Select]",null,"[Select]",null,"[Select]",null,null,{"$f":"IFERROR((LEFT(N37,1)+LEFT(P37,1)+LEFT(R37,1)+LEFT(T37,1)),\"\")","v":""},null,{"$f":"IFERROR(IF(LEFT(V37,1)=\"1\",Y37*1,IF(LEFT(V37,1)=\"2\",Y37*0.75,IF(LEFT(V37,1)=\"3\",Y37*0.5,\"\"))),\"\")","v":""}]
[]
[null,null,null,"IT supervisor included in \ndisaster notification?",null,null,null,null,null,null,"[Select]",null,null,"[Select]",null,"[Select]",null,"[Select]",null,"[Select]",null,"[Select]",null,null,{"$f":"IFERROR((LEFT(N39,1)+LEFT(P39,1)+LEFT(R39,1)+LEFT(T39,1)),\"\")","v":""},null,{"$f":"IFERROR(IF(LEFT(V39,1)=\"1\",Y39*1,IF(LEFT(V39,1)=\"2\",Y39*0.75,IF(LEFT(V39,1)=\"3\",Y39*0.5,\"\"))),\"\")","v":""}]
[]
[]
[null,null,"Supplies (#)"]
[]
[null,null,null,"Remote site hosting",null,null,null,null,null,null,"[Select]",null,null,"[Select]",null,"[Select]",null,"[Select]",null,"[Select]",null,"[Select]",null,null,{"$f":"IFERROR((LEFT(N44,1)+LEFT(P44,1)+LEFT(R44,1)+LEFT(T44,1)),\"\")","v":""},null,{"$f":"IFERROR(IF(LEFT(V44,1)=\"1\",Y44*1,IF(LEFT(V44,1)=\"2\",Y44*0.75,IF(LEFT(V44,1)=\"3\",Y44*0.5,\"\"))),\"\")","v":""}]
[]
[null,null,null,"Notification system (pager, \netc)",null,null,null,null,null,null,"[Select]",null,null,"[Select]",null,"[Select]",null,"[Select]",null,"[Select]",null,"[Select]",null,null,{"$f":"IFERROR((LEFT(N46,1)+LEFT(P46,1)+LEFT(R46,1)+LEFT(T46,1)),\"\")","v":""},null,{"$f":"IFERROR(IF(LEFT(V46,1)=\"1\",Y46*1,IF(LEFT(V46,1)=\"2\",Y46*0.75,IF(LEFT(V46,1)=\"3\",Y46*0.5,\"\"))),\"\")","v":""}]
[]
[null,null,null,"Public address system",null,null,null,null,null,null,"[Select]",null,null,"[Select]",null,"[Select]",null,"[Select]",null,"[Select]",null,"[Select]",null,null,{"$f":"IFERROR((LEFT(N48,1)+LEFT(P48,1)+LEFT(R48,1)+LEFT(T48,1)),\"\")","v":""},null,{"$f":"IFERROR(IF(LEFT(V48,1)=\"1\",Y48*1,IF(LEFT(V48,1)=\"2\",Y48*0.75,IF(LEFT(V48,1)=\"3\",Y48*0.5,\"\"))),\"\")","v":""}]
[]
[null,null,null,"Message boards / other",null,null,null,null,null,null,"[Select]",null,null,"[Select]",null,"[Select]",null,"[Select]",null,"[Select]",null,"[Select]",null,null,{"$f":"IFERROR((LEFT(N50,1)+LEFT(P50,1)+LEFT(R50,1)+LEFT(T50,1)),\"\")","v":""},null,{"$f":"IFERROR(IF(LEFT(V50,1)=\"1\",Y50*1,IF(LEFT(V50,1)=\"2\",Y50*0.75,IF(LEFT(V50,1)=\"3\",Y50*0.5,\"\"))),\"\")","v":""}]
[]
[null,null,null,"Web-hosting",null,null,null,null,null,null,"[Select]",null,null,"[Select]",null,"[Select]",null,"[Select]",null,"[Select]",null,"[Select]",null,null,{"$f":"IFERROR((LEFT(N52,1)+LEFT(P52,1)+LEFT(R52,1)+LEFT(T52,1)),\"\")","v":""},null,{"$f":"IFERROR(IF(LEFT(V52,1)=\"1\",Y52*1,IF(LEFT(V52,1)=\"2\",Y52*0.75,IF(LEFT(V52,1)=\"3\",Y52*0.5,\"\"))),\"\")","v":""}]
[]
[]
[null,null,"Other issues:"]
[]
[]
[null,null,"Comments:"]

{"sheet":"Lab","index":20,"n_rows":46,"n_cols":30,"rows_kept":46,"cut":false,"hidden":false,"merged":[[46,2,46,30],[3,3,3,29],[45,2,45,3],[42,2,42,3],[43,2,43,30],[5,10,5,11],[5,13,5,21],[7,3,7,4],[7,19,7,21],[7,26,7,28],[7,6,7,11]]}
[]
[]
[]
[null,null,null,"Hospital Resource Vulnerability Assessment (RVA) - Lab"]
[]
[null,null,null,null,null,null,null,null,null,null,"Hospital:",null,null,{"$f":"IF('Hospital Information'!F9=\"\",\"\",'Hospital Information'!F9)","v":""}]
[]
[null,null,null,"Name of person completing:",null,null,null,null,null,null,null,null,null,"Phone:",null,null,null,"Email:",null,null,null,null,null,null,"Date:",null,null,null,null,"(mm/dd/yyyy)"]
[]
[]
[null,null,null,"Category",null,null,"Current",null,"Goal",null,"Goal Met",null,null,"(L) Likelihood of activation /use in incident",null,"(I) Impact",null,"(R) Risk to life / operations if deficient",null,"(CP) Current preparedness",null,"(Cost) Cost to close gap including supplies and training",null,null,"Overall Priority = L + I + R + CP",null,"Priority related to Cost = \nOverall Priority * Cost",null,null,"Gap Closure Solution and Notes"]
[]
[null,null,"Staff (#)"]
[]
[null,null,null,"Total technologist staff"]
[]
[null,null,null,"Phlebotomy and Lab \nAssistants"]
[]
[]
[null,null,"Plans (Y / N / In development)"]
[]
[null,null,null,"Notification / Staff alerting",null,null,null,null,null,null,"[Select]",null,null,"[Select]",null,"[Select]",null,"[Select]",null,"[Select]",null,"[Select]",null,null,{"$f":"IFERROR((LEFT(N22,1)+LEFT(P22,1)+LEFT(R22,1)+LEFT(T22,1)),\"\")","v":""},null,{"$f":"IFERROR(IF(LEFT(V22,1)=\"1\",Y22*1,IF(LEFT(V22,1)=\"2\",Y22*0.75,IF(LEFT(V22,1)=\"3\",Y22*0.5,\"\"))),\"\")","v":""}]
[]
[null,null,null,"Surge capacity – sample \nprocessing and key labs",null,null,null,null,null,null,"[Select]",null,null,"[Select]",null,"[Select]",null,"[Select]",null,"[Select]",null,"[Select]",null,null,{"$f":"IFERROR((LEFT(N24,1)+LEFT(P24,1)+LEFT(R24,1)+LEFT(T24,1)),\"\")","v":""},null,{"$f":"IFERROR(IF(LEFT(V24,1)=\"1\",Y24*1,IF(LEFT(V24,1)=\"2\",Y24*0.75,IF(LEFT(V24,1)=\"3\",Y24*0.5,\"\"))),\"\")","v":""}]
[null,null,null,null,null,null,null,null,null,null,null,null,null,null,null,null,null,null,null,null,null,null,null,null,null,null,null,null,null," "]
[null,null,null,"Scarce resource / disaster \nrestrictions on services",null,null,null,null,null,null,"[Select]",null,null,"[Select]",null,"[Select]",null,"[Select]",null,"[Select]",null,"[Select]",null,null,{"$f":"IFERROR((LEFT(N26,1)+LEFT(P26,1)+LEFT(R26,1)+LEFT(T26,1)),\"\")","v":""},null,{"$f":"IFERROR(IF(LEFT(V26,1)=\"1\",Y26*1,IF(LEFT(V26,1)=\"2\",Y26*0.75,IF(LEFT(V26,1)=\"3\",Y26*0.5,\"\"))),\"\")","v":""}]
[]
[null,null,null,"Courier plans (including \nduring lockdown)",null,null,null,null,null,null,"[Select]",null,null,"[Select]",null,"[Select]",null,"[Select]",null,"[Select]",null,"[Select]",null,null,{"$f":"IFERROR((LEFT(N28,1)+LEFT(P28,1)+LEFT(R28,1)+LEFT(T28,1)),\"\")","v":""},null,{"$f":"IFERROR(IF(LEFT(V28,1)=\"1\",Y28*1,IF(LEFT(V28,1)=\"2\",Y28*0.75,IF(LEFT(V28,1)=\"3\",Y28*0.5,\"\"))),\"\")","v":""}]
[]
[null,null,null,"Special pathogen handling",null,null,null,null,null,null,"[Select]",null,null,"[Select]",null,"[Select]",null,"[Select]",null,"[Select]",null,"[Select]",null,null,{"$f":"IFERROR((LEFT(N30,1)+LEFT(P30,1)+LEFT(R30,1)+LEFT(T30,1)),\"\")","v":""},null,{"$f":"IFERROR(IF(LEFT(V30,1)=\"1\",Y30*1,IF(LEFT(V30,1)=\"2\",Y30*0.75,IF(LEFT(V30,1)=\"3\",Y30*0.5,\"\"))),\"\")","v":""}]
[]
[null,null,null,"Lab surge staffing plan",null,null,null,null,null,null,"[Select]",null,null,"[Select]",null,"[Select]",null,"[Select]",null,"[Select]",null,"[Select]",null,null,{"$f":"IFERROR((LEFT(N32,1)+LEFT(P32,1)+LEFT(R32,1)+LEFT(T32,1)),\"\")","v":""},null,{"$f":"IFERROR(IF(LEFT(V32,1)=\"1\",Y32*1,IF(LEFT(V32,1)=\"2\",Y32*0.75,IF(LEFT(V32,1)=\"3\",Y32*0.5,\"\"))),\"\")","v":""}]
[]
[]
[null,null,"Supplies (#)"]
[]
[null,null,null,"Bedside / rapid testing equipment",null,null,null,null,null,null,"[Select]",null,null,"[Select]",null,"[Select]",null,"[Select]",null,"[Select]",null,"[Select]",null,null,{"$f":"IFERROR((LEFT(N37,1)+LEFT(P37,1)+LEFT(R37,1)+LEFT(T37,1)),\"\")","v":""},null,{"$f":"IFERROR(IF(LEFT(V37,1)=\"1\",Y37*1,IF(LEFT(V37,1)=\"2\",Y37*0.75,IF(LEFT(V37,1)=\"3\",Y37*0.5,\"\"))),\"\")","v":""}]
[]
[null,null,null,"Reagent / pack increased par \nlevels (other \ncommon stat labs)",null,null,null,null,null,null,"[Select]",null,null,"[Select]",null,"[Select]",null,"[Select]",null,"[Select]",null,"[Select]",null,null,{"$f":"IFERROR((LEFT(N39,1)+LEFT(P39,1)+LEFT(R39,1)+LEFT(T39,1)),\"\")","v":""},null,{"$f":"IFERROR(IF(LEFT(V39,1)=\"1\",Y39*1,IF(LEFT(V39,1)=\"2\",Y39*0.75,IF(LEFT(V39,1)=\"3\",Y39*0.5,\"\"))),\"\")","v":""}]
[]
[]
[]
[null,null,"Other issues:"]
[]
[]
[null,null,"Comments:"]

{"sheet":"Nutrition Services","index":21,"n_rows":54,"n_cols":30,"rows_kept":54,"cut":false,"hidden":false,"merged":[[54,2,54,30],[3,3,3,29],[50,2,50,3],[51,2,51,30],[53,2,53,3],[5,10,5,11],[5,13,5,21],[7,3,7,4],[7,19,7,21],[7,26,7,28],[7,6,7,11]]}
[]
[]
[]
[null,null,null,"Hospital Resource Vulnerability Assessment (RVA) - Nutrition Services"]
[]
[null,null,null,null,null,null,null,null,null,null,"Hospital:",null,null,{"$f":"IF('Hospital Information'!F9=\"\",\"\",'Hospital Information'!F9)","v":""}]
[]
[null,null,null,"Name of person completing:",null,null,null,null,null,null,null,null,null,"Phone:",null,null,null,"Email:",null,null,null,null,null,null,"Date:",null,null,null,null,"(mm/dd/yyyy)"]
[]
[]
[null,null,null,"Category",null,null,"Current",null,"Goal",null,"Goal Met",null,null,"(L) Likelihood of activation /use in incident",null,"(I) Impact",null,"(R) Risk to life / operations if deficient",null,"(CP) Current preparedness",null,"(Cost) Cost to close gap including supplies and training",null,null,"Overall Priority = L + I + R + CP",null,"Priority related to Cost = \nOverall Priority * Cost",null,null,"Gap Closure Solution and Notes"]
[]
[null,null,"Staff (#)"]
[]
[null,null,null,"Total food services staff"]
[]
[null,null,null,"Total nutritional services \nstaff"]
[]
[]
[null,null,"Plans (Y / N / In development)"]
[]
[null,null,null,"Staff notification plan",null,null,null,null,null,null,"[Select]",null,null,"[Select]",null,"[Select]",null,"[Select]",null,"[Select]",null,"[Select]",null,null,{"$f":"IFERROR((LEFT(N22,1)+LEFT(P22,1)+LEFT(R22,1)+LEFT(T22,1)),\"\")","v":""},null,{"$f":"IFERROR(IF(LEFT(V22,1)=\"1\",Y22*1,IF(LEFT(V22,1)=\"2\",Y22*0.75,IF(LEFT(V22,1)=\"3\",Y22*0.5,\"\"))),\"\")","v":""}]
[]
[null,null,null,"Staff disaster feeding \nplan / menus",null,null,null,null,null,null,"[Select]",null,null,"[Select]",null,"[Select]",null,"[Select]",null,"[Select]",null,"[Select]",null,null,{"$f":"IFERROR((LEFT(N24,1)+LEFT(P24,1)+LEFT(R24,1)+LEFT(T24,1)),\"\")","v":""},null,{"$f":"IFERROR(IF(LEFT(V24,1)=\"1\",Y24*1,IF(LEFT(V24,1)=\"2\",Y24*0.75,IF(LEFT(V24,1)=\"3\",Y24*0.5,\"\"))),\"\")","v":""}]
[null,null,null,null,null,null,null,null,null,null,null,null,null,null,null,null,null,null,null,null,null,null,null,null,null,null,null,null,null," "]
[null,null,null,"Patient disaster feeding \nplan / menus",null,null,null,null,null,null,"[Select]",null,null,"[Select]",null,"[Select]",null,"[Select]",null,"[Select]",null,"[Select]",null,null,{"$f":"IFERROR((LEFT(N26,1)+LEFT(P26,1)+LEFT(R26,1)+LEFT(T26,1)),\"\")","v":""},null,{"$f":"IFERROR(IF(LEFT(V26,1)=\"1\",Y26*1,IF(LEFT(V26,1)=\"2\",Y26*0.75,IF(LEFT(V26,1)=\"3\",Y26*0.5,\"\"))),\"\")","v":""}]
[]
[null,null,null,"Food delivery interruption \nplan (96h)",null,null,null,null,null,null,"[Select]",null,null,"[Select]",null,"[Select]",null,"[Select]",null,"[Select]",null,"[Select]",null,null,{"$f":"IFERROR((LEFT(N28,1)+LEFT(P28,1)+LEFT(R28,1)+LEFT(T28,1)),\"\")","v":""},null,{"$f":"IFERROR(IF(LEFT(V28,1)=\"1\",Y28*1,IF(LEFT(V28,1)=\"2\",Y28*0.75,IF(LEFT(V28,1)=\"3\",Y28*0.5,\"\"))),\"\")","v":""}]
[]
[]
[null,null,"Supplies (#)"]
[]
[null,null,null,"Staff and patient general \nfood inc pediatric",null,null,null,null,null,null,"[Select]",null,null,"[Select]",null,"[Select]",null,"[Select]",null,"[Select]",null,"[Select]",null,null,{"$f":"IFERROR((LEFT(N33,1)+LEFT(P33,1)+LEFT(R33,1)+LEFT(T33,1)),\"\")","v":""},null,{"$f":"IFERROR(IF(LEFT(V33,1)=\"1\",Y33*1,IF(LEFT(V33,1)=\"2\",Y33*0.75,IF(LEFT(V33,1)=\"3\",Y33*0.5,\"\"))),\"\")","v":""}]
[]
[null,null,null,"Enteral nutrition \nSupplies",null,null,null,null,null,null,"[Select]",null,null,"[Select]",null,"[Select]",null,"[Select]",null,"[Select]",null,"[Select]",null,null,{"$f":"IFERROR((LEFT(N35,1)+LEFT(P35,1)+LEFT(R35,1)+LEFT(T35,1)),\"\")","v":""},null,{"$f":"IFERROR(IF(LEFT(V35,1)=\"1\",Y35*1,IF(LEFT(V35,1)=\"2\",Y35*0.75,IF(LEFT(V35,1)=\"3\",Y35*0.5,\"\"))),\"\")","v":""}]
[]
[null,null,null,"Parenteral nutrition \nSupplies",null,null,null,null,null,null,"[Select]",null,null,"[Select]",null,"[Select]",null,"[Select]",null,"[Select]",null,"[Select]",null,null,{"$f":"IFERROR((LEFT(N37,1)+LEFT(P37,1)+LEFT(R37,1)+LEFT(T37,1)),\"\")","v":""},null,{"$f":"IFERROR(IF(LEFT(V37,1)=\"1\",Y37*1,IF(LEFT(V37,1)=\"2\",Y37*0.75,IF(LEFT(V37,1)=\"3\",Y37*0.5,\"\"))),\"\")","v":""}]
[]
[null,null,null,"Mass feeding Supplies – plasticware, paperware",null,null,null,null,null,null,"[Select]",null,null,"[Select]",null,"[Select]",null,"[Select]",null,"[Select]",null,"[Select]",null,null,{"$f":"IFERROR((LEFT(N39,1)+LEFT(P39,1)+LEFT(R39,1)+LEFT(T39,1)),\"\")","v":""},null,{"$f":"IFERROR(IF(LEFT(V39,1)=\"1\",Y39*1,IF(LEFT(V39,1)=\"2\",Y39*0.75,IF(LEFT(V39,1)=\"3\",Y39*0.5,\"\"))),\"\")","v":""}]
[]
[null,null,null,"Water coolers",null,null,null,null,null,null,"[Select]",null,null,"[Select]",null,"[Select]",null,"[Select]",null,"[Select]",null,"[Select]",null,null,{"$f":"IFERROR((LEFT(N41,1)+LEFT(P41,1)+LEFT(R41,1)+LEFT(T41,1)),\"\")","v":""},null,{"$f":"IFERROR(IF(LEFT(V41,1)=\"1\",Y41*1,IF(LEFT(V41,1)=\"2\",Y41*0.75,IF(LEFT(V41,1)=\"3\",Y41*0.5,\"\"))),\"\")","v":""}]
[]
[null,null,null,"Ice chests",null,null,null,null,null,null,"[Select]",null,null,"[Select]",null,"[Select]",null,"[Select]",null,"[Select]",null,"[Select]",null,null,{"$f":"IFERROR((LEFT(N43,1)+LEFT(P43,1)+LEFT(R43,1)+LEFT(T43,1)),\"\")","v":""},null,{"$f":"IFERROR(IF(LEFT(V43,1)=\"1\",Y43*1,IF(LEFT(V43,1)=\"2\",Y43*0.75,IF(LEFT(V43,1)=\"3\",Y43*0.5,\"\"))),\"\")","v":""}]
[]
[null,null,null,"Baby formula",null,null,null,null,null,null,"[Select]",null,null,"[Select]",null,"[Select]",null,"[Select]",null,"[Select]",null,"[Select]",null,null,{"$f":"IFERROR((LEFT(N45,1)+LEFT(P45,1)+LEFT(R45,1)+LEFT(T45,1)),\"\")","v":""},null,{"$f":"IFERROR(IF(LEFT(V45,1)=\"1\",Y45*1,IF(LEFT(V45,1)=\"2\",Y45*0.75,IF(LEFT(V45,1)=\"3\",Y45*0.5,\"\"))),\"\")","v":""}]
[]
[null,null,null,"Baby food",null,null,null,null,null,null,"[Select]",null,null,"[Select]",null,"[Select]",null,"[Select]",null,"[Select]",null,"[Select]",null,null,{"$f":"IFERROR((LEFT(N47,1)+LEFT(P47,1)+LEFT(R47,1)+LEFT(T47,1)),\"\")","v":""},null,{"$f":"IFERROR(IF(LEFT(V47,1)=\"1\",Y47*1,IF(LEFT(V47,1)=\"2\",Y47*0.75,IF(LEFT(V47,1)=\"3\",Y47*0.5,\"\"))),\"\")","v":""}]
[]
[]
[]
[null,null,"Other issues:"]
[]
[]
[null,null,"Comments:"]

{"sheet":"Pharmacy","index":22,"n_rows":63,"n_cols":30,"rows_kept":63,"cut":false,"hidden":false,"merged":[[63,2,63,30],[3,3,3,29],[59,2,59,3],[60,2,60,30],[62,2,62,3],[5,10,5,11],[5,13,5,21],[7,3,7,4],[7,19,7,21],[7,26,7,28],[7,6,7,11]]}
[]
[]
[]
[null,null,null,"Hospital Resource Vulnerability Assessment (RVA) - Pharmacy"]
[]
[null,null,null,null,null,null,null,null,null,null,"Hospital:",null,null,{"$f":"IF('Hospital Information'!F9=\"\",\"\",'Hospital Information'!F9)","v":""}]
[]
[null,null,null,"Name of person completing:",null,null,null,null,null,null,null,null,null,"Phone:",null,null,null,"Email:",null,null,null,null,null,null,"Date:",null,null,null,null,"(mm/dd/yyyy)"]
[]
[]
[null,null,null,"Category",null,null,"Current",null,"Goal",null,"Goal Met",null,null,"(L) Likelihood of activation /use in incident",null,"(I) Impact",null,"(R) Risk to life / operations if deficient",null,"(CP) Current preparedness",null,"(Cost) Cost to close gap including supplies and training",null,null,"Overall Priority = L + I + R + CP",null,"Priority related to Cost = \nOverall Priority * Cost",null,null,"Gap Closure Solution and Notes"]
[]
[null,null,"Staff (#)"]
[]
[null,null,null,"Pharmacists"]
[]
[null,null,null,"Lead pharmacists / \nsupervisors"]
[]
[null,null,null,"Support staff / techs"]
[]
[]
[null,null,"Plans (Y / N / In development)"]
[]
[null,null,null,"Staff alerting / notification",null,null,null,null,null,null,"[Select]",null,null,"[Select]",null,"[Select]",null,"[Select]",null,"[Select]",null,"[Select]",null,null,{"$f":"IFERROR((LEFT(N24,1)+LEFT(P24,1)+LEFT(R24,1)+LEFT(T24,1)),\"\")","v":""},null,{"$f":"IFERROR(IF(LEFT(V24,1)=\"1\",Y24*1,IF(LEFT(V24,1)=\"2\",Y24*0.75,IF(LEFT(V24,1)=\"3\",Y24*0.5,\"\"))),\"\")","v":""}]
[]
[null,null,null,"Surge plan",null,null,null,null,null,null,"[Select]",null,null,"[Select]",null,"[Select]",null,"[Select]",null,"[Select]",null,"[Select]",null,null,{"$f":"IFERROR((LEFT(N26,1)+LEFT(P26,1)+LEFT(R26,1)+LEFT(T26,1)),\"\")","v":""},null,{"$f":"IFERROR(IF(LEFT(V26,1)=\"1\",Y26*1,IF(LEFT(V26,1)=\"2\",Y26*0.75,IF(LEFT(V26,1)=\"3\",Y26*0.5,\"\"))),\"\")","v":""}]
[null,null,null,null,null,null,null,null,null,null,null,null,null,null,null,null,null,null,null,null,null,null,null,null,null,null,null,null,null," "]
[null,null,null,"Disaster drug distribution \nplan (OR, ED)",null,null,null,null,null,null,"[Select]",null,null,"[Select]",null,"[Select]",null,"[Select]",null,"[Select]",null,"[Select]",null,null,{"$f":"IFERROR((LEFT(N28,1)+LEFT(P28,1)+LEFT(R28,1)+LEFT(T28,1)),\"\")","v":""},null,{"$f":"IFERROR(IF(LEFT(V28,1)=\"1\",Y28*1,IF(LEFT(V28,1)=\"2\",Y28*0.75,IF(LEFT(V28,1)=\"3\",Y28*0.5,\"\"))),\"\")","v":""}]
[]
[null,null,null,"Chempack plan",null,null,null,null,null,null,"[Select]",null,null,"[Select]",null,"[Select]",null,"[Select]",null,"[Select]",null,"[Select]",null,null,{"$f":"IFERROR((LEFT(N30,1)+LEFT(P30,1)+LEFT(R30,1)+LEFT(T30,1)),\"\")","v":""},null,{"$f":"IFERROR(IF(LEFT(V30,1)=\"1\",Y30*1,IF(LEFT(V30,1)=\"2\",Y30*0.75,IF(LEFT(V30,1)=\"3\",Y30*0.5,\"\"))),\"\")","v":""}]
[]
[null,null,null,"Mass dispensing plan \n(internal)",null,null,null,null,null,null,"[Select]",null,null,"[Select]",null,"[Select]",null,"[Select]",null,"[Select]",null,"[Select]",null,null,{"$f":"IFERROR((LEFT(N32,1)+LEFT(P32,1)+LEFT(R32,1)+LEFT(T32,1)),\"\")","v":""},null,{"$f":"IFERROR(IF(LEFT(V32,1)=\"1\",Y32*1,IF(LEFT(V32,1)=\"2\",Y32*0.75,IF(LEFT(V32,1)=\"3\",Y32*0.5,\"\"))),\"\")","v":""}]
[]
[null,null,null,"Surge / disaster supply plan \nwith distributor",null,null,null,null,null,null,"[Select]",null,null,"[Select]",null,"[Select]",null,"[Select]",null,"[Select]",null,"[Select]",null,null,{"$f":"IFERROR((LEFT(N34,1)+LEFT(P34,1)+LEFT(R34,1)+LEFT(T34,1)),\"\")","v":""},null,{"$f":"IFERROR(IF(LEFT(V34,1)=\"1\",Y34*1,IF(LEFT(V34,1)=\"2\",Y34*0.75,IF(LEFT(V34,1)=\"3\",Y34*0.5,\"\"))),\"\")","v":""}]
[]
[null,null,null,"Alternate communications \nplan with distributor",null,null,null,null,null,null,"[Select]",null,null,"[Select]",null,"[Select]",null,"[Select]",null,"[Select]",null,"[Select]",null,null,{"$f":"IFERROR((LEFT(N36,1)+LEFT(P36,1)+LEFT(R36,1)+LEFT(T36,1)),\"\")","v":""},null,{"$f":"IFERROR(IF(LEFT(V36,1)=\"1\",Y36*1,IF(LEFT(V36,1)=\"2\",Y36*0.75,IF(LEFT(V36,1)=\"3\",Y36*0.5,\"\"))),\"\")","v":""}]
[]
[]
[null,null,"Supplies (#)"]
[]
[null,null,null,"Dispensing Supplies \n(e.g.counting trays)",null,null,null,null,null,null,"[Select]",null,null,"[Select]",null,"[Select]",null,"[Select]",null,"[Select]",null,"[Select]",null,null,{"$f":"IFERROR((LEFT(N41,1)+LEFT(P41,1)+LEFT(R41,1)+LEFT(T41,1)),\"\")","v":""},null,{"$f":"IFERROR(IF(LEFT(V41,1)=\"1\",Y41*1,IF(LEFT(V41,1)=\"2\",Y41*0.75,IF(LEFT(V41,1)=\"3\",Y41*0.5,\"\"))),\"\")","v":""}]
[]
[null,null,null,"Anti-virals",null,null,null,null,null,null,"[Select]",null,null,"[Select]",null,"[Select]",null,"[Select]",null,"[Select]",null,"[Select]",null,null,{"$f":"IFERROR((LEFT(N43,1)+LEFT(P43,1)+LEFT(R43,1)+LEFT(T43,1)),\"\")","v":""},null,{"$f":"IFERROR(IF(LEFT(V43,1)=\"1\",Y43*1,IF(LEFT(V43,1)=\"2\",Y43*0.75,IF(LEFT(V43,1)=\"3\",Y43*0.5,\"\"))),\"\")","v":""}]
[]
[null,null,null,"Anti-microbials oral",null,null,null,null,null,null,"[Select]",null,null,"[Select]",null,"[Select]",null,"[Select]",null,"[Select]",null,"[Select]",null,null,{"$f":"IFERROR((LEFT(N45,1)+LEFT(P45,1)+LEFT(R45,1)+LEFT(T45,1)),\"\")","v":""},null,{"$f":"IFERROR(IF(LEFT(V45,1)=\"1\",Y45*1,IF(LEFT(V45,1)=\"2\",Y45*0.75,IF(LEFT(V45,1)=\"3\",Y45*0.5,\"\"))),\"\")","v":""}]
[]
[null,null,null,"Anti-microbials",null,null,null,null,null,null,"[Select]",null,null,"[Select]",null,"[Select]",null,"[Select]",null,"[Select]",null,"[Select]",null,null,{"$f":"IFERROR((LEFT(N47,1)+LEFT(P47,1)+LEFT(R47,1)+LEFT(T47,1)),\"\")","v":""},null,{"$f":"IFERROR(IF(LEFT(V47,1)=\"1\",Y47*1,IF(LEFT(V47,1)=\"2\",Y47*0.75,IF(LEFT(V47,1)=\"3\",Y47*0.5,\"\"))),\"\")","v":""}]
[]
[null,null,null,"Sedation",null,null,null,null,null,null,"[Select]",null,null,"[Select]",null,"[Select]",null,"[Select]",null,"[Select]",null,"[Select]",null,null,{"$f":"IFERROR((LEFT(N49,1)+LEFT(P49,1)+LEFT(R49,1)+LEFT(T49,1)),\"\")","v":""},null,{"$f":"IFERROR(IF(LEFT(V49,1)=\"1\",Y49*1,IF(LEFT(V49,1)=\"2\",Y49*0.75,IF(LEFT(V49,1)=\"3\",Y49*0.5,\"\"))),\"\")","v":""}]
[]
[null,null,null,"Paralysis",null,null,null,null,null,null,"[Select]",null,null,"[Select]",null,"[Select]",null,"[Select]",null,"[Select]",null,"[Select]",null,null,{"$f":"IFERROR((LEFT(N51,1)+LEFT(P51,1)+LEFT(R51,1)+LEFT(T51,1)),\"\")","v":""},null,{"$f":"IFERROR(IF(LEFT(V51,1)=\"1\",Y51*1,IF(LEFT(V51,1)=\"2\",Y51*0.75,IF(LEFT(V51,1)=\"3\",Y51*0.5,\"\"))),\"\")","v":""}]
[]
[null,null,null,"Analgesia - oral and \ninjectable",null,null,null,null,null,null,"[Select]",null,null,"[Select]",null,"[Select]",null,"[Select]",null,"[Select]",null,"[Select]",null,null,{"$f":"IFERROR((LEFT(N53,1)+LEFT(P53,1)+LEFT(R53,1)+LEFT(T53,1)),\"\")","v":""},null,{"$f":"IFERROR(IF(LEFT(V53,1)=\"1\",Y53*1,IF(LEFT(V53,1)=\"2\",Y53*0.75,IF(LEFT(V53,1)=\"3\",Y53*0.5,\"\"))),\"\")","v":""}]
[]
[null,null,null,"Other medications",null,null,null,null,null,null,"[Select]",null,null,"[Select]",null,"[Select]",null,"[Select]",null,"[Select]",null,"[Select]",null,null,{"$f":"IFERROR((LEFT(N55,1)+LEFT(P55,1)+LEFT(R55,1)+LEFT(T55,1)),\"\")","v":""},null,{"$f":"IFERROR(IF(LEFT(V55,1)=\"1\",Y55*1,IF(LEFT(V55,1)=\"2\",Y55*0.75,IF(LEFT(V55,1)=\"3\",Y55*0.5,\"\"))),\"\")","v":""}]
[]
[null,null,null,"TPN",null,null,null,null,null,null,"[Select]",null,null,"[Select]",null,"[Select]",null,"[Select]",null,"[Select]",null,"[Select]",null,null,{"$f":"IFERROR((LEFT(N57,1)+LEFT(P57,1)+LEFT(R57,1)+LEFT(T57,1)),\"\")","v":""},null,{"$f":"IFERROR(IF(LEFT(V57,1)=\"1\",Y57*1,IF(LEFT(V57,1)=\"2\",Y57*0.75,IF(LEFT(V57,1)=\"3\",Y57*0.5,\"\"))),\"\")","v":""}]
[]
[]
[null,null,"Other issues:"]
[]
[]
[null,null,"Comments:"]

{"sheet":"Radiology","index":23,"n_rows":68,"n_cols":30,"rows_kept":68,"cut":false,"hidden":false,"merged":[[68,2,68,30],[3,3,3,29],[64,2,64,3],[65,2,65,30],[67,2,67,3],[5,10,5,11],[5,13,5,21],[7,3,7,4],[7,19,7,21],[7,26,7,28],[7,6,7,11]]}
[]
[]
[]
[null,null,null,"Hospital Resource Vulnerability Assessment (RVA) - Radiology"]
[]
[null,null,null,null,null,null,null,null,null,null,"Hospital:",null,null,{"$f":"IF('Hospital Information'!F9=\"\",\"\",'Hospital Information'!F9)","v":""}]
[]
[null,null,null,"Name of person completing:",null,null,null,null,null,null,null,null,null,"Phone:",null,null,null,"Email:",null,null,null,null,null,null,"Date:",null,null,null,null,"(mm/dd/yyyy)"]
[]
[]
[null,null,null,"Category",null,null,"Current",null,"Goal",null,"Goal Met",null,null,"(L) Likelihood of activation /use in incident",null,"(I) Impact",null,"(R) Risk to life / operations if deficient",null,"(CP) Current preparedness",null,"(Cost) Cost to close gap including supplies and training",null,null,"Overall Priority = L + I + R + CP",null,"Priority related to Cost = \nOverall Priority * Cost",null,null,"Gap Closure Solution and Notes"]
[]
[null,null,"Staff (#)"]
[]
[null,null,null,"Radiologists"]
[]
[null,null,null,"US techs"]
[]
[null,null,null,"Nuclear medicine techs"]
[]
[null,null,null,"Radiology techs \n(plain, CT, MR, IR)"]
[]
[]
[null,null,"Plans (Y / N / In development)"]
[]
[null,null,null,"Staff / tech notification / \nalerting",null,null,null,null,null,null,"[Select]",null,null,"[Select]",null,"[Select]",null,"[Select]",null,"[Select]",null,"[Select]",null,null,{"$f":"IFERROR((LEFT(N26,1)+LEFT(P26,1)+LEFT(R26,1)+LEFT(T26,1)),\"\")","v":""},null,{"$f":"IFERROR(IF(LEFT(V26,1)=\"1\",Y26*1,IF(LEFT(V26,1)=\"2\",Y26*0.75,IF(LEFT(V26,1)=\"3\",Y26*0.5,\"\"))),\"\")","v":""}]
[]
[null,null,null,"Surge plan – US, CT, MR, IR, \nplain film",null,null,null,null,null,null,"[Select]",null,null,"[Select]",null,"[Select]",null,"[Select]",null,"[Select]",null,"[Select]",null,null,{"$f":"IFERROR((LEFT(N28,1)+LEFT(P28,1)+LEFT(R28,1)+LEFT(T28,1)),\"\")","v":""},null,{"$f":"IFERROR(IF(LEFT(V28,1)=\"1\",Y28*1,IF(LEFT(V28,1)=\"2\",Y28*0.75,IF(LEFT(V28,1)=\"3\",Y28*0.5,\"\"))),\"\")","v":""}]
[null,null,null,null,null,null,null,null,null,null,null,null,null,null,null,null,null,null,null,null,null,null,null,null,null,null,null,null,null," "]
[null,null,null,"Space surge plan (use of \nrooms for patient care)",null,null,null,null,null,null,"[Select]",null,null,"[Select]",null,"[Select]",null,"[Select]",null,"[Select]",null,"[Select]",null,null,{"$f":"IFERROR((LEFT(N30,1)+LEFT(P30,1)+LEFT(R30,1)+LEFT(T30,1)),\"\")","v":""},null,{"$f":"IFERROR(IF(LEFT(V30,1)=\"1\",Y30*1,IF(LEFT(V30,1)=\"2\",Y30*0.75,IF(LEFT(V30,1)=\"3\",Y30*0.5,\"\"))),\"\")","v":""}]
[]
[null,null,null,"Communications plan \n(internal phones, etc.)",null,null,null,null,null,null,"[Select]",null,null,"[Select]",null,"[Select]",null,"[Select]",null,"[Select]",null,"[Select]",null,null,{"$f":"IFERROR((LEFT(N32,1)+LEFT(P32,1)+LEFT(R32,1)+LEFT(T32,1)),\"\")","v":""},null,{"$f":"IFERROR(IF(LEFT(V32,1)=\"1\",Y32*1,IF(LEFT(V32,1)=\"2\",Y32*0.75,IF(LEFT(V32,1)=\"3\",Y32*0.5,\"\"))),\"\")","v":""}]
[]
[null,null,null,"Disaster service restriction\nplan",null,null,null,null,null,null,"[Select]",null,null,"[Select]",null,"[Select]",null,"[Select]",null,"[Select]",null,"[Select]",null,null,{"$f":"IFERROR((LEFT(N34,1)+LEFT(P34,1)+LEFT(R34,1)+LEFT(T34,1)),\"\")","v":""},null,{"$f":"IFERROR(IF(LEFT(V34,1)=\"1\",Y34*1,IF(LEFT(V34,1)=\"2\",Y34*0.75,IF(LEFT(V34,1)=\"3\",Y34*0.5,\"\"))),\"\")","v":""}]
[]
[]
[null,null,"Space (# of beds in each space)"]
[]
[null,null,null,"Procedure room - radiology",null,null,null,null,null,null,"[Select]",null,null,"[Select]",null,"[Select]",null,"[Select]",null,"[Select]",null,"[Select]",null,null,{"$f":"IFERROR((LEFT(N39,1)+LEFT(P39,1)+LEFT(R39,1)+LEFT(T39,1)),\"\")","v":""},null,{"$f":"IFERROR(IF(LEFT(V39,1)=\"1\",Y39*1,IF(LEFT(V39,1)=\"2\",Y39*0.75,IF(LEFT(V39,1)=\"3\",Y39*0.5,\"\"))),\"\")","v":""}]
[]
[]
[null,null,"Supplies (#)"]
[]
[null,null,null,"Communications",null,null,null,null,null,null,"[Select]",null,null,"[Select]",null,"[Select]",null,"[Select]",null,"[Select]",null,"[Select]",null,null,{"$f":"IFERROR((LEFT(N44,1)+LEFT(P44,1)+LEFT(R44,1)+LEFT(T44,1)),\"\")","v":""},null,{"$f":"IFERROR(IF(LEFT(V44,1)=\"1\",Y44*1,IF(LEFT(V44,1)=\"2\",Y44*0.75,IF(LEFT(V44,1)=\"3\",Y44*0.5,\"\"))),\"\")","v":""}]
[]
[null,null,null,"C-arms",null,null,null,null,null,null,"[Select]",null,null,"[Select]",null,"[Select]",null,"[Select]",null,"[Select]",null,"[Select]",null,null,{"$f":"IFERROR((LEFT(N46,1)+LEFT(P46,1)+LEFT(R46,1)+LEFT(T46,1)),\"\")","v":""},null,{"$f":"IFERROR(IF(LEFT(V46,1)=\"1\",Y46*1,IF(LEFT(V46,1)=\"2\",Y46*0.75,IF(LEFT(V46,1)=\"3\",Y46*0.5,\"\"))),\"\")","v":""}]
[]
[null,null,null,"Portable xray machines",null,null,null,null,null,null,"[Select]",null,null,"[Select]",null,"[Select]",null,"[Select]",null,"[Select]",null,"[Select]",null,null,{"$f":"IFERROR((LEFT(N48,1)+LEFT(P48,1)+LEFT(R48,1)+LEFT(T48,1)),\"\")","v":""},null,{"$f":"IFERROR(IF(LEFT(V48,1)=\"1\",Y48*1,IF(LEFT(V48,1)=\"2\",Y48*0.75,IF(LEFT(V48,1)=\"3\",Y48*0.5,\"\"))),\"\")","v":""}]
[]
[null,null,null,"US machines",null,null,null,null,null,null,"[Select]",null,null,"[Select]",null,"[Select]",null,"[Select]",null,"[Select]",null,"[Select]",null,null,{"$f":"IFERROR((LEFT(N50,1)+LEFT(P50,1)+LEFT(R50,1)+LEFT(T50,1)),\"\")","v":""},null,{"$f":"IFERROR(IF(LEFT(V50,1)=\"1\",Y50*1,IF(LEFT(V50,1)=\"2\",Y50*0.75,IF(LEFT(V50,1)=\"3\",Y50*0.5,\"\"))),\"\")","v":""}]
[]
[null,null,null,"CT",null,null,null,null,null,null,"[Select]",null,null,"[Select]",null,"[Select]",null,"[Select]",null,"[Select]",null,"[Select]",null,null,{"$f":"IFERROR((LEFT(N52,1)+LEFT(P52,1)+LEFT(R52,1)+LEFT(T52,1)),\"\")","v":""},null,{"$f":"IFERROR(IF(LEFT(V52,1)=\"1\",Y52*1,IF(LEFT(V52,1)=\"2\",Y52*0.75,IF(LEFT(V52,1)=\"3\",Y52*0.5,\"\"))),\"\")","v":""}]
[]
[null,null,null,"MR",null,null,null,null,null,null,"[Select]",null,null,"[Select]",null,"[Select]",null,"[Select]",null,"[Select]",null,"[Select]",null,null,{"$f":"IFERROR((LEFT(N54,1)+LEFT(P54,1)+LEFT(R54,1)+LEFT(T54,1)),\"\")","v":""},null,{"$f":"IFERROR(IF(LEFT(V54,1)=\"1\",Y54*1,IF(LEFT(V54,1)=\"2\",Y54*0.75,IF(LEFT(V54,1)=\"3\",Y54*0.5,\"\"))),\"\")","v":""}]
[]
[null,null,null,"Radiation survey / detection",null,null,null,null,null,null,"[Select]",null,null,"[Select]",null,"[Select]",null,"[Select]",null,"[Select]",null,"[Select]",null,null,{"$f":"IFERROR((LEFT(N56,1)+LEFT(P56,1)+LEFT(R56,1)+LEFT(T56,1)),\"\")","v":""},null,{"$f":"IFERROR(IF(LEFT(V56,1)=\"1\",Y56*1,IF(LEFT(V56,1)=\"2\",Y56*0.75,IF(LEFT(V56,1)=\"3\",Y56*0.5,\"\"))),\"\")","v":""}]
[]
[null,null,null,"Radiation containment / pigs",null,null,null,null,null,null,"[Select]",null,null,"[Select]",null,"[Select]",null,"[Select]",null,"[Select]",null,"[Select]",null,null,{"$f":"IFERROR((LEFT(N58,1)+LEFT(P58,1)+LEFT(R58,1)+LEFT(T58,1)),\"\")","v":""},null,{"$f":"IFERROR(IF(LEFT(V58,1)=\"1\",Y58*1,IF(LEFT(V58,1)=\"2\",Y58*0.75,IF(LEFT(V58,1)=\"3\",Y58*0.5,\"\"))),\"\")","v":""}]
[]
[null,null,null,"CT on backup power",null,null,null,null,null,null,"[Select]",null,null,"[Select]",null,"[Select]",null,"[Select]",null,"[Select]",null,"[Select]",null,null,{"$f":"IFERROR((LEFT(N60,1)+LEFT(P60,1)+LEFT(R60,1)+LEFT(T60,1)),\"\")","v":""},null,{"$f":"IFERROR(IF(LEFT(V60,1)=\"1\",Y60*1,IF(LEFT(V60,1)=\"2\",Y60*0.75,IF(LEFT(V60,1)=\"3\",Y60*0.5,\"\"))),\"\")","v":""}]
[]
[null,null,null,"Portables have generator \noutlets available",null,null,null,null,null,null,"[Select]",null,null,"[Select]",null,"[Select]",null,"[Select]",null,"[Select]",null,"[Select]",null,null,{"$f":"IFERROR((LEFT(N62,1)+LEFT(P62,1)+LEFT(R62,1)+LEFT(T62,1)),\"\")","v":""},null,{"$f":"IFERROR(IF(LEFT(V62,1)=\"1\",Y62*1,IF(LEFT(V62,1)=\"2\",Y62*0.75,IF(LEFT(V62,1)=\"3\",Y62*0.5,\"\"))),\"\")","v":""}]
[]
[]
[null,null,"Other issues:"]
[]
[]
[null,null,"Comments:"]

{"sheet":"Resp Care_Bioelectronics","index":24,"n_rows":54,"n_cols":30,"rows_kept":54,"cut":false,"hidden":false,"merged":[[54,2,54,30],[3,3,3,29],[50,2,50,3],[51,2,51,30],[53,2,53,3],[5,10,5,11],[5,13,5,21],[7,3,7,4],[7,19,7,21],[7,26,7,28],[7,6,7,11]]}
[]
[]
[]
[null,null,null,"Hospital Resource Vulnerability Assessment (RVA) - Respiratory Care/Biolelectronics"]
[]
[null,null,null,null,null,null,null,null,null,null,"Hospital:",null,null,{"$f":"IF('Hospital Information'!F9=\"\",\"\",'Hospital Information'!F9)","v":""}]
[]
[null,null,null,"Name of person completing:",null,null,null,null,null,null,null,null,null,"Phone:",null,null,null,"Email:",null,null,null,null,null,null,"Date:",null,null,null,null,"(mm/dd/yyyy)"]
[]
[]
[null,null,null,"Category",null,null,"Current",null,"Goal",null,"Goal Met",null,null,"(L) Likelihood of activation /use in incident",null,"(I) Impact",null,"(R) Risk to life / operations if deficient",null,"(CP) Current preparedness",null,"(Cost) Cost to close gap including supplies and training",null,null,"Overall Priority = L + I + R + CP",null,"Priority related to Cost = \nOverall Priority * Cost",null,null,"Gap Closure Solution and Notes"]
[]
[null,null,"Staff (#)"]
[]
[null,null,null,"Total Staff"]
[]
[]
[null,null,"Plans (Y / N / In development)"]
[]
[null,null,null,"Respiratory Therapists \nincluded in disaster \nnotification?",null,null,null,null,null,null,"[Select]",null,null,"[Select]",null,"[Select]",null,"[Select]",null,"[Select]",null,"[Select]",null,null,{"$f":"IFERROR((LEFT(N20,1)+LEFT(P20,1)+LEFT(R20,1)+LEFT(T20,1)),\"\")","v":""},null,{"$f":"IFERROR(IF(LEFT(V20,1)=\"1\",Y20*1,IF(LEFT(V20,1)=\"2\",Y20*0.75,IF(LEFT(V20,1)=\"3\",Y20*0.5,\"\"))),\"\")","v":""}]
[]
[]
[null,null,"Supplies (#)"]
[]
[null,null,null,"Ventilators - full feature",null,null,null,null,null,null,"[Select]",null,null,"[Select]",null,"[Select]",null,"[Select]",null,"[Select]",null,"[Select]",null,null,{"$f":"IFERROR((LEFT(N25,1)+LEFT(P25,1)+LEFT(R25,1)+LEFT(T25,1)),\"\")","v":""},null,{"$f":"IFERROR(IF(LEFT(V25,1)=\"1\",Y25*1,IF(LEFT(V25,1)=\"2\",Y25*0.75,IF(LEFT(V25,1)=\"3\",Y25*0.5,\"\"))),\"\")","v":""}]
[]
[null,null,null,"Ventilators - infant / \nnewborn",null,null,null,null,null,null,"[Select]",null,null,"[Select]",null,"[Select]",null,"[Select]",null,"[Select]",null,"[Select]",null,null,{"$f":"IFERROR((LEFT(N27,1)+LEFT(P27,1)+LEFT(R27,1)+LEFT(T27,1)),\"\")","v":""},null,{"$f":"IFERROR(IF(LEFT(V27,1)=\"1\",Y27*1,IF(LEFT(V27,1)=\"2\",Y27*0.75,IF(LEFT(V27,1)=\"3\",Y27*0.5,\"\"))),\"\")","v":""}]
[]
[null,null,null,"Ventilators - transport",null,null,null,null,null,null,"[Select]",null,null,"[Select]",null,"[Select]",null,"[Select]",null,"[Select]",null,"[Select]",null,null,{"$f":"IFERROR((LEFT(N29,1)+LEFT(P29,1)+LEFT(R29,1)+LEFT(T29,1)),\"\")","v":""},null,{"$f":"IFERROR(IF(LEFT(V29,1)=\"1\",Y29*1,IF(LEFT(V29,1)=\"2\",Y29*0.75,IF(LEFT(V29,1)=\"3\",Y29*0.5,\"\"))),\"\")","v":""}]
[]
[]
[null,null,null,"Ventilator circuits",null,null,null,null,null,null,"[Select]",null,null,"[Select]",null,"[Select]",null,"[Select]",null,"[Select]",null,"[Select]",null,null,{"$f":"IFERROR((LEFT(N32,1)+LEFT(P32,1)+LEFT(R32,1)+LEFT(T32,1)),\"\")","v":""},null,{"$f":"IFERROR(IF(LEFT(V32,1)=\"1\",Y32*1,IF(LEFT(V32,1)=\"2\",Y32*0.75,IF(LEFT(V32,1)=\"3\",Y32*0.5,\"\"))),\"\")","v":""}]
[]
[null,null,null,"Bipap machines",null,null,null,null,null,null,"[Select]",null,null,"[Select]",null,"[Select]",null,"[Select]",null,"[Select]",null,"[Select]",null,null,{"$f":"IFERROR((LEFT(N34,1)+LEFT(P34,1)+LEFT(R34,1)+LEFT(T34,1)),\"\")","v":""},null,{"$f":"IFERROR(IF(LEFT(V34,1)=\"1\",Y34*1,IF(LEFT(V34,1)=\"2\",Y34*0.75,IF(LEFT(V34,1)=\"3\",Y34*0.5,\"\"))),\"\")","v":""}]
[]
[null,null,null,"Oximeters",null,null,null,null,null,null,"[Select]",null,null,"[Select]",null,"[Select]",null,"[Select]",null,"[Select]",null,"[Select]",null,null,{"$f":"IFERROR((LEFT(N36,1)+LEFT(P36,1)+LEFT(R36,1)+LEFT(T36,1)),\"\")","v":""},null,{"$f":"IFERROR(IF(LEFT(V36,1)=\"1\",Y36*1,IF(LEFT(V36,1)=\"2\",Y36*0.75,IF(LEFT(V36,1)=\"3\",Y36*0.5,\"\"))),\"\")","v":""}]
[]
[null,null,null,"Spare cardiac monitors",null,null,null,null,null,null,"[Select]",null,null,"[Select]",null,"[Select]",null,"[Select]",null,"[Select]",null,"[Select]",null,null,{"$f":"IFERROR((LEFT(N38,1)+LEFT(P38,1)+LEFT(R38,1)+LEFT(T38,1)),\"\")","v":""},null,{"$f":"IFERROR(IF(LEFT(V38,1)=\"1\",Y38*1,IF(LEFT(V38,1)=\"2\",Y38*0.75,IF(LEFT(V38,1)=\"3\",Y38*0.5,\"\"))),\"\")","v":""}]
[]
[null,null,null,"Spare portable cardiac \nmonitors",null,null,null,null,null,null,"[Select]",null,null,"[Select]",null,"[Select]",null,"[Select]",null,"[Select]",null,"[Select]",null,null,{"$f":"IFERROR((LEFT(N40,1)+LEFT(P40,1)+LEFT(R40,1)+LEFT(T40,1)),\"\")","v":""},null,{"$f":"IFERROR(IF(LEFT(V40,1)=\"1\",Y40*1,IF(LEFT(V40,1)=\"2\",Y40*0.75,IF(LEFT(V40,1)=\"3\",Y40*0.5,\"\"))),\"\")","v":""}]
[]
[null,null,null,"IV pumps",null,null,null,null,null,null,"[Select]",null,null,"[Select]",null,"[Select]",null,"[Select]",null,"[Select]",null,"[Select]",null,null,{"$f":"IFERROR((LEFT(N42,1)+LEFT(P42,1)+LEFT(R42,1)+LEFT(T42,1)),\"\")","v":""},null,{"$f":"IFERROR(IF(LEFT(V42,1)=\"1\",Y42*1,IF(LEFT(V42,1)=\"2\",Y42*0.75,IF(LEFT(V42,1)=\"3\",Y42*0.5,\"\"))),\"\")","v":""}]
[]
[null,null,null,"Syringe Pumps",null,null,null,null,null,null,"[Select]",null,null,"[Select]",null,"[Select]",null,"[Select]",null,"[Select]",null,"[Select]",null,null,{"$f":"IFERROR((LEFT(N44,1)+LEFT(P44,1)+LEFT(R44,1)+LEFT(T44,1)),\"\")","v":""},null,{"$f":"IFERROR(IF(LEFT(V44,1)=\"1\",Y44*1,IF(LEFT(V44,1)=\"2\",Y44*0.75,IF(LEFT(V44,1)=\"3\",Y44*0.5,\"\"))),\"\")","v":""}]
[]
[null,null,null,"Spare portable oxygen \ncylinders",null,null,null,null,null,null,"[Select]",null,null,"[Select]",null,"[Select]",null,"[Select]",null,"[Select]",null,"[Select]",null,null,{"$f":"IFERROR((LEFT(N46,1)+LEFT(P46,1)+LEFT(R46,1)+LEFT(T46,1)),\"\")","v":""},null,{"$f":"IFERROR(IF(LEFT(V46,1)=\"1\",Y46*1,IF(LEFT(V46,1)=\"2\",Y46*0.75,IF(LEFT(V46,1)=\"3\",Y46*0.5,\"\"))),\"\")","v":""}]
[]
[null,null,null,"Disaster multi-patient \ndelivery system",null,null,null,null,null,null,"[Select]",null,null,"[Select]",null,"[Select]",null,"[Select]",null,"[Select]",null,"[Select]",null,null,{"$f":"IFERROR((LEFT(N48,1)+LEFT(P48,1)+LEFT(R48,1)+LEFT(T48,1)),\"\")","v":""},null,{"$f":"IFERROR(IF(LEFT(V48,1)=\"1\",Y48*1,IF(LEFT(V48,1)=\"2\",Y48*0.75,IF(LEFT(V48,1)=\"3\",Y48*0.5,\"\"))),\"\")","v":""}]
[]
[]
[null,null,"Other issues:"]
[]
[]
[null,null,"Comments:"]

{"sheet":"Safety and Security","index":25,"n_rows":67,"n_cols":30,"rows_kept":67,"cut":false,"hidden":false,"merged":[[67,2,67,30],[3,3,3,29],[63,2,63,3],[64,2,64,30],[66,2,66,3],[5,10,5,11],[5,13,5,21],[7,3,7,4],[7,19,7,21],[7,26,7,28],[7,6,7,11]]}
[]
[]
[]
[null,null,null,"Hospital Resource Vulnerability Assessment (RVA) - Safety and Security"]
[]
[null,null,null,null,null,null,null,null,null,null,"Hospital:",null,null,{"$f":"IF('Hospital Information'!F9=\"\",\"\",'Hospital Information'!F9)","v":""}]
[]
[null,null,null,"Name of person completing:",null,null,null,null,null,null,null,null,null,"Phone:",null,null,null,"Email:",null,null,null,null,null,null,"Date:",null,null,null,null,"(mm/dd/yyyy)"]
[]
[]
[null,null,null,"Category",null,null,"Current",null,"Goal",null,"Goal Met",null,null,"(L) Likelihood of activation /use in incident",null,"(I) Impact",null,"(R) Risk to life / operations if deficient",null,"(CP) Current preparedness",null,"(Cost) Cost to close gap including supplies and training",null,null,"Overall Priority = L + I + R + CP",null,"Priority related to Cost = \nOverall Priority * Cost",null,null,"Gap Closure Solution and Notes"]
[]
[null,null,"Staff (#)"]
[]
[null,null,null,"Security officers / \nsupervisors"]
[]
[]
[null,null,"Plans (Y / N / In development)"]
[]
[null,null,null,"Active shooter",null,null,null,null,null,null,"[Select]",null,null,"[Select]",null,"[Select]",null,"[Select]",null,"[Select]",null,"[Select]",null,null,{"$f":"IFERROR((LEFT(N20,1)+LEFT(P20,1)+LEFT(R20,1)+LEFT(T20,1)),\"\")","v":""},null,{"$f":"IFERROR(IF(LEFT(V20,1)=\"1\",Y20*1,IF(LEFT(V20,1)=\"2\",Y20*0.75,IF(LEFT(V20,1)=\"3\",Y20*0.5,\"\"))),\"\")","v":""}]
[]
[null,null,null,"Hostage situation",null,null,null,null,null,null,"[Select]",null,null,"[Select]",null,"[Select]",null,"[Select]",null,"[Select]",null,"[Select]",null,null,{"$f":"IFERROR((LEFT(N22,1)+LEFT(P22,1)+LEFT(R22,1)+LEFT(T22,1)),\"\")","v":""},null,{"$f":"IFERROR(IF(LEFT(V22,1)=\"1\",Y22*1,IF(LEFT(V22,1)=\"2\",Y22*0.75,IF(LEFT(V22,1)=\"3\",Y22*0.5,\"\"))),\"\")","v":""}]
[null,null,null,null,null,null,null,null,null,null,null,null,null,null,null,null,null,null,null,null,null,null,null,null,null,null,null,null,null," "]
[null,null,null,"Facility damage",null,null,null,null,null,null,"[Select]",null,null,"[Select]",null,"[Select]",null,"[Select]",null,"[Select]",null,"[Select]",null,null,{"$f":"IFERROR((LEFT(N24,1)+LEFT(P24,1)+LEFT(R24,1)+LEFT(T24,1)),\"\")","v":""},null,{"$f":"IFERROR(IF(LEFT(V24,1)=\"1\",Y24*1,IF(LEFT(V24,1)=\"2\",Y24*0.75,IF(LEFT(V24,1)=\"3\",Y24*0.5,\"\"))),\"\")","v":""}]
[null,null,null,null,null,null,null,null,null,null,null,null,null,null,null,null,null,null,null,null,null,null,null,null,null,null,null,null,null," "]
[null,null,null,"Access control plan",null,null,null,null,null,null,"[Select]",null,null,"[Select]",null,"[Select]",null,"[Select]",null,"[Select]",null,"[Select]",null,null,{"$f":"IFERROR((LEFT(N26,1)+LEFT(P26,1)+LEFT(R26,1)+LEFT(T26,1)),\"\")","v":""},null,{"$f":"IFERROR(IF(LEFT(V26,1)=\"1\",Y26*1,IF(LEFT(V26,1)=\"2\",Y26*0.75,IF(LEFT(V26,1)=\"3\",Y26*0.5,\"\"))),\"\")","v":""}]
[null,null,null,null,null,null,null,null,null,null,null,null,null,null,null,null,null,null,null,null,null,null,null,null,null,null,null,null,null," "]
[null,null,null,"Patient abduction",null,null,null,null,null,null,"[Select]",null,null,"[Select]",null,"[Select]",null,"[Select]",null,"[Select]",null,"[Select]",null,null,{"$f":"IFERROR((LEFT(N28,1)+LEFT(P28,1)+LEFT(R28,1)+LEFT(T28,1)),\"\")","v":""},null,{"$f":"IFERROR(IF(LEFT(V28,1)=\"1\",Y28*1,IF(LEFT(V28,1)=\"2\",Y28*0.75,IF(LEFT(V28,1)=\"3\",Y28*0.5,\"\"))),\"\")","v":""}]
[null,null,null,null,null,null,null,null,null,null,null,null,null,null,null,null,null,null,null,null,null,null,null,null,null,null,null,null,null," "]
[null,null,null,"Explosive device",null,null,null,null,null,null,"[Select]",null,null,"[Select]",null,"[Select]",null,"[Select]",null,"[Select]",null,"[Select]",null,null,{"$f":"IFERROR((LEFT(N30,1)+LEFT(P30,1)+LEFT(R30,1)+LEFT(T30,1)),\"\")","v":""},null,{"$f":"IFERROR(IF(LEFT(V30,1)=\"1\",Y30*1,IF(LEFT(V30,1)=\"2\",Y30*0.75,IF(LEFT(V30,1)=\"3\",Y30*0.5,\"\"))),\"\")","v":""}]
[null,null,null,null,null,null,null,null,null,null,null,null,null,null,null,null,null,null,null,null,null,null,null,null,null,null,null,null,null," "]
[null,null,null,"Worker threat education",null,null,null,null,null,null,"[Select]",null,null,"[Select]",null,"[Select]",null,"[Select]",null,"[Select]",null,"[Select]",null,null,{"$f":"IFERROR((LEFT(N32,1)+LEFT(P32,1)+LEFT(R32,1)+LEFT(T32,1)),\"\")","v":""},null,{"$f":"IFERROR(IF(LEFT(V32,1)=\"1\",Y32*1,IF(LEFT(V32,1)=\"2\",Y32*0.75,IF(LEFT(V32,1)=\"3\",Y32*0.5,\"\"))),\"\")","v":""}]
[]
[null,null,null,"Security augmentation plan \n(internal and external staff)",null,null,null,null,null,null,"[Select]",null,null,"[Select]",null,"[Select]",null,"[Select]",null,"[Select]",null,"[Select]",null,null,{"$f":"IFERROR((LEFT(N34,1)+LEFT(P34,1)+LEFT(R34,1)+LEFT(T34,1)),\"\")","v":""},null,{"$f":"IFERROR(IF(LEFT(V34,1)=\"1\",Y34*1,IF(LEFT(V34,1)=\"2\",Y34*0.75,IF(LEFT(V34,1)=\"3\",Y34*0.5,\"\"))),\"\")","v":""}]
[]
[null,null,null,"Threat log / Event log \n(and PI based on same)",null,null,null,null,null,null,"[Select]",null,null,"[Select]",null,"[Select]",null,"[Select]",null,"[Select]",null,"[Select]",null,null,{"$f":"IFERROR((LEFT(N36,1)+LEFT(P36,1)+LEFT(R36,1)+LEFT(T36,1)),\"\")","v":""},null,{"$f":"IFERROR(IF(LEFT(V36,1)=\"1\",Y36*1,IF(LEFT(V36,1)=\"2\",Y36*0.75,IF(LEFT(V36,1)=\"3\",Y36*0.5,\"\"))),\"\")","v":""}]
[]
[]
[null,null,"Supplies (#)"]
[]
[null,null,null,"HAZMAT PPE for officers ",null,null,null,null,null,null,"[Select]",null,null,"[Select]",null,"[Select]",null,"[Select]",null,"[Select]",null,"[Select]",null,null,{"$f":"IFERROR((LEFT(N41,1)+LEFT(P41,1)+LEFT(R41,1)+LEFT(T41,1)),\"\")","v":""},null,{"$f":"IFERROR(IF(LEFT(V41,1)=\"1\",Y41*1,IF(LEFT(V41,1)=\"2\",Y41*0.75,IF(LEFT(V41,1)=\"3\",Y41*0.5,\"\"))),\"\")","v":""}]
[]
[null,null,null,"Crowd control",null,null,null,null,null,null,"[Select]",null,null,"[Select]",null,"[Select]",null,"[Select]",null,"[Select]",null,"[Select]",null,null,{"$f":"IFERROR((LEFT(N43,1)+LEFT(P43,1)+LEFT(R43,1)+LEFT(T43,1)),\"\")","v":""},null,{"$f":"IFERROR(IF(LEFT(V43,1)=\"1\",Y43*1,IF(LEFT(V43,1)=\"2\",Y43*0.75,IF(LEFT(V43,1)=\"3\",Y43*0.5,\"\"))),\"\")","v":""}]
[]
[null,null,null,"Electronic locking devices",null,null,null,null,null,null,"[Select]",null,null,"[Select]",null,"[Select]",null,"[Select]",null,"[Select]",null,"[Select]",null,null,{"$f":"IFERROR((LEFT(N45,1)+LEFT(P45,1)+LEFT(R45,1)+LEFT(T45,1)),\"\")","v":""},null,{"$f":"IFERROR(IF(LEFT(V45,1)=\"1\",Y45*1,IF(LEFT(V45,1)=\"2\",Y45*0.75,IF(LEFT(V45,1)=\"3\",Y45*0.5,\"\"))),\"\")","v":""}]
[]
[]
[null,null,null,"Radio - security",null,null,null,null,null,null,"[Select]",null,null,"[Select]",null,"[Select]",null,"[Select]",null,"[Select]",null,"[Select]",null,null,{"$f":"IFERROR((LEFT(N48,1)+LEFT(P48,1)+LEFT(R48,1)+LEFT(T48,1)),\"\")","v":""},null,{"$f":"IFERROR(IF(LEFT(V48,1)=\"1\",Y48*1,IF(LEFT(V48,1)=\"2\",Y48*0.75,IF(LEFT(V48,1)=\"3\",Y48*0.5,\"\"))),\"\")","v":""}]
[]
[null,null,null,"PPE for debris – e.g. helmets (structural protection)",null,null,null,null,null,null,"[Select]",null,null,"[Select]",null,"[Select]",null,"[Select]",null,"[Select]",null,"[Select]",null,null,{"$f":"IFERROR((LEFT(N50,1)+LEFT(P50,1)+LEFT(R50,1)+LEFT(T50,1)),\"\")","v":""},null,{"$f":"IFERROR(IF(LEFT(V50,1)=\"1\",Y50*1,IF(LEFT(V50,1)=\"2\",Y50*0.75,IF(LEFT(V50,1)=\"3\",Y50*0.5,\"\"))),\"\")","v":""}]
[]
[null,null,null,"First aid kits (for on-campus \ndamage and ‘sidewalk’ response)",null,null,null,null,null,null,"[Select]",null,null,"[Select]",null,"[Select]",null,"[Select]",null,"[Select]",null,"[Select]",null,null,{"$f":"IFERROR((LEFT(N52,1)+LEFT(P52,1)+LEFT(R52,1)+LEFT(T52,1)),\"\")","v":""},null,{"$f":"IFERROR(IF(LEFT(V52,1)=\"1\",Y52*1,IF(LEFT(V52,1)=\"2\",Y52*0.75,IF(LEFT(V52,1)=\"3\",Y52*0.5,\"\"))),\"\")","v":""}]
[]
[null,null,null,"Emergency lighting \n(including stairwells)",null,null,null,null,null,null,"[Select]",null,null,"[Select]",null,"[Select]",null,"[Select]",null,"[Select]",null,"[Select]",null,null,{"$f":"IFERROR((LEFT(N54,1)+LEFT(P54,1)+LEFT(R54,1)+LEFT(T54,1)),\"\")","v":""},null,{"$f":"IFERROR(IF(LEFT(V54,1)=\"1\",Y54*1,IF(LEFT(V54,1)=\"2\",Y54*0.75,IF(LEFT(V54,1)=\"3\",Y54*0.5,\"\"))),\"\")","v":""}]
[]
[]
[null,null,null,"Flashlights",null,null,null,null,null,null,"[Select]",null,null,"[Select]",null,"[Select]",null,"[Select]",null,"[Select]",null,"[Select]",null,null,{"$f":"IFERROR((LEFT(N57,1)+LEFT(P57,1)+LEFT(R57,1)+LEFT(T57,1)),\"\")","v":""},null,{"$f":"IFERROR(IF(LEFT(V57,1)=\"1\",Y57*1,IF(LEFT(V57,1)=\"2\",Y57*0.75,IF(LEFT(V57,1)=\"3\",Y57*0.5,\"\"))),\"\")","v":""}]
[]
[null,null,null,"Panic alarms",null,null,null,null,null,null,"[Select]",null,null,"[Select]",null,"[Select]",null,"[Select]",null,"[Select]",null,"[Select]",null,null,{"$f":"IFERROR((LEFT(N59,1)+LEFT(P59,1)+LEFT(R59,1)+LEFT(T59,1)),\"\")","v":""},null,{"$f":"IFERROR(IF(LEFT(V59,1)=\"1\",Y59*1,IF(LEFT(V59,1)=\"2\",Y59*0.75,IF(LEFT(V59,1)=\"3\",Y59*0.5,\"\"))),\"\")","v":""}]
[]
[null,null,null,"Video monitoring (CCTV)",null,null,null,null,null,null,"[Select]",null,null,"[Select]",null,"[Select]",null,"[Select]",null,"[Select]",null,"[Select]",null,null,{"$f":"IFERROR((LEFT(N61,1)+LEFT(P61,1)+LEFT(R61,1)+LEFT(T61,1)),\"\")","v":""},null,{"$f":"IFERROR(IF(LEFT(V61,1)=\"1\",Y61*1,IF(LEFT(V61,1)=\"2\",Y61*0.75,IF(LEFT(V61,1)=\"3\",Y61*0.5,\"\"))),\"\")","v":""}]
[]
[]
[null,null,"Other issues:"]
[]
[]
[null,null,"Comments:"]

{"sheet":"Sterile Supply","index":26,"n_rows":43,"n_cols":30,"rows_kept":43,"cut":false,"hidden":false,"merged":[[43,2,43,30],[3,3,3,29],[39,2,39,3],[40,2,40,30],[42,2,42,3],[5,10,5,11],[5,13,5,21],[7,3,7,4],[7,19,7,21],[7,26,7,28],[7,6,7,11]]}
[]
[]
[]
[null,null,null,"Hospital Resource Vulnerability Assessment (RVA) - Sterile Supply"]
[]
[null,null,null,null,null,null,null,null,null,null,"Hospital:",null,null,{"$f":"IF('Hospital Information'!F9=\"\",\"\",'Hospital Information'!F9)","v":""}]
[]
[null,null,null,"Name of person completing:",null,null,null,null,null,null,null,null,null,"Phone:",null,null,null,"Email:",null,null,null,null,null,null,"Date:",null,null,null,null,"(mm/dd/yyyy)"]
[]
[]
[null,null,null,"Category",null,null,"Current",null,"Goal",null,"Goal Met",null,null,"(L) Likelihood of activation /use in incident",null,"(I) Impact",null,"(R) Risk to life / operations if deficient",null,"(CP) Current preparedness",null,"(Cost) Cost to close gap including supplies and training",null,null,"Overall Priority = L + I + R + CP",null,"Priority related to Cost = \nOverall Priority * Cost",null,null,"Gap Closure Solution and Notes"]
[]
[null,null,"Staff (#)"]
[]
[null,null,null,"Total Staff"]
[]
[null,null,null,"Staff during day"]
[]
[null,null,null,"Staff during evening"]
[]
[null,null,null,"Staff during night"]
[]
[]
[null,null,"Supplies (#)"]
[]
[null,null,null,"Major procedure trays",null,null,null,null,null,null,"[Select]",null,null,"[Select]",null,"[Select]",null,"[Select]",null,"[Select]",null,"[Select]",null,null,{"$f":"IFERROR((LEFT(N26,1)+LEFT(P26,1)+LEFT(R26,1)+LEFT(T26,1)),\"\")","v":""},null,{"$f":"IFERROR(IF(LEFT(V26,1)=\"1\",Y26*1,IF(LEFT(V26,1)=\"2\",Y26*0.75,IF(LEFT(V26,1)=\"3\",Y26*0.5,\"\"))),\"\")","v":""}]
[]
[null,null,null,"Bleeder trays",null,null,null,null,null,null,"[Select]",null,null,"[Select]",null,"[Select]",null,"[Select]",null,"[Select]",null,"[Select]",null,null,{"$f":"IFERROR((LEFT(N28,1)+LEFT(P28,1)+LEFT(R28,1)+LEFT(T28,1)),\"\")","v":""},null,{"$f":"IFERROR(IF(LEFT(V28,1)=\"1\",Y28*1,IF(LEFT(V28,1)=\"2\",Y28*0.75,IF(LEFT(V28,1)=\"3\",Y28*0.5,\"\"))),\"\")","v":""}]
[]
[null,null,null,"Vascular trays",null,null,null,null,null,null,"[Select]",null,null,"[Select]",null,"[Select]",null,"[Select]",null,"[Select]",null,"[Select]",null,null,{"$f":"IFERROR((LEFT(N30,1)+LEFT(P30,1)+LEFT(R30,1)+LEFT(T30,1)),\"\")","v":""},null,{"$f":"IFERROR(IF(LEFT(V30,1)=\"1\",Y30*1,IF(LEFT(V30,1)=\"2\",Y30*0.75,IF(LEFT(V30,1)=\"3\",Y30*0.5,\"\"))),\"\")","v":""}]
[]
[null,null,null,"Chest tube trays",null,null,null,null,null,null,"[Select]",null,null,"[Select]",null,"[Select]",null,"[Select]",null,"[Select]",null,"[Select]",null,null,{"$f":"IFERROR((LEFT(N32,1)+LEFT(P32,1)+LEFT(R32,1)+LEFT(T32,1)),\"\")","v":""},null,{"$f":"IFERROR(IF(LEFT(V32,1)=\"1\",Y32*1,IF(LEFT(V32,1)=\"2\",Y32*0.75,IF(LEFT(V32,1)=\"3\",Y32*0.5,\"\"))),\"\")","v":""}]
[]
[null,null,null,"Amputation trays",null,null,null,null,null,null,"[Select]",null,null,"[Select]",null,"[Select]",null,"[Select]",null,"[Select]",null,"[Select]",null,null,{"$f":"IFERROR((LEFT(N34,1)+LEFT(P34,1)+LEFT(R34,1)+LEFT(T34,1)),\"\")","v":""},null,{"$f":"IFERROR(IF(LEFT(V34,1)=\"1\",Y34*1,IF(LEFT(V34,1)=\"2\",Y34*0.75,IF(LEFT(V34,1)=\"3\",Y34*0.5,\"\"))),\"\")","v":""}]
[]
[null,null,null,"Suture trays",null,null,null,null,null,null,"[Select]",null,null,"[Select]",null,"[Select]",null,"[Select]",null,"[Select]",null,"[Select]",null,null,{"$f":"IFERROR((LEFT(N36,1)+LEFT(P36,1)+LEFT(R36,1)+LEFT(T36,1)),\"\")","v":""},null,{"$f":"IFERROR(IF(LEFT(V36,1)=\"1\",Y36*1,IF(LEFT(V36,1)=\"2\",Y36*0.75,IF(LEFT(V36,1)=\"3\",Y36*0.5,\"\"))),\"\")","v":""}]
[]
[]
[]
[null,null,"Other issues:"]
[]
[]
[null,null,"Comments:"]

{"sheet":"Storeroom","index":27,"n_rows":47,"n_cols":30,"rows_kept":47,"cut":false,"hidden":false,"merged":[[47,2,47,30],[43,2,43,3],[44,2,44,30],[46,2,46,3],[7,6,7,11],[3,3,3,29],[5,10,5,11],[5,13,5,21],[7,3,7,4],[7,19,7,21],[7,26,7,28]]}
[]
[]
[]
[null,null,null,"Hospital Resource Vulnerability Assessment (RVA) - Storeroom"]
[]
[null,null,null,null,null,null,null,null,null,null,"Hospital:",null,null,{"$f":"IF('Hospital Information'!F9=\"\",\"\",'Hospital Information'!F9)","v":""}]
[]
[null,null,null,"Name of person completing:",null,null,null,null,null,null,null,null,null,"Phone:",null,null,null,"Email:",null,null,null,null,null,null,"Date:",null,null,null,null,"(mm/dd/yyyy)"]
[]
[]
[null,null,null,"Category",null,null,"Current",null,"Goal",null,"Goal Met",null,null,"(L) Likelihood of activation /use in incident",null,"(I) Impact",null,"(R) Risk to life / operations if deficient",null,"(CP) Current preparedness",null,"(Cost) Cost to close gap including supplies and training",null,null,"Overall Priority = L + I + R + CP",null,"Priority related to Cost = \nOverall Priority * Cost",null,null,"Gap Closure Solution and Notes"]
[]
[null,null,"Staff (#)"]
[]
[null,null,null,"Total Staff"]
[]
[null,null,null,"Staff during day"]
[]
[null,null,null,"Staff during evening"]
[]
[null,null,null,"Staff during night"]
[]
[]
[null,null,"Plans (Y / N / In development)"]
[]
[null,null,null,"Disaster supply / pull plan",null,null,null,null,null,null,"[Select]",null,null,"[Select]",null,"[Select]",null,"[Select]",null,"[Select]",null,"[Select]",null,null,{"$f":"IFERROR((LEFT(N26,1)+LEFT(P26,1)+LEFT(R26,1)+LEFT(T26,1)),\"\")","v":""},null,{"$f":"IFERROR(IF(LEFT(V26,1)=\"1\",Y26*1,IF(LEFT(V26,1)=\"2\",Y26*0.75,IF(LEFT(V26,1)=\"3\",Y26*0.5,\"\"))),\"\")","v":""}]
[]
[null,null,null,"Distributor disaster plan",null,null,null,null,null,null,"[Select]",null,null,"[Select]",null,"[Select]",null,"[Select]",null,"[Select]",null,"[Select]",null,null,{"$f":"IFERROR((LEFT(N28,1)+LEFT(P28,1)+LEFT(R28,1)+LEFT(T28,1)),\"\")","v":""},null,{"$f":"IFERROR(IF(LEFT(V28,1)=\"1\",Y28*1,IF(LEFT(V28,1)=\"2\",Y28*0.75,IF(LEFT(V28,1)=\"3\",Y28*0.5,\"\"))),\"\")","v":""}]
[null,null,null,null,null,null,null,null,null,null,null,null,null,null,null,null,null,null,null,null,null,null,null,null,null,null,null,null,null," "]
[null,null,null,"Off-hours disaster supply plan",null,null,null,null,null,null,"[Select]",null,null,"[Select]",null,"[Select]",null,"[Select]",null,"[Select]",null,"[Select]",null,null,{"$f":"IFERROR((LEFT(N30,1)+LEFT(P30,1)+LEFT(R30,1)+LEFT(T30,1)),\"\")","v":""},null,{"$f":"IFERROR(IF(LEFT(V30,1)=\"1\",Y30*1,IF(LEFT(V30,1)=\"2\",Y30*0.75,IF(LEFT(V30,1)=\"3\",Y30*0.5,\"\"))),\"\")","v":""}]
[]
[]
[null,null,"Supplies (#)"]
[]
[null,null,null,"Disaster cart supplies",null,null,null,null,null,null,"[Select]",null,null,"[Select]",null,"[Select]",null,"[Select]",null,"[Select]",null,"[Select]",null,null,{"$f":"IFERROR((LEFT(N35,1)+LEFT(P35,1)+LEFT(R35,1)+LEFT(T35,1)),\"\")","v":""},null,{"$f":"IFERROR(IF(LEFT(V35,1)=\"1\",Y35*1,IF(LEFT(V35,1)=\"2\",Y35*0.75,IF(LEFT(V35,1)=\"3\",Y35*0.5,\"\"))),\"\")","v":""}]
[]
[null,null,null,"Burn contingency supplies ",null,null,null,null,null,null,"[Select]",null,null,"[Select]",null,"[Select]",null,"[Select]",null,"[Select]",null,"[Select]",null,null,{"$f":"IFERROR((LEFT(N37,1)+LEFT(P37,1)+LEFT(R37,1)+LEFT(T37,1)),\"\")","v":""},null,{"$f":"IFERROR(IF(LEFT(V37,1)=\"1\",Y37*1,IF(LEFT(V37,1)=\"2\",Y37*0.75,IF(LEFT(V37,1)=\"3\",Y37*0.5,\"\"))),\"\")","v":""}]
[]
[null,null,null,"Pediatic contingency supplies",null,null,null,null,null,null,"[Select]",null,null,"[Select]",null,"[Select]",null,"[Select]",null,"[Select]",null,"[Select]",null,null,{"$f":"IFERROR((LEFT(N39,1)+LEFT(P39,1)+LEFT(R39,1)+LEFT(T39,1)),\"\")","v":""},null,{"$f":"IFERROR(IF(LEFT(V39,1)=\"1\",Y39*1,IF(LEFT(V39,1)=\"2\",Y39*0.75,IF(LEFT(V39,1)=\"3\",Y39*0.5,\"\"))),\"\")","v":""}]
[]
[null,null,null,"Other Supplies",null,null,null,null,null,null,"[Select]",null,null,"[Select]",null,"[Select]",null,"[Select]",null,"[Select]",null,"[Select]",null,null,{"$f":"IFERROR((LEFT(N41,1)+LEFT(P41,1)+LEFT(R41,1)+LEFT(T41,1)),\"\")","v":""},null,{"$f":"IFERROR(IF(LEFT(V41,1)=\"1\",Y41*1,IF(LEFT(V41,1)=\"2\",Y41*0.75,IF(LEFT(V41,1)=\"3\",Y41*0.5,\"\"))),\"\")","v":""}]
[]
[]
[null,null,"Other issues:"]
[]
[]
[null,null,"Comments:"]

{"sheet":"Transportation","index":28,"n_rows":33,"n_cols":30,"rows_kept":33,"cut":false,"hidden":false,"merged":[[33,2,33,30],[29,2,29,3],[30,2,30,30],[32,2,32,3],[7,6,7,11],[3,3,3,29],[5,10,5,11],[5,13,5,21],[7,3,7,4],[7,19,7,21],[7,26,7,28]]}
[]
[]
[]
[null,null,null,"Hospital Resource Vulnerability Assessment (RVA) - Transportation"]
[]
[null,null,null,null,null,null,null,null,null,null,"Hospital:",null,null,{"$f":"IF('Hospital Information'!F9=\"\",\"\",'Hospital Information'!F9)","v":""}]
[]
[null,null,null,"Name of person completing:",null,null,null,null,null,null,null,null,null,"Phone:",null,null,null,"Email:",null,null,null,null,null,null,"Date:",null,null,null,null,"(mm/dd/yyyy)"]
[]
[]
[null,null,null,"Category",null,null,"Current",null,"Goal",null,"Goal Met",null,null,"(L) Likelihood of activation /use in incident",null,"(I) Impact",null,"(R) Risk to life / operations if deficient",null,"(CP) Current preparedness",null,"(Cost) Cost to close gap including supplies and training",null,null,"Overall Priority = L + I + R + CP",null,"Priority related to Cost = \nOverall Priority * Cost",null,null,"Gap Closure Solution and Notes"]
[]
[null,null,"Staff (#)"]
[]
[null,null,null,"Total patient transportation \nstaff"]
[]
[]
[null,null,"Plans (Y / N / In development)"]
[]
[null,null,null,"Off hours patient \ntransportation plan",null,null,null,null,null,null,"[Select]",null,null,"[Select]",null,"[Select]",null,"[Select]",null,"[Select]",null,"[Select]",null,null,{"$f":"IFERROR((LEFT(N20,1)+LEFT(P20,1)+LEFT(R20,1)+LEFT(T20,1)),\"\")","v":""},null,{"$f":"IFERROR(IF(LEFT(V20,1)=\"1\",Y20*1,IF(LEFT(V20,1)=\"2\",Y20*0.75,IF(LEFT(V20,1)=\"3\",Y20*0.5,\"\"))),\"\")","v":""}]
[]
[]
[null,null,"Supplies (#)"]
[]
[null,null,null,"Patient transport carts",null,null,null,null,null,null,"[Select]",null,null,"[Select]",null,"[Select]",null,"[Select]",null,"[Select]",null,"[Select]",null,null,{"$f":"IFERROR((LEFT(N25,1)+LEFT(P25,1)+LEFT(R25,1)+LEFT(T25,1)),\"\")","v":""},null,{"$f":"IFERROR(IF(LEFT(V25,1)=\"1\",Y25*1,IF(LEFT(V25,1)=\"2\",Y25*0.75,IF(LEFT(V25,1)=\"3\",Y25*0.5,\"\"))),\"\")","v":""}]
[]
[null,null,null,"Wheelchairs",null,null,null,null,null,null,"[Select]",null,null,"[Select]",null,"[Select]",null,"[Select]",null,"[Select]",null,"[Select]",null,null,{"$f":"IFERROR((LEFT(N27,1)+LEFT(P27,1)+LEFT(R27,1)+LEFT(T27,1)),\"\")","v":""},null,{"$f":"IFERROR(IF(LEFT(V27,1)=\"1\",Y27*1,IF(LEFT(V27,1)=\"2\",Y27*0.75,IF(LEFT(V27,1)=\"3\",Y27*0.5,\"\"))),\"\")","v":""}]
[]
[]
[null,null,"Other issues:"]
[]
[]
[null,null,"Comments:"]

{"sheet":"Pharmacy Supplies","index":29,"n_rows":102,"n_cols":7,"rows_kept":102,"cut":false,"hidden":true,"merged":[[0,0,0,6]]}
["HPP Disaster Resource Vulnerability Analysis - Pharmacy Worksheet"]
["Category","Pharmacy tracking / stock number","Quantity available on: (date surveyed)","Duration by avg use (month supply)","Goal","Cost","Comments"]
["Analgesia"]
["MS 10mg / 2mL injectable"]
["Hydromorphone 2mg/2mL injectable"]
["Fentanyl 100mcg/2mL"]
["MS 100mg?"]
["Other forms/concentrations?"]
["Oxycodone 10mg/15mL"]
["Norco tabs"]
["Ibuprofen 200mg tab"]
["Ibuprofen suspension 100mg/5mL"]
["Ibuprofen 600mg tab"]
[]
["Sedation"]
["Lorazepam 2mg IV"]
["Midazolam 10mg/2mL"]
["Haloperidol"]
["Droperidol (?)"]
["Zyprexa (olanzapine)"]
["Etomidate 25mg"]
["Ketamine 100mg/mL"]
["Ketamine 50mg/mL"]
["Propofol 10mg/mL 200mg vial"]
["Propofol 10mg/mL infusion vial"]
[]
["Paralytics"]
["Rocuronium 100mg"]
["Vecuronium 10mg"]
["Succinylcholine 200mg"]
[]
["Antimicrobials"]
["Cefazolin (1g IV)"]
["Keflex 500mg tab"]
["Keflex suspension"]
["Ceftriaxone (2g IV)"]
["Doxycycline 100mg tab"]
["Doxycycline 100mg IV"]
["Ciprofloxacin (500mg tab)"]
["Ciprofloxacin (400mg IV)"]
["Clindamycin (900mg IV)"]
["Levofloxacin (750mg IV)"]
["Levofloxacin (500mg tab)"]
["Amoxacillin suspension 250mg/5mL"]
["Amoxacillin tablets 500mg"]
["Augmentin suspension 400mg/5mL"]
["Augmentin tab 875mg"]
["Zosyn (3.1g IV)"]
["Vancomycin"]
[]
["Anti-virals"]
["Olseltamivir"]
["Zanamivir"]
[]
["Antidotes"]
["Cyanide kit (hydroxycobalamin)"]
["Pralidoxime (chempack)"]
["Pralidoxime (HCMC stock)"]
["Atropine (chempack)"]
["Atropine (1mg/ml)"]
["Atropine (0.4mg/ml)"]
[]
["Intravenous Fluids"]
["LR"]
["NS"]
[]
["Pulmonary"]
["Duoneb"]
["Albuterol MDI"]
[]
["Pressors"]
["Norepinephrine"]
["Epinephrine MDV 1mg/mL"]
[]
["Other"]
["Proparacaine / tetracaine (eye)"]
["Polytrim (eye qtt)"]
["Dextrose 25g"]
["Marcaine 0.25% 30mL with epi"]
["Sodium bicarb 50meq"]
["Zofran ODT 4mg"]
["Zofran IV 4mg ampules"]
["Compazine 10mg IV/IM amp"]
["Solu-medrol 125mg IV amp"]
["Dexamethasone 10mg injectable"]
["Prednisone 40mg tab"]
["Imodium 2mg tabs"]
["fos-phenytoin 250PE/vial"]
["3% or 5% hypertonic saline"]
["SSKI"]
[]
["Burn"]
["Bacitracin tube 60g"]
["Bacitracin tub 1lb"]
[]
["Vaccines"]
["Dtap"]
["Hep B"]
["HBIG (?)"]
[]
[]
["COMMENTS:"]

{"sheet":"Storeroom Supplies","index":30,"n_rows":89,"n_cols":7,"rows_kept":89,"cut":false,"hidden":true,"merged":[[0,0,0,6]]}
["HCMC Departmental Disaster Resource Vulnerability Analysis - Storeroom Worksheet"]
["Category","Pharmacy tracking / stock number","Quantity available on: (date surveyed)","Duration by avg use (month supply)","Goal","Cost","Comments"]
["Disaster cart (stocked for ED)"]
["See separate list - does not affect par - consider cart for SPC also?"]
[]
["Burn Supplies (#)"]
["Adaptic 8x18"]
["Kerlix roll 4 inch"]
["Kerlix roll 2 inch"]
[]
["Disaster Supplies (#) (inc. par)"]
["Invasive pressure monitoring line set"]
["Kerlix fluffs"]
["Fiberglass splint material 3 inch"]
["FIberglass splint material 5 inch"]
["Plaster splint 5x25"]
["Crutches (pair)"]
["Elastic bandage 3 inch"]
["Elastic bandage 6 inch"]
["Adaptic 5x7"]
["Burn pad 18x24"]
["Burn pad 18x24"]
["Sling (S,M,L)"]
["Webril 3 inch"]
["Webril 5 inch"]
["Feeding tube 3, 5F"]
["Foley cath kit adult"]
["Foley cath ped 8,10,12F"]
["Oxygen mask partial rebreather adult"]
["Oxygen mask partial rebreather peds"]
["Nebulizer kit adult"]
["Nebulizer mask peds"]
["Nasal cannula adult"]
["Nasal cannula pediatric"]
["BVM adult"]
["BVM pediatric"]
["ET tube 7.5"]
["ET tube 3.0, 4.0, 5.0"]
["NG salem sump 16F"]
["NG 12, 14F"]
["IV cannula 22, 24 gauge"]
["IV cannula 16,18,20 gauge"]
["IV site dressing"]
["IV saline lock"]
["Blood tubing adminstration set"]
["Macrodrip set (standard 10qtt/mL tubing)"]
["Buretrol"]
["IV pump tubing set"]
["IV microdrip administration set"]
["Saline flush"]
["Chlorhexidine site prep - large swab"]
["25ga. 1.5 inch needle"]
["18 ga. 1.5 inch draw needle"]
["3cc syringe (with or without needle)"]
["12cc syringe"]
["60cc luer lock syringe"]
["LP tray"]
["Exam gloves large nitrile"]
["Exam gloves medium nitrile"]
["Disposable scalpel #11"]
["Ethilon 3-0 suture / cutting"]
["Ethilon 5-0 suture / needle"]
["Prolene 0 cutting needle"]
["Vicryl 4-0 suture / needle"]
["Thoracostomy tubes 8,10,12"]
["Thoracostomy tubes 24, 28, 36"]
["IV pressure bags (disposable)"]
["3 inch foam tape"]
["1 inch optipore tape"]
["cervical extrication collar - no-neck"]
["cervical extrication collar - peds"]
["end tidal CO2 detector line (same for OR?)"]
["suction bottles"]
["suction cath kit 8, 12F"]
["suction tubing"]
["Yankuer suction tip"]
["Peds central line kits"]
["Adult central line kits"]
["Arterial line kits"]
["Armboard short 9x3 inch disposable"]
["Quentin catheters for dialysis"]
[]
["ED Stock (#)"]
["EZ IO needle adult"]
["EZ IO needle ped"]
["EZ IO needle bariatric"]
[]
[]
["COMMENTS:"]

{"sheet":"Codes","index":31,"n_rows":12,"n_cols":27,"rows_kept":12,"cut":false,"hidden":true,"merged":[]}
["Likelihood","Impact","Risk","Current Preparedness","Cost","Goal Sufficient","Trauma Level"]
["[Select]","[Select]","[Select]","[Select]","[Select]","[Select]","[Select]"]
["1 - Unlikely","1 - Few persons","1 - Low risk","1 - Prepared","1 - < $10,000","Yes",1]
["2 - Possible","2 - Multiple persons","2 - Medium risk","2 - Somewhat","2 - $10,000 - $50,000","No",2]
["3 - Likely","3 - Hospital-wide","3 - High risk","3 - Least","3 - > $50,000","N/A",3]
[null,null,null,null,null,null,4]
[]
[]
[]
[]
[]
[null,null,null,null,null,null,null,null,null,null,"[Select]",null,null,"[Select]",null,"[Select]",null,"[Select]",null,"[Select]",null,"[Select]",null,null,{"$f":"IFERROR((LEFT(N12,1)+LEFT(P12,1)+LEFT(R12,1)+LEFT(T12,1)),\"\")","v":""},null,{"$f":"IFERROR(IF(LEFT(V12,1)=\"1\",Y12*1,IF(LEFT(V12,1)=\"2\",Y12*0.75,IF(LEFT(V12,1)=\"3\",Y12*0.5,\"\"))),\"\")","v":""}]